Workbook

Sheet settings
B2: Regular Selling | G2: Regular Buying | L2: INSTRUCTIONS
C3: Bot | D3: Personal | E3: Correction | H3: Bot | I3: Personal | J3: Correction | L3: 1. Download from website (or copy from your bot folder) CardsMTGO3.txt
B4: Mythic | C4: 0.05 | D4: -9.992007222e-16 | E4: =VLOOKUP(C4, corrections!$B$2:$AI$35, MATCH(settings!D4, corrections!$B$2:$AI$2, 0), FALSE) -> 0.05 | G4: Mythic | H4: -9.992007222e-16 | I4: -9.992007222e-16 | J4: =VLOOKUP(H4, corrections!$B$2:$AI$35, MATCH(settings!I4, corrections!$B$2:$AI$2, 0), FALSE) -> -1.998401444e-15 | L4: to C:\CardsMTGO3.txt
B5: Rare | C5: -9.992007222e-16 | D5: -9.992007222e-16 | E5: =VLOOKUP(C5, corrections!$B$2:$AI$35, MATCH(settings!D5, corrections!$B$2:$AI$2, 0), FALSE) -> -1.998401444e-15 | G5: Rare | H5: -9.992007222e-16 | I5: -9.992007222e-16 | J5: =VLOOKUP(H5, corrections!$B$2:$AI$35, MATCH(settings!I5, corrections!$B$2:$AI$2, 0), FALSE) -> -1.998401444e-15 | L5: 2. Single-click on "PROCESS C:\CardsMTGO3.txt" button
B6: Uncommon | C6: -9.992007222e-16 | D6: -9.992007222e-16 | E6: =VLOOKUP(C6, corrections!$B$2:$AI$35, MATCH(settings!D6, corrections!$B$2:$AI$2, 0), FALSE) -> -1.998401444e-15 | G6: Uncommon | H6: -9.992007222e-16 | I6: -9.992007222e-16 | J6: =VLOOKUP(H6, corrections!$B$2:$AI$35, MATCH(settings!I6, corrections!$B$2:$AI$2, 0), FALSE) -> -1.998401444e-15 | L6: 3. Select the 'Bot' correction factors for regular & foil, buying & selling
B7: Common | C7: -9.992007222e-16 | D7: -9.992007222e-16 | E7: =VLOOKUP(C7, corrections!$B$2:$AI$35, MATCH(settings!D7, corrections!$B$2:$AI$2, 0), FALSE) -> -1.998401444e-15 | G7: Common | H7: -9.992007222e-16 | I7: -9.992007222e-16 | J7: =VLOOKUP(H7, corrections!$B$2:$AI$35, MATCH(settings!I7, corrections!$B$2:$AI$2, 0), FALSE) -> -1.998401444e-15 | L7: 4. Select the 'Personal' correction factors for regular & foil, buying & selling,
L8: the resulting correction factor will be displayed under 'Correction'.
B9: Foil Selling | G9: Foil Buying | L9: Positive corrections will be displayed in GREEN and negative in RED.
C10: Bot | D10: Personal | E10: Correction | H10: Bot | I10: Personal | J10: Correction
B11: Mythic | C11: -9.992007222e-16 | D11: -9.992007222e-16 | E11: =VLOOKUP(C11, corrections!$B$2:$AI$35, MATCH(settings!D11, corrections!$B$2:$AI$2, 0), FALSE) -> -1.998401444e-15 | G11: Mythic | H11: -9.992007222e-16 | I11: -9.992007222e-16 | J11: =VLOOKUP(H11, corrections!$B$2:$AI$35, MATCH(settings!I11, corrections!$B$2:$AI$2, 0), FALSE) -> -1.998401444e-15
B12: Rare | C12: -9.992007222e-16 | D12: -9.992007222e-16 | E12: =VLOOKUP(C12, corrections!$B$2:$AI$35, MATCH(settings!D12, corrections!$B$2:$AI$2, 0), FALSE) -> -1.998401444e-15 | G12: Rare | H12: -9.992007222e-16 | I12: -9.992007222e-16 | J12: =VLOOKUP(H12, corrections!$B$2:$AI$35, MATCH(settings!I12, corrections!$B$2:$AI$2, 0), FALSE) -> -1.998401444e-15
B13: Uncommon | C13: -9.992007222e-16 | D13: -9.992007222e-16 | E13: =VLOOKUP(C13, corrections!$B$2:$AI$35, MATCH(settings!D13, corrections!$B$2:$AI$2, 0), FALSE) -> -1.998401444e-15 | G13: Uncommon | H13: -9.992007222e-16 | I13: -9.992007222e-16 | J13: =VLOOKUP(H13, corrections!$B$2:$AI$35, MATCH(settings!I13, corrections!$B$2:$AI$2, 0), FALSE) -> -1.998401444e-15
B14: Common | C14: -9.992007222e-16 | D14: -9.992007222e-16 | E14: =VLOOKUP(C14, corrections!$B$2:$AI$35, MATCH(settings!D14, corrections!$B$2:$AI$2, 0), FALSE) -> -1.998401444e-15 | G14: Common | H14: -9.992007222e-16 | I14: -9.992007222e-16 | J14: =VLOOKUP(H14, corrections!$B$2:$AI$35, MATCH(settings!I14, corrections!$B$2:$AI$2, 0), FALSE) -> -1.998401444e-15

Sheet prices
A1: Enter Data Here | H1: Calculated Data
A2: Set | B2: Type | C2: Card | D2: CardMTGO3.txt prices go here | H2: Corrected Prices | L2: Profit (no fee) | N2: Profit (2.5% fee) | P2: Profit (3.5% fee)
D3: Sell | F3: Buy | H3: Sell | J3: Buy | L3: Gain/Loss | N3: Gain/Loss | P3: Gain/Loss | S3: INSTRUCTIONS
D4: Regular | E4: Foil | F4: Regular | G4: Foil | H4: Regular | I4: Foil | J4: Regular | K4: Foil | L4: Regular | M4: Foil | N4: Regular | O4: Foil | P4: Regular | Q4: Foil | S4: 1. Copy the cells starting at SET all the way over to BUY_FOIL for the
A5: GTC | B5: M | C5: Master Biomancer | D5: 4.63 | E5: 18 | F5: 3.24 | G5: 12.6 | H5: =IF($D5<>"",CONCATENATE(TEXT(($D5*(1+(INDEX(settings!$E$4:$E$7,MATCH(INDEX(support!$A$2:$A$5,MATCH(prices!$B5,support!$B$2:$B$5,0)*1),settings!$B$4:$B$7,0))))),"00.000")," (",TEXT((INDEX(settings!$E$4:$E$7,MATCH(INDEX(support!$A$2:$A$5,MATCH(prices!$B5,support!$B$2:$B$5,0)*1),settings!$B$4:$B$7,0))),"00%"),")"),"") -> 04.862 (05%) | I5: =IF($E5<>"",CONCATENATE(TEXT(($E5*(1+(INDEX(settings!$E$11:$E$14,MATCH(INDEX(support!$A$2:$A$5,MATCH(prices!$B5,support!$B$2:$B$5,0)*1),settings!$B$11:$B$14,0))))),"00.000")," (",TEXT((INDEX(settings!$E$11:$E$14,MATCH(INDEX(support!$A$2:$A$5,MATCH(prices!$B5,support!$B$2:$B$5,0)*1),settings!$B$11:$B$14,0))),"00%"),")"),"") -> 18.000 (00%) | J5: =IF($F5<>"",CONCATENATE(TEXT(($F5*(1+(INDEX(settings!$J$4:$J$7,MATCH(INDEX(support!$A$2:$A$5,MATCH(prices!$B5,support!$B$2:$B$5,0)*1),settings!$G$4:$G$7,0))))),"00.000")," (",TEXT((INDEX(settings!$J$4:$J$7,MATCH(INDEX(support!$A$2:$A$5,MATCH(prices!$B5,support!$B$2:$B$5,0)*1),settings!$G$4:$G$7,0))),"00%"),")"),"") -> 03.240 (00%) | K5: =IF($G5<>"",CONCATENATE(TEXT(($G5*(1+(INDEX(settings!$J$11:$J$14,MATCH(INDEX(support!$A$2:$A$5,MATCH(prices!$B5,support!$B$2:$B$5,0)*1),settings!$G$11:$G$14,0))))),"00.000")," (",TEXT((INDEX(settings!$J$11:$J$14,MATCH(INDEX(support!$A$2:$A$5,MATCH(prices!$B5,support!$B$2:$B$5,0)*1),settings!$G$11:$G$14,0))),"00%"),")"),"") -> 12.600 (00%) | L5: =IF($H5<>"",IF($J5<>"",SUM(LEFT($H5,6)-LEFT($J5,6)),""),"") -> 1.622 | M5: =IF($I5<>"",IF($K5<>"",SUM(LEFT($I5,6)-LEFT($K5,6)),""),"") -> 5.4 | N5: =IF(H5<>"",IF(J5<>"",SUM(SUM(LEFT($H5,6)*0.975)-SUM(LEFT($J5,6)*1.025)),""),"") -> 1.41945 | O5: =IF($I5<>"",IF($K5<>"",SUM(SUM(LEFT($I5,6)*0.975)-SUM(LEFT($K5,6)*1.025)),""),"") -> 4.635 | P5: =IF($H5<>"",IF($J5<>"",SUM(SUM(LEFT($H5,6)*0.965)-SUM(LEFT($J5,6)*1.035)),""),"") -> 1.33843 | Q5: =IF($I5<>"",IF($K5<>"",SUM(SUM(LEFT($I5,6)*0.965)-SUM(LEFT($K5,6)*1.035)),""),"") -> 4.329 | S5: desired card you want to check from the CardsMTGO3 sheet
H6: =IF($D6<>"",CONCATENATE(TEXT(($D6*(1+(INDEX(settings!$E$4:$E$7,MATCH(INDEX(support!$A$2:$A$5,MATCH(prices!$B6,support!$B$2:$B$5,0)*1),settings!$B$4:$B$7,0))))),"00.000")," (",TEXT((INDEX(settings!$E$4:$E$7,MATCH(INDEX(support!$A$2:$A$5,MATCH(prices!$B6,support!$B$2:$B$5,0)*1),settings!$B$4:$B$7,0))),"00%"),")"),"") ->  | I6: =IF($E6<>"",CONCATENATE(TEXT(($E6*(1+(INDEX(settings!$E$11:$E$14,MATCH(INDEX(support!$A$2:$A$5,MATCH(prices!$B6,support!$B$2:$B$5,0)*1),settings!$B$11:$B$14,0))))),"00.000")," (",TEXT((INDEX(settings!$E$11:$E$14,MATCH(INDEX(support!$A$2:$A$5,MATCH(prices!$B6,support!$B$2:$B$5,0)*1),settings!$B$11:$B$14,0))),"00%"),")"),"") ->  | J6: =IF($F6<>"",CONCATENATE(TEXT(($F6*(1+(INDEX(settings!$J$4:$J$7,MATCH(INDEX(support!$A$2:$A$5,MATCH(prices!$B6,support!$B$2:$B$5,0)*1),settings!$G$4:$G$7,0))))),"00.000")," (",TEXT((INDEX(settings!$J$4:$J$7,MATCH(INDEX(support!$A$2:$A$5,MATCH(prices!$B6,support!$B$2:$B$5,0)*1),settings!$G$4:$G$7,0))),"00%"),")"),"") ->  | K6: =IF($G6<>"",CONCATENATE(TEXT(($G6*(1+(INDEX(settings!$J$11:$J$14,MATCH(INDEX(support!$A$2:$A$5,MATCH(prices!$B6,support!$B$2:$B$5,0)*1),settings!$G$11:$G$14,0))))),"00.000")," (",TEXT((INDEX(settings!$J$11:$J$14,MATCH(INDEX(support!$A$2:$A$5,MATCH(prices!$B6,support!$B$2:$B$5,0)*1),settings!$G$11:$G$14,0))),"00%"),")"),"") ->  | L6: =IF($H6<>"",IF($J6<>"",SUM(LEFT($H6,6)-LEFT($J6,6)),""),"") ->  | M6: =IF($I6<>"",IF($K6<>"",SUM(LEFT($I6,6)-LEFT($K6,6)),""),"") ->  | N6: =IF(H6<>"",IF(J6<>"",SUM(SUM(LEFT($H6,6)*0.975)-SUM(LEFT($J6,6)*1.025)),""),"") ->  | O6: =IF($I6<>"",IF($K6<>"",SUM(SUM(LEFT($I6,6)*0.975)-SUM(LEFT($K6,6)*1.025)),""),"") ->  | P6: =IF($H6<>"",IF($J6<>"",SUM(SUM(LEFT($H6,6)*0.965)-SUM(LEFT($J6,6)*1.035)),""),"") ->  | Q6: =IF($I6<>"",IF($K6<>"",SUM(SUM(LEFT($I6,6)*0.965)-SUM(LEFT($K6,6)*1.035)),""),"") ->  | S6: 2. Right click the next free SET cell below the lastly inserted row on this sheet
H7: =IF($D7<>"",CONCATENATE(TEXT(($D7*(1+(INDEX(settings!$E$4:$E$7,MATCH(INDEX(support!$A$2:$A$5,MATCH(prices!$B7,support!$B$2:$B$5,0)*1),settings!$B$4:$B$7,0))))),"00.000")," (",TEXT((INDEX(settings!$E$4:$E$7,MATCH(INDEX(support!$A$2:$A$5,MATCH(prices!$B7,support!$B$2:$B$5,0)*1),settings!$B$4:$B$7,0))),"00%"),")"),"") ->  | I7: =IF($E7<>"",CONCATENATE(TEXT(($E7*(1+(INDEX(settings!$E$11:$E$14,MATCH(INDEX(support!$A$2:$A$5,MATCH(prices!$B7,support!$B$2:$B$5,0)*1),settings!$B$11:$B$14,0))))),"00.000")," (",TEXT((INDEX(settings!$E$11:$E$14,MATCH(INDEX(support!$A$2:$A$5,MATCH(prices!$B7,support!$B$2:$B$5,0)*1),settings!$B$11:$B$14,0))),"00%"),")"),"") ->  | J7: =IF($F7<>"",CONCATENATE(TEXT(($F7*(1+(INDEX(settings!$J$4:$J$7,MATCH(INDEX(support!$A$2:$A$5,MATCH(prices!$B7,support!$B$2:$B$5,0)*1),settings!$G$4:$G$7,0))))),"00.000")," (",TEXT((INDEX(settings!$J$4:$J$7,MATCH(INDEX(support!$A$2:$A$5,MATCH(prices!$B7,support!$B$2:$B$5,0)*1),settings!$G$4:$G$7,0))),"00%"),")"),"") ->  | K7: =IF($G7<>"",CONCATENATE(TEXT(($G7*(1+(INDEX(settings!$J$11:$J$14,MATCH(INDEX(support!$A$2:$A$5,MATCH(prices!$B7,support!$B$2:$B$5,0)*1),settings!$G$11:$G$14,0))))),"00.000")," (",TEXT((INDEX(settings!$J$11:$J$14,MATCH(INDEX(support!$A$2:$A$5,MATCH(prices!$B7,support!$B$2:$B$5,0)*1),settings!$G$11:$G$14,0))),"00%"),")"),"") ->  | S7: 3. Select the Paste Values option; Cells should update with prices
H8: =IF($D8<>"",CONCATENATE(TEXT(($D8*(1+(INDEX(settings!$E$4:$E$7,MATCH(INDEX(support!$A$2:$A$5,MATCH(prices!$B8,support!$B$2:$B$5,0)*1),settings!$B$4:$B$7,0))))),"00.000")," (",TEXT((INDEX(settings!$E$4:$E$7,MATCH(INDEX(support!$A$2:$A$5,MATCH(prices!$B8,support!$B$2:$B$5,0)*1),settings!$B$4:$B$7,0))),"00%"),")"),"") ->  | I8: =IF($E8<>"",CONCATENATE(TEXT(($E8*(1+(INDEX(settings!$E$11:$E$14,MATCH(INDEX(support!$A$2:$A$5,MATCH(prices!$B8,support!$B$2:$B$5,0)*1),settings!$B$11:$B$14,0))))),"00.000")," (",TEXT((INDEX(settings!$E$11:$E$14,MATCH(INDEX(support!$A$2:$A$5,MATCH(prices!$B8,support!$B$2:$B$5,0)*1),settings!$B$11:$B$14,0))),"00%"),")"),"") ->  | J8: =IF($F8<>"",CONCATENATE(TEXT(($F8*(1+(INDEX(settings!$J$4:$J$7,MATCH(INDEX(support!$A$2:$A$5,MATCH(prices!$B8,support!$B$2:$B$5,0)*1),settings!$G$4:$G$7,0))))),"00.000")," (",TEXT((INDEX(settings!$J$4:$J$7,MATCH(INDEX(support!$A$2:$A$5,MATCH(prices!$B8,support!$B$2:$B$5,0)*1),settings!$G$4:$G$7,0))),"00%"),")"),"") ->  | K8: =IF($G8<>"",CONCATENATE(TEXT(($G8*(1+(INDEX(settings!$J$11:$J$14,MATCH(INDEX(support!$A$2:$A$5,MATCH(prices!$B8,support!$B$2:$B$5,0)*1),settings!$G$11:$G$14,0))))),"00.000")," (",TEXT((INDEX(settings!$J$11:$J$14,MATCH(INDEX(support!$A$2:$A$5,MATCH(prices!$B8,support!$B$2:$B$5,0)*1),settings!$G$11:$G$14,0))),"00%"),")"),"") -> 
H9: =IF($D9<>"",CONCATENATE(TEXT(($D9*(1+(INDEX(settings!$E$4:$E$7,MATCH(INDEX(support!$A$2:$A$5,MATCH(prices!$B9,support!$B$2:$B$5,0)*1),settings!$B$4:$B$7,0))))),"00.000")," (",TEXT((INDEX(settings!$E$4:$E$7,MATCH(INDEX(support!$A$2:$A$5,MATCH(prices!$B9,support!$B$2:$B$5,0)*1),settings!$B$4:$B$7,0))),"00%"),")"),"") ->  | I9: =IF($E9<>"",CONCATENATE(TEXT(($E9*(1+(INDEX(settings!$E$11:$E$14,MATCH(INDEX(support!$A$2:$A$5,MATCH(prices!$B9,support!$B$2:$B$5,0)*1),settings!$B$11:$B$14,0))))),"00.000")," (",TEXT((INDEX(settings!$E$11:$E$14,MATCH(INDEX(support!$A$2:$A$5,MATCH(prices!$B9,support!$B$2:$B$5,0)*1),settings!$B$11:$B$14,0))),"00%"),")"),"") ->  | J9: =IF($F9<>"",CONCATENATE(TEXT(($F9*(1+(INDEX(settings!$J$4:$J$7,MATCH(INDEX(support!$A$2:$A$5,MATCH(prices!$B9,support!$B$2:$B$5,0)*1),settings!$G$4:$G$7,0))))),"00.000")," (",TEXT((INDEX(settings!$J$4:$J$7,MATCH(INDEX(support!$A$2:$A$5,MATCH(prices!$B9,support!$B$2:$B$5,0)*1),settings!$G$4:$G$7,0))),"00%"),")"),"") ->  | K9: =IF($G9<>"",CONCATENATE(TEXT(($G9*(1+(INDEX(settings!$J$11:$J$14,MATCH(INDEX(support!$A$2:$A$5,MATCH(prices!$B9,support!$B$2:$B$5,0)*1),settings!$G$11:$G$14,0))))),"00.000")," (",TEXT((INDEX(settings!$J$11:$J$14,MATCH(INDEX(support!$A$2:$A$5,MATCH(prices!$B9,support!$B$2:$B$5,0)*1),settings!$G$11:$G$14,0))),"00%"),")"),"") ->  | S9: IMPORTANT
H10: =IF($D10<>"",CONCATENATE(TEXT(($D10*(1+(INDEX(settings!$E$4:$E$7,MATCH(INDEX(support!$A$2:$A$5,MATCH(prices!$B10,support!$B$2:$B$5,0)*1),settings!$B$4:$B$7,0))))),"00.000")," (",TEXT((INDEX(settings!$E$4:$E$7,MATCH(INDEX(support!$A$2:$A$5,MATCH(prices!$B10,support!$B$2:$B$5,0)*1),settings!$B$4:$B$7,0))),"00%"),")"),"") ->  | I10: =IF($E10<>"",CONCATENATE(TEXT(($E10*(1+(INDEX(settings!$E$11:$E$14,MATCH(INDEX(support!$A$2:$A$5,MATCH(prices!$B10,support!$B$2:$B$5,0)*1),settings!$B$11:$B$14,0))))),"00.000")," (",TEXT((INDEX(settings!$E$11:$E$14,MATCH(INDEX(support!$A$2:$A$5,MATCH(prices!$B10,support!$B$2:$B$5,0)*1),settings!$B$11:$B$14,0))),"00%"),")"),"") ->  | J10: =IF($F10<>"",CONCATENATE(TEXT(($F10*(1+(INDEX(settings!$J$4:$J$7,MATCH(INDEX(support!$A$2:$A$5,MATCH(prices!$B10,support!$B$2:$B$5,0)*1),settings!$G$4:$G$7,0))))),"00.000")," (",TEXT((INDEX(settings!$J$4:$J$7,MATCH(INDEX(support!$A$2:$A$5,MATCH(prices!$B10,support!$B$2:$B$5,0)*1),settings!$G$4:$G$7,0))),"00%"),")"),"") ->  | K10: =IF($G10<>"",CONCATENATE(TEXT(($G10*(1+(INDEX(settings!$J$11:$J$14,MATCH(INDEX(support!$A$2:$A$5,MATCH(prices!$B10,support!$B$2:$B$5,0)*1),settings!$G$11:$G$14,0))))),"00.000")," (",TEXT((INDEX(settings!$J$11:$J$14,MATCH(INDEX(support!$A$2:$A$5,MATCH(prices!$B10,support!$B$2:$B$5,0)*1),settings!$G$11:$G$14,0))),"00%"),")"),"") ->  | S10: The prices quoted on this sheet will ONLY be accurate up to the last time you updated the CardsMTGO3.txt file in the C:\ directory AND clicked the Process Prices button under the SETTINGS tab.
H11: =IF($D11<>"",CONCATENATE(TEXT(($D11*(1+(INDEX(settings!$E$4:$E$7,MATCH(INDEX(support!$A$2:$A$5,MATCH(prices!$B11,support!$B$2:$B$5,0)*1),settings!$B$4:$B$7,0))))),"00.000")," (",TEXT((INDEX(settings!$E$4:$E$7,MATCH(INDEX(support!$A$2:$A$5,MATCH(prices!$B11,support!$B$2:$B$5,0)*1),settings!$B$4:$B$7,0))),"00%"),")"),"") ->  | I11: =IF($E11<>"",CONCATENATE(TEXT(($E11*(1+(INDEX(settings!$E$11:$E$14,MATCH(INDEX(support!$A$2:$A$5,MATCH(prices!$B11,support!$B$2:$B$5,0)*1),settings!$B$11:$B$14,0))))),"00.000")," (",TEXT((INDEX(settings!$E$11:$E$14,MATCH(INDEX(support!$A$2:$A$5,MATCH(prices!$B11,support!$B$2:$B$5,0)*1),settings!$B$11:$B$14,0))),"00%"),")"),"") ->  | J11: =IF($F11<>"",CONCATENATE(TEXT(($F11*(1+(INDEX(settings!$J$4:$J$7,MATCH(INDEX(support!$A$2:$A$5,MATCH(prices!$B11,support!$B$2:$B$5,0)*1),settings!$G$4:$G$7,0))))),"00.000")," (",TEXT((INDEX(settings!$J$4:$J$7,MATCH(INDEX(support!$A$2:$A$5,MATCH(prices!$B11,support!$B$2:$B$5,0)*1),settings!$G$4:$G$7,0))),"00%"),")"),"") ->  | K11: =IF($G11<>"",CONCATENATE(TEXT(($G11*(1+(INDEX(settings!$J$11:$J$14,MATCH(INDEX(support!$A$2:$A$5,MATCH(prices!$B11,support!$B$2:$B$5,0)*1),settings!$G$11:$G$14,0))))),"00.000")," (",TEXT((INDEX(settings!$J$11:$J$14,MATCH(INDEX(support!$A$2:$A$5,MATCH(prices!$B11,support!$B$2:$B$5,0)*1),settings!$G$11:$G$14,0))),"00%"),")"),"") -> 
H12: =IF($D12<>"",CONCATENATE(TEXT(($D12*(1+(INDEX(settings!$E$4:$E$7,MATCH(INDEX(support!$A$2:$A$5,MATCH(prices!$B12,support!$B$2:$B$5,0)*1),settings!$B$4:$B$7,0))))),"00.000")," (",TEXT((INDEX(settings!$E$4:$E$7,MATCH(INDEX(support!$A$2:$A$5,MATCH(prices!$B12,support!$B$2:$B$5,0)*1),settings!$B$4:$B$7,0))),"00%"),")"),"") ->  | I12: =IF($E12<>"",CONCATENATE(TEXT(($E12*(1+(INDEX(settings!$E$11:$E$14,MATCH(INDEX(support!$A$2:$A$5,MATCH(prices!$B12,support!$B$2:$B$5,0)*1),settings!$B$11:$B$14,0))))),"00.000")," (",TEXT((INDEX(settings!$E$11:$E$14,MATCH(INDEX(support!$A$2:$A$5,MATCH(prices!$B12,support!$B$2:$B$5,0)*1),settings!$B$11:$B$14,0))),"00%"),")"),"") ->  | J12: =IF($F12<>"",CONCATENATE(TEXT(($F12*(1+(INDEX(settings!$J$4:$J$7,MATCH(INDEX(support!$A$2:$A$5,MATCH(prices!$B12,support!$B$2:$B$5,0)*1),settings!$G$4:$G$7,0))))),"00.000")," (",TEXT((INDEX(settings!$J$4:$J$7,MATCH(INDEX(support!$A$2:$A$5,MATCH(prices!$B12,support!$B$2:$B$5,0)*1),settings!$G$4:$G$7,0))),"00%"),")"),"") ->  | K12: =IF($G12<>"",CONCATENATE(TEXT(($G12*(1+(INDEX(settings!$J$11:$J$14,MATCH(INDEX(support!$A$2:$A$5,MATCH(prices!$B12,support!$B$2:$B$5,0)*1),settings!$G$11:$G$14,0))))),"00.000")," (",TEXT((INDEX(settings!$J$11:$J$14,MATCH(INDEX(support!$A$2:$A$5,MATCH(prices!$B12,support!$B$2:$B$5,0)*1),settings!$G$11:$G$14,0))),"00%"),")"),"") -> 
H13: =IF($D13<>"",CONCATENATE(TEXT(($D13*(1+(INDEX(settings!$E$4:$E$7,MATCH(INDEX(support!$A$2:$A$5,MATCH(prices!$B13,support!$B$2:$B$5,0)*1),settings!$B$4:$B$7,0))))),"00.000")," (",TEXT((INDEX(settings!$E$4:$E$7,MATCH(INDEX(support!$A$2:$A$5,MATCH(prices!$B13,support!$B$2:$B$5,0)*1),settings!$B$4:$B$7,0))),"00%"),")"),"") ->  | I13: =IF($E13<>"",CONCATENATE(TEXT(($E13*(1+(INDEX(settings!$E$11:$E$14,MATCH(INDEX(support!$A$2:$A$5,MATCH(prices!$B13,support!$B$2:$B$5,0)*1),settings!$B$11:$B$14,0))))),"00.000")," (",TEXT((INDEX(settings!$E$11:$E$14,MATCH(INDEX(support!$A$2:$A$5,MATCH(prices!$B13,support!$B$2:$B$5,0)*1),settings!$B$11:$B$14,0))),"00%"),")"),"") ->  | J13: =IF($F13<>"",CONCATENATE(TEXT(($F13*(1+(INDEX(settings!$J$4:$J$7,MATCH(INDEX(support!$A$2:$A$5,MATCH(prices!$B13,support!$B$2:$B$5,0)*1),settings!$G$4:$G$7,0))))),"00.000")," (",TEXT((INDEX(settings!$J$4:$J$7,MATCH(INDEX(support!$A$2:$A$5,MATCH(prices!$B13,support!$B$2:$B$5,0)*1),settings!$G$4:$G$7,0))),"00%"),")"),"") ->  | K13: =IF($G13<>"",CONCATENATE(TEXT(($G13*(1+(INDEX(settings!$J$11:$J$14,MATCH(INDEX(support!$A$2:$A$5,MATCH(prices!$B13,support!$B$2:$B$5,0)*1),settings!$G$11:$G$14,0))))),"00.000")," (",TEXT((INDEX(settings!$J$11:$J$14,MATCH(INDEX(support!$A$2:$A$5,MATCH(prices!$B13,support!$B$2:$B$5,0)*1),settings!$G$11:$G$14,0))),"00%"),")"),"") -> 
H14: =IF($D14<>"",CONCATENATE(TEXT(($D14*(1+(INDEX(settings!$E$4:$E$7,MATCH(INDEX(support!$A$2:$A$5,MATCH(prices!$B14,support!$B$2:$B$5,0)*1),settings!$B$4:$B$7,0))))),"00.000")," (",TEXT((INDEX(settings!$E$4:$E$7,MATCH(INDEX(support!$A$2:$A$5,MATCH(prices!$B14,support!$B$2:$B$5,0)*1),settings!$B$4:$B$7,0))),"00%"),")"),"") ->  | I14: =IF($E14<>"",CONCATENATE(TEXT(($E14*(1+(INDEX(settings!$E$11:$E$14,MATCH(INDEX(support!$A$2:$A$5,MATCH(prices!$B14,support!$B$2:$B$5,0)*1),settings!$B$11:$B$14,0))))),"00.000")," (",TEXT((INDEX(settings!$E$11:$E$14,MATCH(INDEX(support!$A$2:$A$5,MATCH(prices!$B14,support!$B$2:$B$5,0)*1),settings!$B$11:$B$14,0))),"00%"),")"),"") ->  | J14: =IF($F14<>"",CONCATENATE(TEXT(($F14*(1+(INDEX(settings!$J$4:$J$7,MATCH(INDEX(support!$A$2:$A$5,MATCH(prices!$B14,support!$B$2:$B$5,0)*1),settings!$G$4:$G$7,0))))),"00.000")," (",TEXT((INDEX(settings!$J$4:$J$7,MATCH(INDEX(support!$A$2:$A$5,MATCH(prices!$B14,support!$B$2:$B$5,0)*1),settings!$G$4:$G$7,0))),"00%"),")"),"") ->  | K14: =IF($G14<>"",CONCATENATE(TEXT(($G14*(1+(INDEX(settings!$J$11:$J$14,MATCH(INDEX(support!$A$2:$A$5,MATCH(prices!$B14,support!$B$2:$B$5,0)*1),settings!$G$11:$G$14,0))))),"00.000")," (",TEXT((INDEX(settings!$J$11:$J$14,MATCH(INDEX(support!$A$2:$A$5,MATCH(prices!$B14,support!$B$2:$B$5,0)*1),settings!$G$11:$G$14,0))),"00%"),")"),"") -> 
H15: =IF($D15<>"",CONCATENATE(TEXT(($D15*(1+(INDEX(settings!$E$4:$E$7,MATCH(INDEX(support!$A$2:$A$5,MATCH(prices!$B15,support!$B$2:$B$5,0)*1),settings!$B$4:$B$7,0))))),"00.000")," (",TEXT((INDEX(settings!$E$4:$E$7,MATCH(INDEX(support!$A$2:$A$5,MATCH(prices!$B15,support!$B$2:$B$5,0)*1),settings!$B$4:$B$7,0))),"00%"),")"),"") ->  | I15: =IF($E15<>"",CONCATENATE(TEXT(($E15*(1+(INDEX(settings!$E$11:$E$14,MATCH(INDEX(support!$A$2:$A$5,MATCH(prices!$B15,support!$B$2:$B$5,0)*1),settings!$B$11:$B$14,0))))),"00.000")," (",TEXT((INDEX(settings!$E$11:$E$14,MATCH(INDEX(support!$A$2:$A$5,MATCH(prices!$B15,support!$B$2:$B$5,0)*1),settings!$B$11:$B$14,0))),"00%"),")"),"") ->  | J15: =IF($F15<>"",CONCATENATE(TEXT(($F15*(1+(INDEX(settings!$J$4:$J$7,MATCH(INDEX(support!$A$2:$A$5,MATCH(prices!$B15,support!$B$2:$B$5,0)*1),settings!$G$4:$G$7,0))))),"00.000")," (",TEXT((INDEX(settings!$J$4:$J$7,MATCH(INDEX(support!$A$2:$A$5,MATCH(prices!$B15,support!$B$2:$B$5,0)*1),settings!$G$4:$G$7,0))),"00%"),")"),"") ->  | K15: =IF($G15<>"",CONCATENATE(TEXT(($G15*(1+(INDEX(settings!$J$11:$J$14,MATCH(INDEX(support!$A$2:$A$5,MATCH(prices!$B15,support!$B$2:$B$5,0)*1),settings!$G$11:$G$14,0))))),"00.000")," (",TEXT((INDEX(settings!$J$11:$J$14,MATCH(INDEX(support!$A$2:$A$5,MATCH(prices!$B15,support!$B$2:$B$5,0)*1),settings!$G$11:$G$14,0))),"00%"),")"),"") -> 
H16: =IF($D16<>"",CONCATENATE(TEXT(($D16*(1+(INDEX(settings!$E$4:$E$7,MATCH(INDEX(support!$A$2:$A$5,MATCH(prices!$B16,support!$B$2:$B$5,0)*1),settings!$B$4:$B$7,0))))),"00.000")," (",TEXT((INDEX(settings!$E$4:$E$7,MATCH(INDEX(support!$A$2:$A$5,MATCH(prices!$B16,support!$B$2:$B$5,0)*1),settings!$B$4:$B$7,0))),"00%"),")"),"") ->  | I16: =IF($E16<>"",CONCATENATE(TEXT(($E16*(1+(INDEX(settings!$E$11:$E$14,MATCH(INDEX(support!$A$2:$A$5,MATCH(prices!$B16,support!$B$2:$B$5,0)*1),settings!$B$11:$B$14,0))))),"00.000")," (",TEXT((INDEX(settings!$E$11:$E$14,MATCH(INDEX(support!$A$2:$A$5,MATCH(prices!$B16,support!$B$2:$B$5,0)*1),settings!$B$11:$B$14,0))),"00%"),")"),"") ->  | J16: =IF($F16<>"",CONCATENATE(TEXT(($F16*(1+(INDEX(settings!$J$4:$J$7,MATCH(INDEX(support!$A$2:$A$5,MATCH(prices!$B16,support!$B$2:$B$5,0)*1),settings!$G$4:$G$7,0))))),"00.000")," (",TEXT((INDEX(settings!$J$4:$J$7,MATCH(INDEX(support!$A$2:$A$5,MATCH(prices!$B16,support!$B$2:$B$5,0)*1),settings!$G$4:$G$7,0))),"00%"),")"),"") ->  | K16: =IF($G16<>"",CONCATENATE(TEXT(($G16*(1+(INDEX(settings!$J$11:$J$14,MATCH(INDEX(support!$A$2:$A$5,MATCH(prices!$B16,support!$B$2:$B$5,0)*1),settings!$G$11:$G$14,0))))),"00.000")," (",TEXT((INDEX(settings!$J$11:$J$14,MATCH(INDEX(support!$A$2:$A$5,MATCH(prices!$B16,support!$B$2:$B$5,0)*1),settings!$G$11:$G$14,0))),"00%"),")"),"") -> 
H17: =IF($D17<>"",CONCATENATE(TEXT(($D17*(1+(INDEX(settings!$E$4:$E$7,MATCH(INDEX(support!$A$2:$A$5,MATCH(prices!$B17,support!$B$2:$B$5,0)*1),settings!$B$4:$B$7,0))))),"00.000")," (",TEXT((INDEX(settings!$E$4:$E$7,MATCH(INDEX(support!$A$2:$A$5,MATCH(prices!$B17,support!$B$2:$B$5,0)*1),settings!$B$4:$B$7,0))),"00%"),")"),"") ->  | I17: =IF($E17<>"",CONCATENATE(TEXT(($E17*(1+(INDEX(settings!$E$11:$E$14,MATCH(INDEX(support!$A$2:$A$5,MATCH(prices!$B17,support!$B$2:$B$5,0)*1),settings!$B$11:$B$14,0))))),"00.000")," (",TEXT((INDEX(settings!$E$11:$E$14,MATCH(INDEX(support!$A$2:$A$5,MATCH(prices!$B17,support!$B$2:$B$5,0)*1),settings!$B$11:$B$14,0))),"00%"),")"),"") ->  | J17: =IF($F17<>"",CONCATENATE(TEXT(($F17*(1+(INDEX(settings!$J$4:$J$7,MATCH(INDEX(support!$A$2:$A$5,MATCH(prices!$B17,support!$B$2:$B$5,0)*1),settings!$G$4:$G$7,0))))),"00.000")," (",TEXT((INDEX(settings!$J$4:$J$7,MATCH(INDEX(support!$A$2:$A$5,MATCH(prices!$B17,support!$B$2:$B$5,0)*1),settings!$G$4:$G$7,0))),"00%"),")"),"") ->  | K17: =IF($G17<>"",CONCATENATE(TEXT(($G17*(1+(INDEX(settings!$J$11:$J$14,MATCH(INDEX(support!$A$2:$A$5,MATCH(prices!$B17,support!$B$2:$B$5,0)*1),settings!$G$11:$G$14,0))))),"00.000")," (",TEXT((INDEX(settings!$J$11:$J$14,MATCH(INDEX(support!$A$2:$A$5,MATCH(prices!$B17,support!$B$2:$B$5,0)*1),settings!$G$11:$G$14,0))),"00%"),")"),"") -> 
H18: =IF($D18<>"",CONCATENATE(TEXT(($D18*(1+(INDEX(settings!$E$4:$E$7,MATCH(INDEX(support!$A$2:$A$5,MATCH(prices!$B18,support!$B$2:$B$5,0)*1),settings!$B$4:$B$7,0))))),"00.000")," (",TEXT((INDEX(settings!$E$4:$E$7,MATCH(INDEX(support!$A$2:$A$5,MATCH(prices!$B18,support!$B$2:$B$5,0)*1),settings!$B$4:$B$7,0))),"00%"),")"),"") ->  | I18: =IF($E18<>"",CONCATENATE(TEXT(($E18*(1+(INDEX(settings!$E$11:$E$14,MATCH(INDEX(support!$A$2:$A$5,MATCH(prices!$B18,support!$B$2:$B$5,0)*1),settings!$B$11:$B$14,0))))),"00.000")," (",TEXT((INDEX(settings!$E$11:$E$14,MATCH(INDEX(support!$A$2:$A$5,MATCH(prices!$B18,support!$B$2:$B$5,0)*1),settings!$B$11:$B$14,0))),"00%"),")"),"") ->  | J18: =IF($F18<>"",CONCATENATE(TEXT(($F18*(1+(INDEX(settings!$J$4:$J$7,MATCH(INDEX(support!$A$2:$A$5,MATCH(prices!$B18,support!$B$2:$B$5,0)*1),settings!$G$4:$G$7,0))))),"00.000")," (",TEXT((INDEX(settings!$J$4:$J$7,MATCH(INDEX(support!$A$2:$A$5,MATCH(prices!$B18,support!$B$2:$B$5,0)*1),settings!$G$4:$G$7,0))),"00%"),")"),"") ->  | K18: =IF($G18<>"",CONCATENATE(TEXT(($G18*(1+(INDEX(settings!$J$11:$J$14,MATCH(INDEX(support!$A$2:$A$5,MATCH(prices!$B18,support!$B$2:$B$5,0)*1),settings!$G$11:$G$14,0))))),"00.000")," (",TEXT((INDEX(settings!$J$11:$J$14,MATCH(INDEX(support!$A$2:$A$5,MATCH(prices!$B18,support!$B$2:$B$5,0)*1),settings!$G$11:$G$14,0))),"00%"),")"),"") -> 
H19: =IF($D19<>"",CONCATENATE(TEXT(($D19*(1+(INDEX(settings!$E$4:$E$7,MATCH(INDEX(support!$A$2:$A$5,MATCH(prices!$B19,support!$B$2:$B$5,0)*1),settings!$B$4:$B$7,0))))),"00.000")," (",TEXT((INDEX(settings!$E$4:$E$7,MATCH(INDEX(support!$A$2:$A$5,MATCH(prices!$B19,support!$B$2:$B$5,0)*1),settings!$B$4:$B$7,0))),"00%"),")"),"") ->  | I19: =IF($E19<>"",CONCATENATE(TEXT(($E19*(1+(INDEX(settings!$E$11:$E$14,MATCH(INDEX(support!$A$2:$A$5,MATCH(prices!$B19,support!$B$2:$B$5,0)*1),settings!$B$11:$B$14,0))))),"00.000")," (",TEXT((INDEX(settings!$E$11:$E$14,MATCH(INDEX(support!$A$2:$A$5,MATCH(prices!$B19,support!$B$2:$B$5,0)*1),settings!$B$11:$B$14,0))),"00%"),")"),"") ->  | J19: =IF($F19<>"",CONCATENATE(TEXT(($F19*(1+(INDEX(settings!$J$4:$J$7,MATCH(INDEX(support!$A$2:$A$5,MATCH(prices!$B19,support!$B$2:$B$5,0)*1),settings!$G$4:$G$7,0))))),"00.000")," (",TEXT((INDEX(settings!$J$4:$J$7,MATCH(INDEX(support!$A$2:$A$5,MATCH(prices!$B19,support!$B$2:$B$5,0)*1),settings!$G$4:$G$7,0))),"00%"),")"),"") ->  | K19: =IF($G19<>"",CONCATENATE(TEXT(($G19*(1+(INDEX(settings!$J$11:$J$14,MATCH(INDEX(support!$A$2:$A$5,MATCH(prices!$B19,support!$B$2:$B$5,0)*1),settings!$G$11:$G$14,0))))),"00.000")," (",TEXT((INDEX(settings!$J$11:$J$14,MATCH(INDEX(support!$A$2:$A$5,MATCH(prices!$B19,support!$B$2:$B$5,0)*1),settings!$G$11:$G$14,0))),"00%"),")"),"") -> 
H20: =IF($D20<>"",CONCATENATE(TEXT(($D20*(1+(INDEX(settings!$E$4:$E$7,MATCH(INDEX(support!$A$2:$A$5,MATCH(prices!$B20,support!$B$2:$B$5,0)*1),settings!$B$4:$B$7,0))))),"00.000")," (",TEXT((INDEX(settings!$E$4:$E$7,MATCH(INDEX(support!$A$2:$A$5,MATCH(prices!$B20,support!$B$2:$B$5,0)*1),settings!$B$4:$B$7,0))),"00%"),")"),"") ->  | I20: =IF($E20<>"",CONCATENATE(TEXT(($E20*(1+(INDEX(settings!$E$11:$E$14,MATCH(INDEX(support!$A$2:$A$5,MATCH(prices!$B20,support!$B$2:$B$5,0)*1),settings!$B$11:$B$14,0))))),"00.000")," (",TEXT((INDEX(settings!$E$11:$E$14,MATCH(INDEX(support!$A$2:$A$5,MATCH(prices!$B20,support!$B$2:$B$5,0)*1),settings!$B$11:$B$14,0))),"00%"),")"),"") ->  | J20: =IF($F20<>"",CONCATENATE(TEXT(($F20*(1+(INDEX(settings!$J$4:$J$7,MATCH(INDEX(support!$A$2:$A$5,MATCH(prices!$B20,support!$B$2:$B$5,0)*1),settings!$G$4:$G$7,0))))),"00.000")," (",TEXT((INDEX(settings!$J$4:$J$7,MATCH(INDEX(support!$A$2:$A$5,MATCH(prices!$B20,support!$B$2:$B$5,0)*1),settings!$G$4:$G$7,0))),"00%"),")"),"") ->  | K20: =IF($G20<>"",CONCATENATE(TEXT(($G20*(1+(INDEX(settings!$J$11:$J$14,MATCH(INDEX(support!$A$2:$A$5,MATCH(prices!$B20,support!$B$2:$B$5,0)*1),settings!$G$11:$G$14,0))))),"00.000")," (",TEXT((INDEX(settings!$J$11:$J$14,MATCH(INDEX(support!$A$2:$A$5,MATCH(prices!$B20,support!$B$2:$B$5,0)*1),settings!$G$11:$G$14,0))),"00%"),")"),"") -> 
H21: =IF($D21<>"",CONCATENATE(TEXT(($D21*(1+(INDEX(settings!$E$4:$E$7,MATCH(INDEX(support!$A$2:$A$5,MATCH(prices!$B21,support!$B$2:$B$5,0)*1),settings!$B$4:$B$7,0))))),"00.000")," (",TEXT((INDEX(settings!$E$4:$E$7,MATCH(INDEX(support!$A$2:$A$5,MATCH(prices!$B21,support!$B$2:$B$5,0)*1),settings!$B$4:$B$7,0))),"00%"),")"),"") ->  | I21: =IF($E21<>"",CONCATENATE(TEXT(($E21*(1+(INDEX(settings!$E$11:$E$14,MATCH(INDEX(support!$A$2:$A$5,MATCH(prices!$B21,support!$B$2:$B$5,0)*1),settings!$B$11:$B$14,0))))),"00.000")," (",TEXT((INDEX(settings!$E$11:$E$14,MATCH(INDEX(support!$A$2:$A$5,MATCH(prices!$B21,support!$B$2:$B$5,0)*1),settings!$B$11:$B$14,0))),"00%"),")"),"") ->  | J21: =IF($F21<>"",CONCATENATE(TEXT(($F21*(1+(INDEX(settings!$J$4:$J$7,MATCH(INDEX(support!$A$2:$A$5,MATCH(prices!$B21,support!$B$2:$B$5,0)*1),settings!$G$4:$G$7,0))))),"00.000")," (",TEXT((INDEX(settings!$J$4:$J$7,MATCH(INDEX(support!$A$2:$A$5,MATCH(prices!$B21,support!$B$2:$B$5,0)*1),settings!$G$4:$G$7,0))),"00%"),")"),"") ->  | K21: =IF($G21<>"",CONCATENATE(TEXT(($G21*(1+(INDEX(settings!$J$11:$J$14,MATCH(INDEX(support!$A$2:$A$5,MATCH(prices!$B21,support!$B$2:$B$5,0)*1),settings!$G$11:$G$14,0))))),"00.000")," (",TEXT((INDEX(settings!$J$11:$J$14,MATCH(INDEX(support!$A$2:$A$5,MATCH(prices!$B21,support!$B$2:$B$5,0)*1),settings!$G$11:$G$14,0))),"00%"),")"),"") -> 
H22: =IF($D22<>"",CONCATENATE(TEXT(($D22*(1+(INDEX(settings!$E$4:$E$7,MATCH(INDEX(support!$A$2:$A$5,MATCH(prices!$B22,support!$B$2:$B$5,0)*1),settings!$B$4:$B$7,0))))),"00.000")," (",TEXT((INDEX(settings!$E$4:$E$7,MATCH(INDEX(support!$A$2:$A$5,MATCH(prices!$B22,support!$B$2:$B$5,0)*1),settings!$B$4:$B$7,0))),"00%"),")"),"") ->  | I22: =IF($E22<>"",CONCATENATE(TEXT(($E22*(1+(INDEX(settings!$E$11:$E$14,MATCH(INDEX(support!$A$2:$A$5,MATCH(prices!$B22,support!$B$2:$B$5,0)*1),settings!$B$11:$B$14,0))))),"00.000")," (",TEXT((INDEX(settings!$E$11:$E$14,MATCH(INDEX(support!$A$2:$A$5,MATCH(prices!$B22,support!$B$2:$B$5,0)*1),settings!$B$11:$B$14,0))),"00%"),")"),"") ->  | J22: =IF($F22<>"",CONCATENATE(TEXT(($F22*(1+(INDEX(settings!$J$4:$J$7,MATCH(INDEX(support!$A$2:$A$5,MATCH(prices!$B22,support!$B$2:$B$5,0)*1),settings!$G$4:$G$7,0))))),"00.000")," (",TEXT((INDEX(settings!$J$4:$J$7,MATCH(INDEX(support!$A$2:$A$5,MATCH(prices!$B22,support!$B$2:$B$5,0)*1),settings!$G$4:$G$7,0))),"00%"),")"),"") ->  | K22: =IF($G22<>"",CONCATENATE(TEXT(($G22*(1+(INDEX(settings!$J$11:$J$14,MATCH(INDEX(support!$A$2:$A$5,MATCH(prices!$B22,support!$B$2:$B$5,0)*1),settings!$G$11:$G$14,0))))),"00.000")," (",TEXT((INDEX(settings!$J$11:$J$14,MATCH(INDEX(support!$A$2:$A$5,MATCH(prices!$B22,support!$B$2:$B$5,0)*1),settings!$G$11:$G$14,0))),"00%"),")"),"") -> 
H23: =IF($D23<>"",CONCATENATE(TEXT(($D23*(1+(INDEX(settings!$E$4:$E$7,MATCH(INDEX(support!$A$2:$A$5,MATCH(prices!$B23,support!$B$2:$B$5,0)*1),settings!$B$4:$B$7,0))))),"00.000")," (",TEXT((INDEX(settings!$E$4:$E$7,MATCH(INDEX(support!$A$2:$A$5,MATCH(prices!$B23,support!$B$2:$B$5,0)*1),settings!$B$4:$B$7,0))),"00%"),")"),"") ->  | I23: =IF($E23<>"",CONCATENATE(TEXT(($E23*(1+(INDEX(settings!$E$11:$E$14,MATCH(INDEX(support!$A$2:$A$5,MATCH(prices!$B23,support!$B$2:$B$5,0)*1),settings!$B$11:$B$14,0))))),"00.000")," (",TEXT((INDEX(settings!$E$11:$E$14,MATCH(INDEX(support!$A$2:$A$5,MATCH(prices!$B23,support!$B$2:$B$5,0)*1),settings!$B$11:$B$14,0))),"00%"),")"),"") ->  | J23: =IF($F23<>"",CONCATENATE(TEXT(($F23*(1+(INDEX(settings!$J$4:$J$7,MATCH(INDEX(support!$A$2:$A$5,MATCH(prices!$B23,support!$B$2:$B$5,0)*1),settings!$G$4:$G$7,0))))),"00.000")," (",TEXT((INDEX(settings!$J$4:$J$7,MATCH(INDEX(support!$A$2:$A$5,MATCH(prices!$B23,support!$B$2:$B$5,0)*1),settings!$G$4:$G$7,0))),"00%"),")"),"") ->  | K23: =IF($G23<>"",CONCATENATE(TEXT(($G23*(1+(INDEX(settings!$J$11:$J$14,MATCH(INDEX(support!$A$2:$A$5,MATCH(prices!$B23,support!$B$2:$B$5,0)*1),settings!$G$11:$G$14,0))))),"00.000")," (",TEXT((INDEX(settings!$J$11:$J$14,MATCH(INDEX(support!$A$2:$A$5,MATCH(prices!$B23,support!$B$2:$B$5,0)*1),settings!$G$11:$G$14,0))),"00%"),")"),"") -> 
H24: =IF($D24<>"",CONCATENATE(TEXT(($D24*(1+(INDEX(settings!$E$4:$E$7,MATCH(INDEX(support!$A$2:$A$5,MATCH(prices!$B24,support!$B$2:$B$5,0)*1),settings!$B$4:$B$7,0))))),"00.000")," (",TEXT((INDEX(settings!$E$4:$E$7,MATCH(INDEX(support!$A$2:$A$5,MATCH(prices!$B24,support!$B$2:$B$5,0)*1),settings!$B$4:$B$7,0))),"00%"),")"),"") ->  | I24: =IF($E24<>"",CONCATENATE(TEXT(($E24*(1+(INDEX(settings!$E$11:$E$14,MATCH(INDEX(support!$A$2:$A$5,MATCH(prices!$B24,support!$B$2:$B$5,0)*1),settings!$B$11:$B$14,0))))),"00.000")," (",TEXT((INDEX(settings!$E$11:$E$14,MATCH(INDEX(support!$A$2:$A$5,MATCH(prices!$B24,support!$B$2:$B$5,0)*1),settings!$B$11:$B$14,0))),"00%"),")"),"") ->  | J24: =IF($F24<>"",CONCATENATE(TEXT(($F24*(1+(INDEX(settings!$J$4:$J$7,MATCH(INDEX(support!$A$2:$A$5,MATCH(prices!$B24,support!$B$2:$B$5,0)*1),settings!$G$4:$G$7,0))))),"00.000")," (",TEXT((INDEX(settings!$J$4:$J$7,MATCH(INDEX(support!$A$2:$A$5,MATCH(prices!$B24,support!$B$2:$B$5,0)*1),settings!$G$4:$G$7,0))),"00%"),")"),"") ->  | K24: =IF($G24<>"",CONCATENATE(TEXT(($G24*(1+(INDEX(settings!$J$11:$J$14,MATCH(INDEX(support!$A$2:$A$5,MATCH(prices!$B24,support!$B$2:$B$5,0)*1),settings!$G$11:$G$14,0))))),"00.000")," (",TEXT((INDEX(settings!$J$11:$J$14,MATCH(INDEX(support!$A$2:$A$5,MATCH(prices!$B24,support!$B$2:$B$5,0)*1),settings!$G$11:$G$14,0))),"00%"),")"),"") -> 
H25: =IF($D25<>"",CONCATENATE(TEXT(($D25*(1+(INDEX(settings!$E$4:$E$7,MATCH(INDEX(support!$A$2:$A$5,MATCH(prices!$B25,support!$B$2:$B$5,0)*1),settings!$B$4:$B$7,0))))),"00.000")," (",TEXT((INDEX(settings!$E$4:$E$7,MATCH(INDEX(support!$A$2:$A$5,MATCH(prices!$B25,support!$B$2:$B$5,0)*1),settings!$B$4:$B$7,0))),"00%"),")"),"") ->  | I25: =IF($E25<>"",CONCATENATE(TEXT(($E25*(1+(INDEX(settings!$E$11:$E$14,MATCH(INDEX(support!$A$2:$A$5,MATCH(prices!$B25,support!$B$2:$B$5,0)*1),settings!$B$11:$B$14,0))))),"00.000")," (",TEXT((INDEX(settings!$E$11:$E$14,MATCH(INDEX(support!$A$2:$A$5,MATCH(prices!$B25,support!$B$2:$B$5,0)*1),settings!$B$11:$B$14,0))),"00%"),")"),"") ->  | J25: =IF($F25<>"",CONCATENATE(TEXT(($F25*(1+(INDEX(settings!$J$4:$J$7,MATCH(INDEX(support!$A$2:$A$5,MATCH(prices!$B25,support!$B$2:$B$5,0)*1),settings!$G$4:$G$7,0))))),"00.000")," (",TEXT((INDEX(settings!$J$4:$J$7,MATCH(INDEX(support!$A$2:$A$5,MATCH(prices!$B25,support!$B$2:$B$5,0)*1),settings!$G$4:$G$7,0))),"00%"),")"),"") ->  | K25: =IF($G25<>"",CONCATENATE(TEXT(($G25*(1+(INDEX(settings!$J$11:$J$14,MATCH(INDEX(support!$A$2:$A$5,MATCH(prices!$B25,support!$B$2:$B$5,0)*1),settings!$G$11:$G$14,0))))),"00.000")," (",TEXT((INDEX(settings!$J$11:$J$14,MATCH(INDEX(support!$A$2:$A$5,MATCH(prices!$B25,support!$B$2:$B$5,0)*1),settings!$G$11:$G$14,0))),"00%"),")"),"") -> 
H26: =IF($D26<>"",CONCATENATE(TEXT(($D26*(1+(INDEX(settings!$E$4:$E$7,MATCH(INDEX(support!$A$2:$A$5,MATCH(prices!$B26,support!$B$2:$B$5,0)*1),settings!$B$4:$B$7,0))))),"00.000")," (",TEXT((INDEX(settings!$E$4:$E$7,MATCH(INDEX(support!$A$2:$A$5,MATCH(prices!$B26,support!$B$2:$B$5,0)*1),settings!$B$4:$B$7,0))),"00%"),")"),"") ->  | I26: =IF($E26<>"",CONCATENATE(TEXT(($E26*(1+(INDEX(settings!$E$11:$E$14,MATCH(INDEX(support!$A$2:$A$5,MATCH(prices!$B26,support!$B$2:$B$5,0)*1),settings!$B$11:$B$14,0))))),"00.000")," (",TEXT((INDEX(settings!$E$11:$E$14,MATCH(INDEX(support!$A$2:$A$5,MATCH(prices!$B26,support!$B$2:$B$5,0)*1),settings!$B$11:$B$14,0))),"00%"),")"),"") ->  | J26: =IF($F26<>"",CONCATENATE(TEXT(($F26*(1+(INDEX(settings!$J$4:$J$7,MATCH(INDEX(support!$A$2:$A$5,MATCH(prices!$B26,support!$B$2:$B$5,0)*1),settings!$G$4:$G$7,0))))),"00.000")," (",TEXT((INDEX(settings!$J$4:$J$7,MATCH(INDEX(support!$A$2:$A$5,MATCH(prices!$B26,support!$B$2:$B$5,0)*1),settings!$G$4:$G$7,0))),"00%"),")"),"") ->  | K26: =IF($G26<>"",CONCATENATE(TEXT(($G26*(1+(INDEX(settings!$J$11:$J$14,MATCH(INDEX(support!$A$2:$A$5,MATCH(prices!$B26,support!$B$2:$B$5,0)*1),settings!$G$11:$G$14,0))))),"00.000")," (",TEXT((INDEX(settings!$J$11:$J$14,MATCH(INDEX(support!$A$2:$A$5,MATCH(prices!$B26,support!$B$2:$B$5,0)*1),settings!$G$11:$G$14,0))),"00%"),")"),"") -> 
H27: =IF($D27<>"",CONCATENATE(TEXT(($D27*(1+(INDEX(settings!$E$4:$E$7,MATCH(INDEX(support!$A$2:$A$5,MATCH(prices!$B27,support!$B$2:$B$5,0)*1),settings!$B$4:$B$7,0))))),"00.000")," (",TEXT((INDEX(settings!$E$4:$E$7,MATCH(INDEX(support!$A$2:$A$5,MATCH(prices!$B27,support!$B$2:$B$5,0)*1),settings!$B$4:$B$7,0))),"00%"),")"),"") ->  | I27: =IF($E27<>"",CONCATENATE(TEXT(($E27*(1+(INDEX(settings!$E$11:$E$14,MATCH(INDEX(support!$A$2:$A$5,MATCH(prices!$B27,support!$B$2:$B$5,0)*1),settings!$B$11:$B$14,0))))),"00.000")," (",TEXT((INDEX(settings!$E$11:$E$14,MATCH(INDEX(support!$A$2:$A$5,MATCH(prices!$B27,support!$B$2:$B$5,0)*1),settings!$B$11:$B$14,0))),"00%"),")"),"") ->  | J27: =IF($F27<>"",CONCATENATE(TEXT(($F27*(1+(INDEX(settings!$J$4:$J$7,MATCH(INDEX(support!$A$2:$A$5,MATCH(prices!$B27,support!$B$2:$B$5,0)*1),settings!$G$4:$G$7,0))))),"00.000")," (",TEXT((INDEX(settings!$J$4:$J$7,MATCH(INDEX(support!$A$2:$A$5,MATCH(prices!$B27,support!$B$2:$B$5,0)*1),settings!$G$4:$G$7,0))),"00%"),")"),"") ->  | K27: =IF($G27<>"",CONCATENATE(TEXT(($G27*(1+(INDEX(settings!$J$11:$J$14,MATCH(INDEX(support!$A$2:$A$5,MATCH(prices!$B27,support!$B$2:$B$5,0)*1),settings!$G$11:$G$14,0))))),"00.000")," (",TEXT((INDEX(settings!$J$11:$J$14,MATCH(INDEX(support!$A$2:$A$5,MATCH(prices!$B27,support!$B$2:$B$5,0)*1),settings!$G$11:$G$14,0))),"00%"),")"),"") -> 
H28: =IF($D28<>"",CONCATENATE(TEXT(($D28*(1+(INDEX(settings!$E$4:$E$7,MATCH(INDEX(support!$A$2:$A$5,MATCH(prices!$B28,support!$B$2:$B$5,0)*1),settings!$B$4:$B$7,0))))),"00.000")," (",TEXT((INDEX(settings!$E$4:$E$7,MATCH(INDEX(support!$A$2:$A$5,MATCH(prices!$B28,support!$B$2:$B$5,0)*1),settings!$B$4:$B$7,0))),"00%"),")"),"") ->  | I28: =IF($E28<>"",CONCATENATE(TEXT(($E28*(1+(INDEX(settings!$E$11:$E$14,MATCH(INDEX(support!$A$2:$A$5,MATCH(prices!$B28,support!$B$2:$B$5,0)*1),settings!$B$11:$B$14,0))))),"00.000")," (",TEXT((INDEX(settings!$E$11:$E$14,MATCH(INDEX(support!$A$2:$A$5,MATCH(prices!$B28,support!$B$2:$B$5,0)*1),settings!$B$11:$B$14,0))),"00%"),")"),"") ->  | J28: =IF($F28<>"",CONCATENATE(TEXT(($F28*(1+(INDEX(settings!$J$4:$J$7,MATCH(INDEX(support!$A$2:$A$5,MATCH(prices!$B28,support!$B$2:$B$5,0)*1),settings!$G$4:$G$7,0))))),"00.000")," (",TEXT((INDEX(settings!$J$4:$J$7,MATCH(INDEX(support!$A$2:$A$5,MATCH(prices!$B28,support!$B$2:$B$5,0)*1),settings!$G$4:$G$7,0))),"00%"),")"),"") ->  | K28: =IF($G28<>"",CONCATENATE(TEXT(($G28*(1+(INDEX(settings!$J$11:$J$14,MATCH(INDEX(support!$A$2:$A$5,MATCH(prices!$B28,support!$B$2:$B$5,0)*1),settings!$G$11:$G$14,0))))),"00.000")," (",TEXT((INDEX(settings!$J$11:$J$14,MATCH(INDEX(support!$A$2:$A$5,MATCH(prices!$B28,support!$B$2:$B$5,0)*1),settings!$G$11:$G$14,0))),"00%"),")"),"") -> 
H29: =IF($D29<>"",CONCATENATE(TEXT(($D29*(1+(INDEX(settings!$E$4:$E$7,MATCH(INDEX(support!$A$2:$A$5,MATCH(prices!$B29,support!$B$2:$B$5,0)*1),settings!$B$4:$B$7,0))))),"00.000")," (",TEXT((INDEX(settings!$E$4:$E$7,MATCH(INDEX(support!$A$2:$A$5,MATCH(prices!$B29,support!$B$2:$B$5,0)*1),settings!$B$4:$B$7,0))),"00%"),")"),"") ->  | I29: =IF($E29<>"",CONCATENATE(TEXT(($E29*(1+(INDEX(settings!$E$11:$E$14,MATCH(INDEX(support!$A$2:$A$5,MATCH(prices!$B29,support!$B$2:$B$5,0)*1),settings!$B$11:$B$14,0))))),"00.000")," (",TEXT((INDEX(settings!$E$11:$E$14,MATCH(INDEX(support!$A$2:$A$5,MATCH(prices!$B29,support!$B$2:$B$5,0)*1),settings!$B$11:$B$14,0))),"00%"),")"),"") ->  | J29: =IF($F29<>"",CONCATENATE(TEXT(($F29*(1+(INDEX(settings!$J$4:$J$7,MATCH(INDEX(support!$A$2:$A$5,MATCH(prices!$B29,support!$B$2:$B$5,0)*1),settings!$G$4:$G$7,0))))),"00.000")," (",TEXT((INDEX(settings!$J$4:$J$7,MATCH(INDEX(support!$A$2:$A$5,MATCH(prices!$B29,support!$B$2:$B$5,0)*1),settings!$G$4:$G$7,0))),"00%"),")"),"") ->  | K29: =IF($G29<>"",CONCATENATE(TEXT(($G29*(1+(INDEX(settings!$J$11:$J$14,MATCH(INDEX(support!$A$2:$A$5,MATCH(prices!$B29,support!$B$2:$B$5,0)*1),settings!$G$11:$G$14,0))))),"00.000")," (",TEXT((INDEX(settings!$J$11:$J$14,MATCH(INDEX(support!$A$2:$A$5,MATCH(prices!$B29,support!$B$2:$B$5,0)*1),settings!$G$11:$G$14,0))),"00%"),")"),"") -> 
H30: =IF($D30<>"",CONCATENATE(TEXT(($D30*(1+(INDEX(settings!$E$4:$E$7,MATCH(INDEX(support!$A$2:$A$5,MATCH(prices!$B30,support!$B$2:$B$5,0)*1),settings!$B$4:$B$7,0))))),"00.000")," (",TEXT((INDEX(settings!$E$4:$E$7,MATCH(INDEX(support!$A$2:$A$5,MATCH(prices!$B30,support!$B$2:$B$5,0)*1),settings!$B$4:$B$7,0))),"00%"),")"),"") ->  | I30: =IF($E30<>"",CONCATENATE(TEXT(($E30*(1+(INDEX(settings!$E$11:$E$14,MATCH(INDEX(support!$A$2:$A$5,MATCH(prices!$B30,support!$B$2:$B$5,0)*1),settings!$B$11:$B$14,0))))),"00.000")," (",TEXT((INDEX(settings!$E$11:$E$14,MATCH(INDEX(support!$A$2:$A$5,MATCH(prices!$B30,support!$B$2:$B$5,0)*1),settings!$B$11:$B$14,0))),"00%"),")"),"") ->  | J30: =IF($F30<>"",CONCATENATE(TEXT(($F30*(1+(INDEX(settings!$J$4:$J$7,MATCH(INDEX(support!$A$2:$A$5,MATCH(prices!$B30,support!$B$2:$B$5,0)*1),settings!$G$4:$G$7,0))))),"00.000")," (",TEXT((INDEX(settings!$J$4:$J$7,MATCH(INDEX(support!$A$2:$A$5,MATCH(prices!$B30,support!$B$2:$B$5,0)*1),settings!$G$4:$G$7,0))),"00%"),")"),"") ->  | K30: =IF($G30<>"",CONCATENATE(TEXT(($G30*(1+(INDEX(settings!$J$11:$J$14,MATCH(INDEX(support!$A$2:$A$5,MATCH(prices!$B30,support!$B$2:$B$5,0)*1),settings!$G$11:$G$14,0))))),"00.000")," (",TEXT((INDEX(settings!$J$11:$J$14,MATCH(INDEX(support!$A$2:$A$5,MATCH(prices!$B30,support!$B$2:$B$5,0)*1),settings!$G$11:$G$14,0))),"00%"),")"),"") -> 
H31: =IF($D31<>"",CONCATENATE(TEXT(($D31*(1+(INDEX(settings!$E$4:$E$7,MATCH(INDEX(support!$A$2:$A$5,MATCH(prices!$B31,support!$B$2:$B$5,0)*1),settings!$B$4:$B$7,0))))),"00.000")," (",TEXT((INDEX(settings!$E$4:$E$7,MATCH(INDEX(support!$A$2:$A$5,MATCH(prices!$B31,support!$B$2:$B$5,0)*1),settings!$B$4:$B$7,0))),"00%"),")"),"") ->  | I31: =IF($E31<>"",CONCATENATE(TEXT(($E31*(1+(INDEX(settings!$E$11:$E$14,MATCH(INDEX(support!$A$2:$A$5,MATCH(prices!$B31,support!$B$2:$B$5,0)*1),settings!$B$11:$B$14,0))))),"00.000")," (",TEXT((INDEX(settings!$E$11:$E$14,MATCH(INDEX(support!$A$2:$A$5,MATCH(prices!$B31,support!$B$2:$B$5,0)*1),settings!$B$11:$B$14,0))),"00%"),")"),"") ->  | J31: =IF($F31<>"",CONCATENATE(TEXT(($F31*(1+(INDEX(settings!$J$4:$J$7,MATCH(INDEX(support!$A$2:$A$5,MATCH(prices!$B31,support!$B$2:$B$5,0)*1),settings!$G$4:$G$7,0))))),"00.000")," (",TEXT((INDEX(settings!$J$4:$J$7,MATCH(INDEX(support!$A$2:$A$5,MATCH(prices!$B31,support!$B$2:$B$5,0)*1),settings!$G$4:$G$7,0))),"00%"),")"),"") ->  | K31: =IF($G31<>"",CONCATENATE(TEXT(($G31*(1+(INDEX(settings!$J$11:$J$14,MATCH(INDEX(support!$A$2:$A$5,MATCH(prices!$B31,support!$B$2:$B$5,0)*1),settings!$G$11:$G$14,0))))),"00.000")," (",TEXT((INDEX(settings!$J$11:$J$14,MATCH(INDEX(support!$A$2:$A$5,MATCH(prices!$B31,support!$B$2:$B$5,0)*1),settings!$G$11:$G$14,0))),"00%"),")"),"") -> 
H32: =IF($D32<>"",CONCATENATE(TEXT(($D32*(1+(INDEX(settings!$E$4:$E$7,MATCH(INDEX(support!$A$2:$A$5,MATCH(prices!$B32,support!$B$2:$B$5,0)*1),settings!$B$4:$B$7,0))))),"00.000")," (",TEXT((INDEX(settings!$E$4:$E$7,MATCH(INDEX(support!$A$2:$A$5,MATCH(prices!$B32,support!$B$2:$B$5,0)*1),settings!$B$4:$B$7,0))),"00%"),")"),"") ->  | I32: =IF($E32<>"",CONCATENATE(TEXT(($E32*(1+(INDEX(settings!$E$11:$E$14,MATCH(INDEX(support!$A$2:$A$5,MATCH(prices!$B32,support!$B$2:$B$5,0)*1),settings!$B$11:$B$14,0))))),"00.000")," (",TEXT((INDEX(settings!$E$11:$E$14,MATCH(INDEX(support!$A$2:$A$5,MATCH(prices!$B32,support!$B$2:$B$5,0)*1),settings!$B$11:$B$14,0))),"00%"),")"),"") ->  | J32: =IF($F32<>"",CONCATENATE(TEXT(($F32*(1+(INDEX(settings!$J$4:$J$7,MATCH(INDEX(support!$A$2:$A$5,MATCH(prices!$B32,support!$B$2:$B$5,0)*1),settings!$G$4:$G$7,0))))),"00.000")," (",TEXT((INDEX(settings!$J$4:$J$7,MATCH(INDEX(support!$A$2:$A$5,MATCH(prices!$B32,support!$B$2:$B$5,0)*1),settings!$G$4:$G$7,0))),"00%"),")"),"") ->  | K32: =IF($G32<>"",CONCATENATE(TEXT(($G32*(1+(INDEX(settings!$J$11:$J$14,MATCH(INDEX(support!$A$2:$A$5,MATCH(prices!$B32,support!$B$2:$B$5,0)*1),settings!$G$11:$G$14,0))))),"00.000")," (",TEXT((INDEX(settings!$J$11:$J$14,MATCH(INDEX(support!$A$2:$A$5,MATCH(prices!$B32,support!$B$2:$B$5,0)*1),settings!$G$11:$G$14,0))),"00%"),")"),"") -> 
H33: =IF($D33<>"",CONCATENATE(TEXT(($D33*(1+(INDEX(settings!$E$4:$E$7,MATCH(INDEX(support!$A$2:$A$5,MATCH(prices!$B33,support!$B$2:$B$5,0)*1),settings!$B$4:$B$7,0))))),"00.000")," (",TEXT((INDEX(settings!$E$4:$E$7,MATCH(INDEX(support!$A$2:$A$5,MATCH(prices!$B33,support!$B$2:$B$5,0)*1),settings!$B$4:$B$7,0))),"00%"),")"),"") ->  | I33: =IF($E33<>"",CONCATENATE(TEXT(($E33*(1+(INDEX(settings!$E$11:$E$14,MATCH(INDEX(support!$A$2:$A$5,MATCH(prices!$B33,support!$B$2:$B$5,0)*1),settings!$B$11:$B$14,0))))),"00.000")," (",TEXT((INDEX(settings!$E$11:$E$14,MATCH(INDEX(support!$A$2:$A$5,MATCH(prices!$B33,support!$B$2:$B$5,0)*1),settings!$B$11:$B$14,0))),"00%"),")"),"") ->  | J33: =IF($F33<>"",CONCATENATE(TEXT(($F33*(1+(INDEX(settings!$J$4:$J$7,MATCH(INDEX(support!$A$2:$A$5,MATCH(prices!$B33,support!$B$2:$B$5,0)*1),settings!$G$4:$G$7,0))))),"00.000")," (",TEXT((INDEX(settings!$J$4:$J$7,MATCH(INDEX(support!$A$2:$A$5,MATCH(prices!$B33,support!$B$2:$B$5,0)*1),settings!$G$4:$G$7,0))),"00%"),")"),"") ->  | K33: =IF($G33<>"",CONCATENATE(TEXT(($G33*(1+(INDEX(settings!$J$11:$J$14,MATCH(INDEX(support!$A$2:$A$5,MATCH(prices!$B33,support!$B$2:$B$5,0)*1),settings!$G$11:$G$14,0))))),"00.000")," (",TEXT((INDEX(settings!$J$11:$J$14,MATCH(INDEX(support!$A$2:$A$5,MATCH(prices!$B33,support!$B$2:$B$5,0)*1),settings!$G$11:$G$14,0))),"00%"),")"),"") -> 
H34: =IF($D34<>"",CONCATENATE(TEXT(($D34*(1+(INDEX(settings!$E$4:$E$7,MATCH(INDEX(support!$A$2:$A$5,MATCH(prices!$B34,support!$B$2:$B$5,0)*1),settings!$B$4:$B$7,0))))),"00.000")," (",TEXT((INDEX(settings!$E$4:$E$7,MATCH(INDEX(support!$A$2:$A$5,MATCH(prices!$B34,support!$B$2:$B$5,0)*1),settings!$B$4:$B$7,0))),"00%"),")"),"") ->  | I34: =IF($E34<>"",CONCATENATE(TEXT(($E34*(1+(INDEX(settings!$E$11:$E$14,MATCH(INDEX(support!$A$2:$A$5,MATCH(prices!$B34,support!$B$2:$B$5,0)*1),settings!$B$11:$B$14,0))))),"00.000")," (",TEXT((INDEX(settings!$E$11:$E$14,MATCH(INDEX(support!$A$2:$A$5,MATCH(prices!$B34,support!$B$2:$B$5,0)*1),settings!$B$11:$B$14,0))),"00%"),")"),"") ->  | J34: =IF($F34<>"",CONCATENATE(TEXT(($F34*(1+(INDEX(settings!$J$4:$J$7,MATCH(INDEX(support!$A$2:$A$5,MATCH(prices!$B34,support!$B$2:$B$5,0)*1),settings!$G$4:$G$7,0))))),"00.000")," (",TEXT((INDEX(settings!$J$4:$J$7,MATCH(INDEX(support!$A$2:$A$5,MATCH(prices!$B34,support!$B$2:$B$5,0)*1),settings!$G$4:$G$7,0))),"00%"),")"),"") ->  | K34: =IF($G34<>"",CONCATENATE(TEXT(($G34*(1+(INDEX(settings!$J$11:$J$14,MATCH(INDEX(support!$A$2:$A$5,MATCH(prices!$B34,support!$B$2:$B$5,0)*1),settings!$G$11:$G$14,0))))),"00.000")," (",TEXT((INDEX(settings!$J$11:$J$14,MATCH(INDEX(support!$A$2:$A$5,MATCH(prices!$B34,support!$B$2:$B$5,0)*1),settings!$G$11:$G$14,0))),"00%"),")"),"") -> 
H35: =IF($D35<>"",CONCATENATE(TEXT(($D35*(1+(INDEX(settings!$E$4:$E$7,MATCH(INDEX(support!$A$2:$A$5,MATCH(prices!$B35,support!$B$2:$B$5,0)*1),settings!$B$4:$B$7,0))))),"00.000")," (",TEXT((INDEX(settings!$E$4:$E$7,MATCH(INDEX(support!$A$2:$A$5,MATCH(prices!$B35,support!$B$2:$B$5,0)*1),settings!$B$4:$B$7,0))),"00%"),")"),"") ->  | I35: =IF($E35<>"",CONCATENATE(TEXT(($E35*(1+(INDEX(settings!$E$11:$E$14,MATCH(INDEX(support!$A$2:$A$5,MATCH(prices!$B35,support!$B$2:$B$5,0)*1),settings!$B$11:$B$14,0))))),"00.000")," (",TEXT((INDEX(settings!$E$11:$E$14,MATCH(INDEX(support!$A$2:$A$5,MATCH(prices!$B35,support!$B$2:$B$5,0)*1),settings!$B$11:$B$14,0))),"00%"),")"),"") ->  | J35: =IF($F35<>"",CONCATENATE(TEXT(($F35*(1+(INDEX(settings!$J$4:$J$7,MATCH(INDEX(support!$A$2:$A$5,MATCH(prices!$B35,support!$B$2:$B$5,0)*1),settings!$G$4:$G$7,0))))),"00.000")," (",TEXT((INDEX(settings!$J$4:$J$7,MATCH(INDEX(support!$A$2:$A$5,MATCH(prices!$B35,support!$B$2:$B$5,0)*1),settings!$G$4:$G$7,0))),"00%"),")"),"") ->  | K35: =IF($G35<>"",CONCATENATE(TEXT(($G35*(1+(INDEX(settings!$J$11:$J$14,MATCH(INDEX(support!$A$2:$A$5,MATCH(prices!$B35,support!$B$2:$B$5,0)*1),settings!$G$11:$G$14,0))))),"00.000")," (",TEXT((INDEX(settings!$J$11:$J$14,MATCH(INDEX(support!$A$2:$A$5,MATCH(prices!$B35,support!$B$2:$B$5,0)*1),settings!$G$11:$G$14,0))),"00%"),")"),"") -> 
H36: =IF($D36<>"",CONCATENATE(TEXT(($D36*(1+(INDEX(settings!$E$4:$E$7,MATCH(INDEX(support!$A$2:$A$5,MATCH(prices!$B36,support!$B$2:$B$5,0)*1),settings!$B$4:$B$7,0))))),"00.000")," (",TEXT((INDEX(settings!$E$4:$E$7,MATCH(INDEX(support!$A$2:$A$5,MATCH(prices!$B36,support!$B$2:$B$5,0)*1),settings!$B$4:$B$7,0))),"00%"),")"),"") ->  | I36: =IF($E36<>"",CONCATENATE(TEXT(($E36*(1+(INDEX(settings!$E$11:$E$14,MATCH(INDEX(support!$A$2:$A$5,MATCH(prices!$B36,support!$B$2:$B$5,0)*1),settings!$B$11:$B$14,0))))),"00.000")," (",TEXT((INDEX(settings!$E$11:$E$14,MATCH(INDEX(support!$A$2:$A$5,MATCH(prices!$B36,support!$B$2:$B$5,0)*1),settings!$B$11:$B$14,0))),"00%"),")"),"") ->  | J36: =IF($F36<>"",CONCATENATE(TEXT(($F36*(1+(INDEX(settings!$J$4:$J$7,MATCH(INDEX(support!$A$2:$A$5,MATCH(prices!$B36,support!$B$2:$B$5,0)*1),settings!$G$4:$G$7,0))))),"00.000")," (",TEXT((INDEX(settings!$J$4:$J$7,MATCH(INDEX(support!$A$2:$A$5,MATCH(prices!$B36,support!$B$2:$B$5,0)*1),settings!$G$4:$G$7,0))),"00%"),")"),"") ->  | K36: =IF($G36<>"",CONCATENATE(TEXT(($G36*(1+(INDEX(settings!$J$11:$J$14,MATCH(INDEX(support!$A$2:$A$5,MATCH(prices!$B36,support!$B$2:$B$5,0)*1),settings!$G$11:$G$14,0))))),"00.000")," (",TEXT((INDEX(settings!$J$11:$J$14,MATCH(INDEX(support!$A$2:$A$5,MATCH(prices!$B36,support!$B$2:$B$5,0)*1),settings!$G$11:$G$14,0))),"00%"),")"),"") -> 
H37: =IF($D37<>"",CONCATENATE(TEXT(($D37*(1+(INDEX(settings!$E$4:$E$7,MATCH(INDEX(support!$A$2:$A$5,MATCH(prices!$B37,support!$B$2:$B$5,0)*1),settings!$B$4:$B$7,0))))),"00.000")," (",TEXT((INDEX(settings!$E$4:$E$7,MATCH(INDEX(support!$A$2:$A$5,MATCH(prices!$B37,support!$B$2:$B$5,0)*1),settings!$B$4:$B$7,0))),"00%"),")"),"") ->  | I37: =IF($E37<>"",CONCATENATE(TEXT(($E37*(1+(INDEX(settings!$E$11:$E$14,MATCH(INDEX(support!$A$2:$A$5,MATCH(prices!$B37,support!$B$2:$B$5,0)*1),settings!$B$11:$B$14,0))))),"00.000")," (",TEXT((INDEX(settings!$E$11:$E$14,MATCH(INDEX(support!$A$2:$A$5,MATCH(prices!$B37,support!$B$2:$B$5,0)*1),settings!$B$11:$B$14,0))),"00%"),")"),"") ->  | J37: =IF($F37<>"",CONCATENATE(TEXT(($F37*(1+(INDEX(settings!$J$4:$J$7,MATCH(INDEX(support!$A$2:$A$5,MATCH(prices!$B37,support!$B$2:$B$5,0)*1),settings!$G$4:$G$7,0))))),"00.000")," (",TEXT((INDEX(settings!$J$4:$J$7,MATCH(INDEX(support!$A$2:$A$5,MATCH(prices!$B37,support!$B$2:$B$5,0)*1),settings!$G$4:$G$7,0))),"00%"),")"),"") ->  | K37: =IF($G37<>"",CONCATENATE(TEXT(($G37*(1+(INDEX(settings!$J$11:$J$14,MATCH(INDEX(support!$A$2:$A$5,MATCH(prices!$B37,support!$B$2:$B$5,0)*1),settings!$G$11:$G$14,0))))),"00.000")," (",TEXT((INDEX(settings!$J$11:$J$14,MATCH(INDEX(support!$A$2:$A$5,MATCH(prices!$B37,support!$B$2:$B$5,0)*1),settings!$G$11:$G$14,0))),"00%"),")"),"") -> 
H38: =IF($D38<>"",CONCATENATE(TEXT(($D38*(1+(INDEX(settings!$E$4:$E$7,MATCH(INDEX(support!$A$2:$A$5,MATCH(prices!$B38,support!$B$2:$B$5,0)*1),settings!$B$4:$B$7,0))))),"00.000")," (",TEXT((INDEX(settings!$E$4:$E$7,MATCH(INDEX(support!$A$2:$A$5,MATCH(prices!$B38,support!$B$2:$B$5,0)*1),settings!$B$4:$B$7,0))),"00%"),")"),"") ->  | I38: =IF($E38<>"",CONCATENATE(TEXT(($E38*(1+(INDEX(settings!$E$11:$E$14,MATCH(INDEX(support!$A$2:$A$5,MATCH(prices!$B38,support!$B$2:$B$5,0)*1),settings!$B$11:$B$14,0))))),"00.000")," (",TEXT((INDEX(settings!$E$11:$E$14,MATCH(INDEX(support!$A$2:$A$5,MATCH(prices!$B38,support!$B$2:$B$5,0)*1),settings!$B$11:$B$14,0))),"00%"),")"),"") ->  | J38: =IF($F38<>"",CONCATENATE(TEXT(($F38*(1+(INDEX(settings!$J$4:$J$7,MATCH(INDEX(support!$A$2:$A$5,MATCH(prices!$B38,support!$B$2:$B$5,0)*1),settings!$G$4:$G$7,0))))),"00.000")," (",TEXT((INDEX(settings!$J$4:$J$7,MATCH(INDEX(support!$A$2:$A$5,MATCH(prices!$B38,support!$B$2:$B$5,0)*1),settings!$G$4:$G$7,0))),"00%"),")"),"") ->  | K38: =IF($G38<>"",CONCATENATE(TEXT(($G38*(1+(INDEX(settings!$J$11:$J$14,MATCH(INDEX(support!$A$2:$A$5,MATCH(prices!$B38,support!$B$2:$B$5,0)*1),settings!$G$11:$G$14,0))))),"00.000")," (",TEXT((INDEX(settings!$J$11:$J$14,MATCH(INDEX(support!$A$2:$A$5,MATCH(prices!$B38,support!$B$2:$B$5,0)*1),settings!$G$11:$G$14,0))),"00%"),")"),"") -> 
H39: =IF($D39<>"",CONCATENATE(TEXT(($D39*(1+(INDEX(settings!$E$4:$E$7,MATCH(INDEX(support!$A$2:$A$5,MATCH(prices!$B39,support!$B$2:$B$5,0)*1),settings!$B$4:$B$7,0))))),"00.000")," (",TEXT((INDEX(settings!$E$4:$E$7,MATCH(INDEX(support!$A$2:$A$5,MATCH(prices!$B39,support!$B$2:$B$5,0)*1),settings!$B$4:$B$7,0))),"00%"),")"),"") ->  | I39: =IF($E39<>"",CONCATENATE(TEXT(($E39*(1+(INDEX(settings!$E$11:$E$14,MATCH(INDEX(support!$A$2:$A$5,MATCH(prices!$B39,support!$B$2:$B$5,0)*1),settings!$B$11:$B$14,0))))),"00.000")," (",TEXT((INDEX(settings!$E$11:$E$14,MATCH(INDEX(support!$A$2:$A$5,MATCH(prices!$B39,support!$B$2:$B$5,0)*1),settings!$B$11:$B$14,0))),"00%"),")"),"") ->  | J39: =IF($F39<>"",CONCATENATE(TEXT(($F39*(1+(INDEX(settings!$J$4:$J$7,MATCH(INDEX(support!$A$2:$A$5,MATCH(prices!$B39,support!$B$2:$B$5,0)*1),settings!$G$4:$G$7,0))))),"00.000")," (",TEXT((INDEX(settings!$J$4:$J$7,MATCH(INDEX(support!$A$2:$A$5,MATCH(prices!$B39,support!$B$2:$B$5,0)*1),settings!$G$4:$G$7,0))),"00%"),")"),"") ->  | K39: =IF($G39<>"",CONCATENATE(TEXT(($G39*(1+(INDEX(settings!$J$11:$J$14,MATCH(INDEX(support!$A$2:$A$5,MATCH(prices!$B39,support!$B$2:$B$5,0)*1),settings!$G$11:$G$14,0))))),"00.000")," (",TEXT((INDEX(settings!$J$11:$J$14,MATCH(INDEX(support!$A$2:$A$5,MATCH(prices!$B39,support!$B$2:$B$5,0)*1),settings!$G$11:$G$14,0))),"00%"),")"),"") -> 
H40: =IF($D40<>"",CONCATENATE(TEXT(($D40*(1+(INDEX(settings!$E$4:$E$7,MATCH(INDEX(support!$A$2:$A$5,MATCH(prices!$B40,support!$B$2:$B$5,0)*1),settings!$B$4:$B$7,0))))),"00.000")," (",TEXT((INDEX(settings!$E$4:$E$7,MATCH(INDEX(support!$A$2:$A$5,MATCH(prices!$B40,support!$B$2:$B$5,0)*1),settings!$B$4:$B$7,0))),"00%"),")"),"") ->  | I40: =IF($E40<>"",CONCATENATE(TEXT(($E40*(1+(INDEX(settings!$E$11:$E$14,MATCH(INDEX(support!$A$2:$A$5,MATCH(prices!$B40,support!$B$2:$B$5,0)*1),settings!$B$11:$B$14,0))))),"00.000")," (",TEXT((INDEX(settings!$E$11:$E$14,MATCH(INDEX(support!$A$2:$A$5,MATCH(prices!$B40,support!$B$2:$B$5,0)*1),settings!$B$11:$B$14,0))),"00%"),")"),"") ->  | J40: =IF($F40<>"",CONCATENATE(TEXT(($F40*(1+(INDEX(settings!$J$4:$J$7,MATCH(INDEX(support!$A$2:$A$5,MATCH(prices!$B40,support!$B$2:$B$5,0)*1),settings!$G$4:$G$7,0))))),"00.000")," (",TEXT((INDEX(settings!$J$4:$J$7,MATCH(INDEX(support!$A$2:$A$5,MATCH(prices!$B40,support!$B$2:$B$5,0)*1),settings!$G$4:$G$7,0))),"00%"),")"),"") ->  | K40: =IF($G40<>"",CONCATENATE(TEXT(($G40*(1+(INDEX(settings!$J$11:$J$14,MATCH(INDEX(support!$A$2:$A$5,MATCH(prices!$B40,support!$B$2:$B$5,0)*1),settings!$G$11:$G$14,0))))),"00.000")," (",TEXT((INDEX(settings!$J$11:$J$14,MATCH(INDEX(support!$A$2:$A$5,MATCH(prices!$B40,support!$B$2:$B$5,0)*1),settings!$G$11:$G$14,0))),"00%"),")"),"") -> 
H41: =IF($D41<>"",CONCATENATE(TEXT(($D41*(1+(INDEX(settings!$E$4:$E$7,MATCH(INDEX(support!$A$2:$A$5,MATCH(prices!$B41,support!$B$2:$B$5,0)*1),settings!$B$4:$B$7,0))))),"00.000")," (",TEXT((INDEX(settings!$E$4:$E$7,MATCH(INDEX(support!$A$2:$A$5,MATCH(prices!$B41,support!$B$2:$B$5,0)*1),settings!$B$4:$B$7,0))),"00%"),")"),"") ->  | I41: =IF($E41<>"",CONCATENATE(TEXT(($E41*(1+(INDEX(settings!$E$11:$E$14,MATCH(INDEX(support!$A$2:$A$5,MATCH(prices!$B41,support!$B$2:$B$5,0)*1),settings!$B$11:$B$14,0))))),"00.000")," (",TEXT((INDEX(settings!$E$11:$E$14,MATCH(INDEX(support!$A$2:$A$5,MATCH(prices!$B41,support!$B$2:$B$5,0)*1),settings!$B$11:$B$14,0))),"00%"),")"),"") ->  | J41: =IF($F41<>"",CONCATENATE(TEXT(($F41*(1+(INDEX(settings!$J$4:$J$7,MATCH(INDEX(support!$A$2:$A$5,MATCH(prices!$B41,support!$B$2:$B$5,0)*1),settings!$G$4:$G$7,0))))),"00.000")," (",TEXT((INDEX(settings!$J$4:$J$7,MATCH(INDEX(support!$A$2:$A$5,MATCH(prices!$B41,support!$B$2:$B$5,0)*1),settings!$G$4:$G$7,0))),"00%"),")"),"") ->  | K41: =IF($G41<>"",CONCATENATE(TEXT(($G41*(1+(INDEX(settings!$J$11:$J$14,MATCH(INDEX(support!$A$2:$A$5,MATCH(prices!$B41,support!$B$2:$B$5,0)*1),settings!$G$11:$G$14,0))))),"00.000")," (",TEXT((INDEX(settings!$J$11:$J$14,MATCH(INDEX(support!$A$2:$A$5,MATCH(prices!$B41,support!$B$2:$B$5,0)*1),settings!$G$11:$G$14,0))),"00%"),")"),"") -> 
H42: =IF($D42<>"",CONCATENATE(TEXT(($D42*(1+(INDEX(settings!$E$4:$E$7,MATCH(INDEX(support!$A$2:$A$5,MATCH(prices!$B42,support!$B$2:$B$5,0)*1),settings!$B$4:$B$7,0))))),"00.000")," (",TEXT((INDEX(settings!$E$4:$E$7,MATCH(INDEX(support!$A$2:$A$5,MATCH(prices!$B42,support!$B$2:$B$5,0)*1),settings!$B$4:$B$7,0))),"00%"),")"),"") ->  | I42: =IF($E42<>"",CONCATENATE(TEXT(($E42*(1+(INDEX(settings!$E$11:$E$14,MATCH(INDEX(support!$A$2:$A$5,MATCH(prices!$B42,support!$B$2:$B$5,0)*1),settings!$B$11:$B$14,0))))),"00.000")," (",TEXT((INDEX(settings!$E$11:$E$14,MATCH(INDEX(support!$A$2:$A$5,MATCH(prices!$B42,support!$B$2:$B$5,0)*1),settings!$B$11:$B$14,0))),"00%"),")"),"") ->  | J42: =IF($F42<>"",CONCATENATE(TEXT(($F42*(1+(INDEX(settings!$J$4:$J$7,MATCH(INDEX(support!$A$2:$A$5,MATCH(prices!$B42,support!$B$2:$B$5,0)*1),settings!$G$4:$G$7,0))))),"00.000")," (",TEXT((INDEX(settings!$J$4:$J$7,MATCH(INDEX(support!$A$2:$A$5,MATCH(prices!$B42,support!$B$2:$B$5,0)*1),settings!$G$4:$G$7,0))),"00%"),")"),"") ->  | K42: =IF($G42<>"",CONCATENATE(TEXT(($G42*(1+(INDEX(settings!$J$11:$J$14,MATCH(INDEX(support!$A$2:$A$5,MATCH(prices!$B42,support!$B$2:$B$5,0)*1),settings!$G$11:$G$14,0))))),"00.000")," (",TEXT((INDEX(settings!$J$11:$J$14,MATCH(INDEX(support!$A$2:$A$5,MATCH(prices!$B42,support!$B$2:$B$5,0)*1),settings!$G$11:$G$14,0))),"00%"),")"),"") -> 
H43: =IF($D43<>"",CONCATENATE(TEXT(($D43*(1+(INDEX(settings!$E$4:$E$7,MATCH(INDEX(support!$A$2:$A$5,MATCH(prices!$B43,support!$B$2:$B$5,0)*1),settings!$B$4:$B$7,0))))),"00.000")," (",TEXT((INDEX(settings!$E$4:$E$7,MATCH(INDEX(support!$A$2:$A$5,MATCH(prices!$B43,support!$B$2:$B$5,0)*1),settings!$B$4:$B$7,0))),"00%"),")"),"") ->  | I43: =IF($E43<>"",CONCATENATE(TEXT(($E43*(1+(INDEX(settings!$E$11:$E$14,MATCH(INDEX(support!$A$2:$A$5,MATCH(prices!$B43,support!$B$2:$B$5,0)*1),settings!$B$11:$B$14,0))))),"00.000")," (",TEXT((INDEX(settings!$E$11:$E$14,MATCH(INDEX(support!$A$2:$A$5,MATCH(prices!$B43,support!$B$2:$B$5,0)*1),settings!$B$11:$B$14,0))),"00%"),")"),"") ->  | J43: =IF($F43<>"",CONCATENATE(TEXT(($F43*(1+(INDEX(settings!$J$4:$J$7,MATCH(INDEX(support!$A$2:$A$5,MATCH(prices!$B43,support!$B$2:$B$5,0)*1),settings!$G$4:$G$7,0))))),"00.000")," (",TEXT((INDEX(settings!$J$4:$J$7,MATCH(INDEX(support!$A$2:$A$5,MATCH(prices!$B43,support!$B$2:$B$5,0)*1),settings!$G$4:$G$7,0))),"00%"),")"),"") ->  | K43: =IF($G43<>"",CONCATENATE(TEXT(($G43*(1+(INDEX(settings!$J$11:$J$14,MATCH(INDEX(support!$A$2:$A$5,MATCH(prices!$B43,support!$B$2:$B$5,0)*1),settings!$G$11:$G$14,0))))),"00.000")," (",TEXT((INDEX(settings!$J$11:$J$14,MATCH(INDEX(support!$A$2:$A$5,MATCH(prices!$B43,support!$B$2:$B$5,0)*1),settings!$G$11:$G$14,0))),"00%"),")"),"") -> 
H44: =IF($D44<>"",CONCATENATE(TEXT(($D44*(1+(INDEX(settings!$E$4:$E$7,MATCH(INDEX(support!$A$2:$A$5,MATCH(prices!$B44,support!$B$2:$B$5,0)*1),settings!$B$4:$B$7,0))))),"00.000")," (",TEXT((INDEX(settings!$E$4:$E$7,MATCH(INDEX(support!$A$2:$A$5,MATCH(prices!$B44,support!$B$2:$B$5,0)*1),settings!$B$4:$B$7,0))),"00%"),")"),"") ->  | I44: =IF($E44<>"",CONCATENATE(TEXT(($E44*(1+(INDEX(settings!$E$11:$E$14,MATCH(INDEX(support!$A$2:$A$5,MATCH(prices!$B44,support!$B$2:$B$5,0)*1),settings!$B$11:$B$14,0))))),"00.000")," (",TEXT((INDEX(settings!$E$11:$E$14,MATCH(INDEX(support!$A$2:$A$5,MATCH(prices!$B44,support!$B$2:$B$5,0)*1),settings!$B$11:$B$14,0))),"00%"),")"),"") ->  | J44: =IF($F44<>"",CONCATENATE(TEXT(($F44*(1+(INDEX(settings!$J$4:$J$7,MATCH(INDEX(support!$A$2:$A$5,MATCH(prices!$B44,support!$B$2:$B$5,0)*1),settings!$G$4:$G$7,0))))),"00.000")," (",TEXT((INDEX(settings!$J$4:$J$7,MATCH(INDEX(support!$A$2:$A$5,MATCH(prices!$B44,support!$B$2:$B$5,0)*1),settings!$G$4:$G$7,0))),"00%"),")"),"") ->  | K44: =IF($G44<>"",CONCATENATE(TEXT(($G44*(1+(INDEX(settings!$J$11:$J$14,MATCH(INDEX(support!$A$2:$A$5,MATCH(prices!$B44,support!$B$2:$B$5,0)*1),settings!$G$11:$G$14,0))))),"00.000")," (",TEXT((INDEX(settings!$J$11:$J$14,MATCH(INDEX(support!$A$2:$A$5,MATCH(prices!$B44,support!$B$2:$B$5,0)*1),settings!$G$11:$G$14,0))),"00%"),")"),"") -> 
H45: =IF($D45<>"",CONCATENATE(TEXT(($D45*(1+(INDEX(settings!$E$4:$E$7,MATCH(INDEX(support!$A$2:$A$5,MATCH(prices!$B45,support!$B$2:$B$5,0)*1),settings!$B$4:$B$7,0))))),"00.000")," (",TEXT((INDEX(settings!$E$4:$E$7,MATCH(INDEX(support!$A$2:$A$5,MATCH(prices!$B45,support!$B$2:$B$5,0)*1),settings!$B$4:$B$7,0))),"00%"),")"),"") ->  | I45: =IF($E45<>"",CONCATENATE(TEXT(($E45*(1+(INDEX(settings!$E$11:$E$14,MATCH(INDEX(support!$A$2:$A$5,MATCH(prices!$B45,support!$B$2:$B$5,0)*1),settings!$B$11:$B$14,0))))),"00.000")," (",TEXT((INDEX(settings!$E$11:$E$14,MATCH(INDEX(support!$A$2:$A$5,MATCH(prices!$B45,support!$B$2:$B$5,0)*1),settings!$B$11:$B$14,0))),"00%"),")"),"") ->  | J45: =IF($F45<>"",CONCATENATE(TEXT(($F45*(1+(INDEX(settings!$J$4:$J$7,MATCH(INDEX(support!$A$2:$A$5,MATCH(prices!$B45,support!$B$2:$B$5,0)*1),settings!$G$4:$G$7,0))))),"00.000")," (",TEXT((INDEX(settings!$J$4:$J$7,MATCH(INDEX(support!$A$2:$A$5,MATCH(prices!$B45,support!$B$2:$B$5,0)*1),settings!$G$4:$G$7,0))),"00%"),")"),"") ->  | K45: =IF($G45<>"",CONCATENATE(TEXT(($G45*(1+(INDEX(settings!$J$11:$J$14,MATCH(INDEX(support!$A$2:$A$5,MATCH(prices!$B45,support!$B$2:$B$5,0)*1),settings!$G$11:$G$14,0))))),"00.000")," (",TEXT((INDEX(settings!$J$11:$J$14,MATCH(INDEX(support!$A$2:$A$5,MATCH(prices!$B45,support!$B$2:$B$5,0)*1),settings!$G$11:$G$14,0))),"00%"),")"),"") -> 
H46: =IF($D46<>"",CONCATENATE(TEXT(($D46*(1+(INDEX(settings!$E$4:$E$7,MATCH(INDEX(support!$A$2:$A$5,MATCH(prices!$B46,support!$B$2:$B$5,0)*1),settings!$B$4:$B$7,0))))),"00.000")," (",TEXT((INDEX(settings!$E$4:$E$7,MATCH(INDEX(support!$A$2:$A$5,MATCH(prices!$B46,support!$B$2:$B$5,0)*1),settings!$B$4:$B$7,0))),"00%"),")"),"") ->  | I46: =IF($E46<>"",CONCATENATE(TEXT(($E46*(1+(INDEX(settings!$E$11:$E$14,MATCH(INDEX(support!$A$2:$A$5,MATCH(prices!$B46,support!$B$2:$B$5,0)*1),settings!$B$11:$B$14,0))))),"00.000")," (",TEXT((INDEX(settings!$E$11:$E$14,MATCH(INDEX(support!$A$2:$A$5,MATCH(prices!$B46,support!$B$2:$B$5,0)*1),settings!$B$11:$B$14,0))),"00%"),")"),"") ->  | J46: =IF($F46<>"",CONCATENATE(TEXT(($F46*(1+(INDEX(settings!$J$4:$J$7,MATCH(INDEX(support!$A$2:$A$5,MATCH(prices!$B46,support!$B$2:$B$5,0)*1),settings!$G$4:$G$7,0))))),"00.000")," (",TEXT((INDEX(settings!$J$4:$J$7,MATCH(INDEX(support!$A$2:$A$5,MATCH(prices!$B46,support!$B$2:$B$5,0)*1),settings!$G$4:$G$7,0))),"00%"),")"),"") ->  | K46: =IF($G46<>"",CONCATENATE(TEXT(($G46*(1+(INDEX(settings!$J$11:$J$14,MATCH(INDEX(support!$A$2:$A$5,MATCH(prices!$B46,support!$B$2:$B$5,0)*1),settings!$G$11:$G$14,0))))),"00.000")," (",TEXT((INDEX(settings!$J$11:$J$14,MATCH(INDEX(support!$A$2:$A$5,MATCH(prices!$B46,support!$B$2:$B$5,0)*1),settings!$G$11:$G$14,0))),"00%"),")"),"") -> 
H47: =IF($D47<>"",CONCATENATE(TEXT(($D47*(1+(INDEX(settings!$E$4:$E$7,MATCH(INDEX(support!$A$2:$A$5,MATCH(prices!$B47,support!$B$2:$B$5,0)*1),settings!$B$4:$B$7,0))))),"00.000")," (",TEXT((INDEX(settings!$E$4:$E$7,MATCH(INDEX(support!$A$2:$A$5,MATCH(prices!$B47,support!$B$2:$B$5,0)*1),settings!$B$4:$B$7,0))),"00%"),")"),"") ->  | I47: =IF($E47<>"",CONCATENATE(TEXT(($E47*(1+(INDEX(settings!$E$11:$E$14,MATCH(INDEX(support!$A$2:$A$5,MATCH(prices!$B47,support!$B$2:$B$5,0)*1),settings!$B$11:$B$14,0))))),"00.000")," (",TEXT((INDEX(settings!$E$11:$E$14,MATCH(INDEX(support!$A$2:$A$5,MATCH(prices!$B47,support!$B$2:$B$5,0)*1),settings!$B$11:$B$14,0))),"00%"),")"),"") ->  | J47: =IF($F47<>"",CONCATENATE(TEXT(($F47*(1+(INDEX(settings!$J$4:$J$7,MATCH(INDEX(support!$A$2:$A$5,MATCH(prices!$B47,support!$B$2:$B$5,0)*1),settings!$G$4:$G$7,0))))),"00.000")," (",TEXT((INDEX(settings!$J$4:$J$7,MATCH(INDEX(support!$A$2:$A$5,MATCH(prices!$B47,support!$B$2:$B$5,0)*1),settings!$G$4:$G$7,0))),"00%"),")"),"") ->  | K47: =IF($G47<>"",CONCATENATE(TEXT(($G47*(1+(INDEX(settings!$J$11:$J$14,MATCH(INDEX(support!$A$2:$A$5,MATCH(prices!$B47,support!$B$2:$B$5,0)*1),settings!$G$11:$G$14,0))))),"00.000")," (",TEXT((INDEX(settings!$J$11:$J$14,MATCH(INDEX(support!$A$2:$A$5,MATCH(prices!$B47,support!$B$2:$B$5,0)*1),settings!$G$11:$G$14,0))),"00%"),")"),"") -> 
H48: =IF($D48<>"",CONCATENATE(TEXT(($D48*(1+(INDEX(settings!$E$4:$E$7,MATCH(INDEX(support!$A$2:$A$5,MATCH(prices!$B48,support!$B$2:$B$5,0)*1),settings!$B$4:$B$7,0))))),"00.000")," (",TEXT((INDEX(settings!$E$4:$E$7,MATCH(INDEX(support!$A$2:$A$5,MATCH(prices!$B48,support!$B$2:$B$5,0)*1),settings!$B$4:$B$7,0))),"00%"),")"),"") ->  | I48: =IF($E48<>"",CONCATENATE(TEXT(($E48*(1+(INDEX(settings!$E$11:$E$14,MATCH(INDEX(support!$A$2:$A$5,MATCH(prices!$B48,support!$B$2:$B$5,0)*1),settings!$B$11:$B$14,0))))),"00.000")," (",TEXT((INDEX(settings!$E$11:$E$14,MATCH(INDEX(support!$A$2:$A$5,MATCH(prices!$B48,support!$B$2:$B$5,0)*1),settings!$B$11:$B$14,0))),"00%"),")"),"") ->  | J48: =IF($F48<>"",CONCATENATE(TEXT(($F48*(1+(INDEX(settings!$J$4:$J$7,MATCH(INDEX(support!$A$2:$A$5,MATCH(prices!$B48,support!$B$2:$B$5,0)*1),settings!$G$4:$G$7,0))))),"00.000")," (",TEXT((INDEX(settings!$J$4:$J$7,MATCH(INDEX(support!$A$2:$A$5,MATCH(prices!$B48,support!$B$2:$B$5,0)*1),settings!$G$4:$G$7,0))),"00%"),")"),"") ->  | K48: =IF($G48<>"",CONCATENATE(TEXT(($G48*(1+(INDEX(settings!$J$11:$J$14,MATCH(INDEX(support!$A$2:$A$5,MATCH(prices!$B48,support!$B$2:$B$5,0)*1),settings!$G$11:$G$14,0))))),"00.000")," (",TEXT((INDEX(settings!$J$11:$J$14,MATCH(INDEX(support!$A$2:$A$5,MATCH(prices!$B48,support!$B$2:$B$5,0)*1),settings!$G$11:$G$14,0))),"00%"),")"),"") -> 
H49: =IF($D49<>"",CONCATENATE(TEXT(($D49*(1+(INDEX(settings!$E$4:$E$7,MATCH(INDEX(support!$A$2:$A$5,MATCH(prices!$B49,support!$B$2:$B$5,0)*1),settings!$B$4:$B$7,0))))),"00.000")," (",TEXT((INDEX(settings!$E$4:$E$7,MATCH(INDEX(support!$A$2:$A$5,MATCH(prices!$B49,support!$B$2:$B$5,0)*1),settings!$B$4:$B$7,0))),"00%"),")"),"") ->  | I49: =IF($E49<>"",CONCATENATE(TEXT(($E49*(1+(INDEX(settings!$E$11:$E$14,MATCH(INDEX(support!$A$2:$A$5,MATCH(prices!$B49,support!$B$2:$B$5,0)*1),settings!$B$11:$B$14,0))))),"00.000")," (",TEXT((INDEX(settings!$E$11:$E$14,MATCH(INDEX(support!$A$2:$A$5,MATCH(prices!$B49,support!$B$2:$B$5,0)*1),settings!$B$11:$B$14,0))),"00%"),")"),"") ->  | J49: =IF($F49<>"",CONCATENATE(TEXT(($F49*(1+(INDEX(settings!$J$4:$J$7,MATCH(INDEX(support!$A$2:$A$5,MATCH(prices!$B49,support!$B$2:$B$5,0)*1),settings!$G$4:$G$7,0))))),"00.000")," (",TEXT((INDEX(settings!$J$4:$J$7,MATCH(INDEX(support!$A$2:$A$5,MATCH(prices!$B49,support!$B$2:$B$5,0)*1),settings!$G$4:$G$7,0))),"00%"),")"),"") ->  | K49: =IF($G49<>"",CONCATENATE(TEXT(($G49*(1+(INDEX(settings!$J$11:$J$14,MATCH(INDEX(support!$A$2:$A$5,MATCH(prices!$B49,support!$B$2:$B$5,0)*1),settings!$G$11:$G$14,0))))),"00.000")," (",TEXT((INDEX(settings!$J$11:$J$14,MATCH(INDEX(support!$A$2:$A$5,MATCH(prices!$B49,support!$B$2:$B$5,0)*1),settings!$G$11:$G$14,0))),"00%"),")"),"") -> 
H50: =IF($D50<>"",CONCATENATE(TEXT(($D50*(1+(INDEX(settings!$E$4:$E$7,MATCH(INDEX(support!$A$2:$A$5,MATCH(prices!$B50,support!$B$2:$B$5,0)*1),settings!$B$4:$B$7,0))))),"00.000")," (",TEXT((INDEX(settings!$E$4:$E$7,MATCH(INDEX(support!$A$2:$A$5,MATCH(prices!$B50,support!$B$2:$B$5,0)*1),settings!$B$4:$B$7,0))),"00%"),")"),"") ->  | I50: =IF($E50<>"",CONCATENATE(TEXT(($E50*(1+(INDEX(settings!$E$11:$E$14,MATCH(INDEX(support!$A$2:$A$5,MATCH(prices!$B50,support!$B$2:$B$5,0)*1),settings!$B$11:$B$14,0))))),"00.000")," (",TEXT((INDEX(settings!$E$11:$E$14,MATCH(INDEX(support!$A$2:$A$5,MATCH(prices!$B50,support!$B$2:$B$5,0)*1),settings!$B$11:$B$14,0))),"00%"),")"),"") ->  | J50: =IF($F50<>"",CONCATENATE(TEXT(($F50*(1+(INDEX(settings!$J$4:$J$7,MATCH(INDEX(support!$A$2:$A$5,MATCH(prices!$B50,support!$B$2:$B$5,0)*1),settings!$G$4:$G$7,0))))),"00.000")," (",TEXT((INDEX(settings!$J$4:$J$7,MATCH(INDEX(support!$A$2:$A$5,MATCH(prices!$B50,support!$B$2:$B$5,0)*1),settings!$G$4:$G$7,0))),"00%"),")"),"") ->  | K50: =IF($G50<>"",CONCATENATE(TEXT(($G50*(1+(INDEX(settings!$J$11:$J$14,MATCH(INDEX(support!$A$2:$A$5,MATCH(prices!$B50,support!$B$2:$B$5,0)*1),settings!$G$11:$G$14,0))))),"00.000")," (",TEXT((INDEX(settings!$J$11:$J$14,MATCH(INDEX(support!$A$2:$A$5,MATCH(prices!$B50,support!$B$2:$B$5,0)*1),settings!$G$11:$G$14,0))),"00%"),")"),"") -> 
H51: =IF($D51<>"",CONCATENATE(TEXT(($D51*(1+(INDEX(settings!$E$4:$E$7,MATCH(INDEX(support!$A$2:$A$5,MATCH(prices!$B51,support!$B$2:$B$5,0)*1),settings!$B$4:$B$7,0))))),"00.000")," (",TEXT((INDEX(settings!$E$4:$E$7,MATCH(INDEX(support!$A$2:$A$5,MATCH(prices!$B51,support!$B$2:$B$5,0)*1),settings!$B$4:$B$7,0))),"00%"),")"),"") ->  | I51: =IF($E51<>"",CONCATENATE(TEXT(($E51*(1+(INDEX(settings!$E$11:$E$14,MATCH(INDEX(support!$A$2:$A$5,MATCH(prices!$B51,support!$B$2:$B$5,0)*1),settings!$B$11:$B$14,0))))),"00.000")," (",TEXT((INDEX(settings!$E$11:$E$14,MATCH(INDEX(support!$A$2:$A$5,MATCH(prices!$B51,support!$B$2:$B$5,0)*1),settings!$B$11:$B$14,0))),"00%"),")"),"") ->  | J51: =IF($F51<>"",CONCATENATE(TEXT(($F51*(1+(INDEX(settings!$J$4:$J$7,MATCH(INDEX(support!$A$2:$A$5,MATCH(prices!$B51,support!$B$2:$B$5,0)*1),settings!$G$4:$G$7,0))))),"00.000")," (",TEXT((INDEX(settings!$J$4:$J$7,MATCH(INDEX(support!$A$2:$A$5,MATCH(prices!$B51,support!$B$2:$B$5,0)*1),settings!$G$4:$G$7,0))),"00%"),")"),"") ->  | K51: =IF($G51<>"",CONCATENATE(TEXT(($G51*(1+(INDEX(settings!$J$11:$J$14,MATCH(INDEX(support!$A$2:$A$5,MATCH(prices!$B51,support!$B$2:$B$5,0)*1),settings!$G$11:$G$14,0))))),"00.000")," (",TEXT((INDEX(settings!$J$11:$J$14,MATCH(INDEX(support!$A$2:$A$5,MATCH(prices!$B51,support!$B$2:$B$5,0)*1),settings!$G$11:$G$14,0))),"00%"),")"),"") -> 
H52: =IF($D52<>"",CONCATENATE(TEXT(($D52*(1+(INDEX(settings!$E$4:$E$7,MATCH(INDEX(support!$A$2:$A$5,MATCH(prices!$B52,support!$B$2:$B$5,0)*1),settings!$B$4:$B$7,0))))),"00.000")," (",TEXT((INDEX(settings!$E$4:$E$7,MATCH(INDEX(support!$A$2:$A$5,MATCH(prices!$B52,support!$B$2:$B$5,0)*1),settings!$B$4:$B$7,0))),"00%"),")"),"") ->  | I52: =IF($E52<>"",CONCATENATE(TEXT(($E52*(1+(INDEX(settings!$E$11:$E$14,MATCH(INDEX(support!$A$2:$A$5,MATCH(prices!$B52,support!$B$2:$B$5,0)*1),settings!$B$11:$B$14,0))))),"00.000")," (",TEXT((INDEX(settings!$E$11:$E$14,MATCH(INDEX(support!$A$2:$A$5,MATCH(prices!$B52,support!$B$2:$B$5,0)*1),settings!$B$11:$B$14,0))),"00%"),")"),"") ->  | J52: =IF($F52<>"",CONCATENATE(TEXT(($F52*(1+(INDEX(settings!$J$4:$J$7,MATCH(INDEX(support!$A$2:$A$5,MATCH(prices!$B52,support!$B$2:$B$5,0)*1),settings!$G$4:$G$7,0))))),"00.000")," (",TEXT((INDEX(settings!$J$4:$J$7,MATCH(INDEX(support!$A$2:$A$5,MATCH(prices!$B52,support!$B$2:$B$5,0)*1),settings!$G$4:$G$7,0))),"00%"),")"),"") ->  | K52: =IF($G52<>"",CONCATENATE(TEXT(($G52*(1+(INDEX(settings!$J$11:$J$14,MATCH(INDEX(support!$A$2:$A$5,MATCH(prices!$B52,support!$B$2:$B$5,0)*1),settings!$G$11:$G$14,0))))),"00.000")," (",TEXT((INDEX(settings!$J$11:$J$14,MATCH(INDEX(support!$A$2:$A$5,MATCH(prices!$B52,support!$B$2:$B$5,0)*1),settings!$G$11:$G$14,0))),"00%"),")"),"") -> 

Sheet ProfitLossCalc
B1: ENTER CARD PRICE | C1: ENTER FEE % | D1: FEE CHARGE | E1: ADJUSTED CARD PRICE | F1: QTY OF CARD | G1: ADJUSTED TOTAL
A2: BUY | B2: 3.24 | C2: 0.025 | D2: =SUM(B2*C2) -> 0.081 | E2: =SUM(B2+D2) -> 3.321 | F2: 1 | G2: =SUM(E2*F2) -> 3.321
A3: SELL | B3: 4.862 | C3: 0.025 | D3: =SUM(B3*C3) -> 0.12155 | E3: =SUM(B3-D3) -> 4.74045 | F3: 1 | G3: =SUM(E3*F3) -> 4.74045
A4: BOTTOM LINE | E4: =SUM(E3-E2) -> 1.41945 | G4: =SUM(G3 - G2) -> 1.41945
B6: =IF(G4>0,CONCATENATE("You made a profit of ", ROUND(G4,3)),CONCATENATE("You lost ", ROUND(G4,3), " money.")) -> You made a profit of 1.419

Sheet PersonalPercentagesGenerator
A1: Click on a set name to show drop-down of possible selections | C1: PERSONAL SELLING CORRECTIONS
C2: (these are taken from "settings" tab)
A3: SET | B3: TYPE | C3: Selling Correction | D3: Foil Selling Correction | E3: Buying Correction | F3: Foil Buying Correction | H3: Copy the below desired cells and paste them into your "PersonalPercentages.txt" file
A4: Gatecrash | B4: MYTHIC | C4: =settings!$D$4 -> -9.992007222e-16 | D4: =settings!$D$11 -> -9.992007222e-16 | E4: =settings!$I$4 -> -9.992007222e-16 | F4: =settings!$I$11 -> -9.992007222e-16 | H4: =CONCATENATE(VLOOKUP($A$4,support!$D$2:$E$94,2),";",B4,";",TEXT(C4,"00%"),";",TEXT(D4,"00%"),";",TEXT(E4,"00%"),";",TEXT(F4,"00%")) -> GTC;MYTHIC;00%;00%;00%;00%
B5: RARE | C5: =settings!$D$5 -> -9.992007222e-16 | D5: =settings!$D$12 -> -9.992007222e-16 | E5: =settings!$I$5 -> -9.992007222e-16 | F5: =settings!$I$12 -> -9.992007222e-16 | H5: =CONCATENATE(VLOOKUP($A$4,support!$D$2:$E$94,2),";",B5,";",TEXT(C5,"00%"),";",TEXT(D5,"00%"),";",TEXT(E5,"00%"),";",TEXT(F5,"00%")) -> GTC;RARE;00%;00%;00%;00%
B6: UNCOMMON | C6: =settings!$D$6 -> -9.992007222e-16 | D6: =settings!$D$13 -> -9.992007222e-16 | E6: =settings!$I$6 -> -9.992007222e-16 | F6: =settings!$I$13 -> -9.992007222e-16 | H6: =CONCATENATE(VLOOKUP($A$4,support!$D$2:$E$94,2),";",B6,";",TEXT(C6,"00%"),";",TEXT(D6,"00%"),";",TEXT(E6,"00%"),";",TEXT(F6,"00%")) -> GTC;UNCOMMON;00%;00%;00%;00%
B7: COMMON | C7: =settings!$D$7 -> -9.992007222e-16 | D7: =settings!$D$14 -> -9.992007222e-16 | E7: =settings!$I$7 -> -9.992007222e-16 | F7: =settings!$I$14 -> -9.992007222e-16 | H7: =CONCATENATE(VLOOKUP($A$4,support!$D$2:$E$94,2),";",B7,";",TEXT(C7,"00%"),";",TEXT(D7,"00%"),";",TEXT(E7,"00%"),";",TEXT(F7,"00%")) -> GTC;COMMON;00%;00%;00%;00%
A8: Return to Ravnica | B8: MYTHIC | C8: =settings!$D$4 -> -9.992007222e-16 | D8: =settings!$D$11 -> -9.992007222e-16 | E8: =settings!$I$4 -> -9.992007222e-16 | F8: =settings!$I$11 -> -9.992007222e-16 | H8: =CONCATENATE(VLOOKUP($A$8,support!$D$2:$E$94,2),";",B8,";",TEXT(C8,"00%"),";",TEXT(D8,"00%"),";",TEXT(E8,"00%"),";",TEXT(F8,"00%")) -> RTR;MYTHIC;00%;00%;00%;00%
B9: RARE | C9: =settings!$D$5 -> -9.992007222e-16 | D9: =settings!$D$12 -> -9.992007222e-16 | E9: =settings!$I$5 -> -9.992007222e-16 | F9: =settings!$I$12 -> -9.992007222e-16 | H9: =CONCATENATE(VLOOKUP($A$8,support!$D$2:$E$94,2),";",B9,";",TEXT(C9,"00%"),";",TEXT(D9,"00%"),";",TEXT(E9,"00%"),";",TEXT(F9,"00%")) -> RTR;RARE;00%;00%;00%;00%
B10: UNCOMMON | C10: =settings!$D$6 -> -9.992007222e-16 | D10: =settings!$D$13 -> -9.992007222e-16 | E10: =settings!$I$6 -> -9.992007222e-16 | F10: =settings!$I$13 -> -9.992007222e-16 | H10: =CONCATENATE(VLOOKUP($A$8,support!$D$2:$E$94,2),";",B10,";",TEXT(C10,"00%"),";",TEXT(D10,"00%"),";",TEXT(E10,"00%"),";",TEXT(F10,"00%")) -> RTR;UNCOMMON;00%;00%;00%;00%
B11: COMMON | C11: =settings!$D$7 -> -9.992007222e-16 | D11: =settings!$D$14 -> -9.992007222e-16 | E11: =settings!$I$7 -> -9.992007222e-16 | F11: =settings!$I$14 -> -9.992007222e-16 | H11: =CONCATENATE(VLOOKUP($A$8,support!$D$2:$E$94,2),";",B11,";",TEXT(C11,"00%"),";",TEXT(D11,"00%"),";",TEXT(E11,"00%"),";",TEXT(F11,"00%")) -> RTR;COMMON;00%;00%;00%;00%
A12: Magic 2013 | B12: MYTHIC | C12: =settings!$D$4 -> -9.992007222e-16 | D12: =settings!$D$11 -> -9.992007222e-16 | E12: =settings!$I$4 -> -9.992007222e-16 | F12: =settings!$I$11 -> -9.992007222e-16 | H12: =CONCATENATE(VLOOKUP($A$12,support!$D$2:$E$94,2),";",B12,";",TEXT(C12,"00%"),";",TEXT(D12,"00%"),";",TEXT(E12,"00%"),";",TEXT(F12,"00%")) -> M13;MYTHIC;00%;00%;00%;00%
B13: RARE | C13: =settings!$D$5 -> -9.992007222e-16 | D13: =settings!$D$12 -> -9.992007222e-16 | E13: =settings!$I$5 -> -9.992007222e-16 | F13: =settings!$I$12 -> -9.992007222e-16 | H13: =CONCATENATE(VLOOKUP($A$12,support!$D$2:$E$94,2),";",B13,";",TEXT(C13,"00%"),";",TEXT(D13,"00%"),";",TEXT(E13,"00%"),";",TEXT(F13,"00%")) -> M13;RARE;00%;00%;00%;00%
B14: UNCOMMON | C14: =settings!$D$6 -> -9.992007222e-16 | D14: =settings!$D$13 -> -9.992007222e-16 | E14: =settings!$I$6 -> -9.992007222e-16 | F14: =settings!$I$13 -> -9.992007222e-16 | H14: =CONCATENATE(VLOOKUP($A$12,support!$D$2:$E$94,2),";",B14,";",TEXT(C14,"00%"),";",TEXT(D14,"00%"),";",TEXT(E14,"00%"),";",TEXT(F14,"00%")) -> M13;UNCOMMON;00%;00%;00%;00%
B15: COMMON | C15: =settings!$D$7 -> -9.992007222e-16 | D15: =settings!$D$14 -> -9.992007222e-16 | E15: =settings!$I$7 -> -9.992007222e-16 | F15: =settings!$I$14 -> -9.992007222e-16 | H15: =CONCATENATE(VLOOKUP($A$12,support!$D$2:$E$94,2),";",B15,";",TEXT(C15,"00%"),";",TEXT(D15,"00%"),";",TEXT(E15,"00%"),";",TEXT(F15,"00%")) -> M13;COMMON;00%;00%;00%;00%
A16: Avacyn Restored | B16: MYTHIC | C16: =settings!$D$4 -> -9.992007222e-16 | D16: =settings!$D$11 -> -9.992007222e-16 | E16: =settings!$I$4 -> -9.992007222e-16 | F16: =settings!$I$11 -> -9.992007222e-16 | H16: =CONCATENATE(VLOOKUP($A$16,support!$D$2:$E$94,2),";",B16,";",TEXT(C16,"00%"),";",TEXT(D16,"00%"),";",TEXT(E16,"00%"),";",TEXT(F16,"00%")) -> AVR;MYTHIC;00%;00%;00%;00%
B17: RARE | C17: =settings!$D$5 -> -9.992007222e-16 | D17: =settings!$D$12 -> -9.992007222e-16 | E17: =settings!$I$5 -> -9.992007222e-16 | F17: =settings!$I$12 -> -9.992007222e-16 | H17: =CONCATENATE(VLOOKUP($A$16,support!$D$2:$E$94,2),";",B17,";",TEXT(C17,"00%"),";",TEXT(D17,"00%"),";",TEXT(E17,"00%"),";",TEXT(F17,"00%")) -> AVR;RARE;00%;00%;00%;00%
B18: UNCOMMON | C18: =settings!$D$6 -> -9.992007222e-16 | D18: =settings!$D$13 -> -9.992007222e-16 | E18: =settings!$I$6 -> -9.992007222e-16 | F18: =settings!$I$13 -> -9.992007222e-16 | H18: =CONCATENATE(VLOOKUP($A$16,support!$D$2:$E$94,2),";",B18,";",TEXT(C18,"00%"),";",TEXT(D18,"00%"),";",TEXT(E18,"00%"),";",TEXT(F18,"00%")) -> AVR;UNCOMMON;00%;00%;00%;00%
B19: COMMON | C19: =settings!$D$7 -> -9.992007222e-16 | D19: =settings!$D$14 -> -9.992007222e-16 | E19: =settings!$I$7 -> -9.992007222e-16 | F19: =settings!$I$14 -> -9.992007222e-16 | H19: =CONCATENATE(VLOOKUP($A$16,support!$D$2:$E$94,2),";",B19,";",TEXT(C19,"00%"),";",TEXT(D19,"00%"),";",TEXT(E19,"00%"),";",TEXT(F19,"00%")) -> AVR;COMMON;00%;00%;00%;00%
A20: Dark Ascension | B20: MYTHIC | C20: =settings!$D$4 -> -9.992007222e-16 | D20: =settings!$D$11 -> -9.992007222e-16 | E20: =settings!$I$4 -> -9.992007222e-16 | F20: =settings!$I$11 -> -9.992007222e-16 | H20: =CONCATENATE(VLOOKUP($A$20,support!$D$2:$E$94,2),";",B20,";",TEXT(C20,"00%"),";",TEXT(D20,"00%"),";",TEXT(E20,"00%"),";",TEXT(F20,"00%")) -> DKA;MYTHIC;00%;00%;00%;00%
B21: RARE | C21: =settings!$D$5 -> -9.992007222e-16 | D21: =settings!$D$12 -> -9.992007222e-16 | E21: =settings!$I$5 -> -9.992007222e-16 | F21: =settings!$I$12 -> -9.992007222e-16 | H21: =CONCATENATE(VLOOKUP($A$20,support!$D$2:$E$94,2),";",B21,";",TEXT(C21,"00%"),";",TEXT(D21,"00%"),";",TEXT(E21,"00%"),";",TEXT(F21,"00%")) -> DKA;RARE;00%;00%;00%;00%
B22: UNCOMMON | C22: =settings!$D$6 -> -9.992007222e-16 | D22: =settings!$D$13 -> -9.992007222e-16 | E22: =settings!$I$6 -> -9.992007222e-16 | F22: =settings!$I$13 -> -9.992007222e-16 | H22: =CONCATENATE(VLOOKUP($A$20,support!$D$2:$E$94,2),";",B22,";",TEXT(C22,"00%"),";",TEXT(D22,"00%"),";",TEXT(E22,"00%"),";",TEXT(F22,"00%")) -> DKA;UNCOMMON;00%;00%;00%;00%
B23: COMMON | C23: =settings!$D$7 -> -9.992007222e-16 | D23: =settings!$D$14 -> -9.992007222e-16 | E23: =settings!$I$7 -> -9.992007222e-16 | F23: =settings!$I$14 -> -9.992007222e-16 | H23: =CONCATENATE(VLOOKUP($A$20,support!$D$2:$E$94,2),";",B23,";",TEXT(C23,"00%"),";",TEXT(D23,"00%"),";",TEXT(E23,"00%"),";",TEXT(F23,"00%")) -> DKA;COMMON;00%;00%;00%;00%
A24: Innistrad | B24: MYTHIC | C24: =settings!$D$4 -> -9.992007222e-16 | D24: =settings!$D$11 -> -9.992007222e-16 | E24: =settings!$I$4 -> -9.992007222e-16 | F24: =settings!$I$11 -> -9.992007222e-16 | H24: =CONCATENATE(VLOOKUP($A$24,support!$D$2:$E$94,2),";",B24,";",TEXT(C24,"00%"),";",TEXT(D24,"00%"),";",TEXT(E24,"00%"),";",TEXT(F24,"00%")) -> ISD;MYTHIC;00%;00%;00%;00%
B25: RARE | C25: =settings!$D$5 -> -9.992007222e-16 | D25: =settings!$D$12 -> -9.992007222e-16 | E25: =settings!$I$5 -> -9.992007222e-16 | F25: =settings!$I$12 -> -9.992007222e-16 | H25: =CONCATENATE(VLOOKUP($A$24,support!$D$2:$E$94,2),";",B25,";",TEXT(C25,"00%"),";",TEXT(D25,"00%"),";",TEXT(E25,"00%"),";",TEXT(F25,"00%")) -> ISD;RARE;00%;00%;00%;00%
B26: UNCOMMON | C26: =settings!$D$6 -> -9.992007222e-16 | D26: =settings!$D$13 -> -9.992007222e-16 | E26: =settings!$I$6 -> -9.992007222e-16 | F26: =settings!$I$13 -> -9.992007222e-16 | H26: =CONCATENATE(VLOOKUP($A$24,support!$D$2:$E$94,2),";",B26,";",TEXT(C26,"00%"),";",TEXT(D26,"00%"),";",TEXT(E26,"00%"),";",TEXT(F26,"00%")) -> ISD;UNCOMMON;00%;00%;00%;00%
B27: COMMON | C27: =settings!$D$7 -> -9.992007222e-16 | D27: =settings!$D$14 -> -9.992007222e-16 | E27: =settings!$I$7 -> -9.992007222e-16 | F27: =settings!$I$14 -> -9.992007222e-16 | H27: =CONCATENATE(VLOOKUP($A$24,support!$D$2:$E$94,2),";",B27,";",TEXT(C27,"00%"),";",TEXT(D27,"00%"),";",TEXT(E27,"00%"),";",TEXT(F27,"00%")) -> ISD;COMMON;00%;00%;00%;00%
A28: Magic 2012 | B28: MYTHIC | C28: =settings!$D$4 -> -9.992007222e-16 | D28: =settings!$D$11 -> -9.992007222e-16 | E28: =settings!$I$4 -> -9.992007222e-16 | F28: =settings!$I$11 -> -9.992007222e-16 | H28: =CONCATENATE(VLOOKUP($A$28,support!$D$2:$E$94,2),";",B28,";",TEXT(C28,"00%"),";",TEXT(D28,"00%"),";",TEXT(E28,"00%"),";",TEXT(F28,"00%")) -> M12;MYTHIC;00%;00%;00%;00%
B29: RARE | C29: =settings!$D$5 -> -9.992007222e-16 | D29: =settings!$D$12 -> -9.992007222e-16 | E29: =settings!$I$5 -> -9.992007222e-16 | F29: =settings!$I$12 -> -9.992007222e-16 | H29: =CONCATENATE(VLOOKUP($A$28,support!$D$2:$E$94,2),";",B29,";",TEXT(C29,"00%"),";",TEXT(D29,"00%"),";",TEXT(E29,"00%"),";",TEXT(F29,"00%")) -> M12;RARE;00%;00%;00%;00%
B30: UNCOMMON | C30: =settings!$D$6 -> -9.992007222e-16 | D30: =settings!$D$13 -> -9.992007222e-16 | E30: =settings!$I$6 -> -9.992007222e-16 | F30: =settings!$I$13 -> -9.992007222e-16 | H30: =CONCATENATE(VLOOKUP($A$28,support!$D$2:$E$94,2),";",B30,";",TEXT(C30,"00%"),";",TEXT(D30,"00%"),";",TEXT(E30,"00%"),";",TEXT(F30,"00%")) -> M12;UNCOMMON;00%;00%;00%;00%
B31: COMMON | C31: =settings!$D$7 -> -9.992007222e-16 | D31: =settings!$D$14 -> -9.992007222e-16 | E31: =settings!$I$7 -> -9.992007222e-16 | F31: =settings!$I$14 -> -9.992007222e-16 | H31: =CONCATENATE(VLOOKUP($A$28,support!$D$2:$E$94,2),";",B31,";",TEXT(C31,"00%"),";",TEXT(D31,"00%"),";",TEXT(E31,"00%"),";",TEXT(F31,"00%")) -> M12;COMMON;00%;00%;00%;00%
A32: Commander | B32: MYTHIC | C32: =settings!$D$4 -> -9.992007222e-16 | D32: =settings!$D$11 -> -9.992007222e-16 | E32: =settings!$I$4 -> -9.992007222e-16 | F32: =settings!$I$11 -> -9.992007222e-16 | H32: =CONCATENATE(VLOOKUP($A$32,support!$D$2:$E$94,2),";",B32,";",TEXT(C32,"00%"),";",TEXT(D32,"00%"),";",TEXT(E32,"00%"),";",TEXT(F32,"00%")) -> CMD;MYTHIC;00%;00%;00%;00%
B33: RARE | C33: =settings!$D$5 -> -9.992007222e-16 | D33: =settings!$D$12 -> -9.992007222e-16 | E33: =settings!$I$5 -> -9.992007222e-16 | F33: =settings!$I$12 -> -9.992007222e-16 | H33: =CONCATENATE(VLOOKUP($A$32,support!$D$2:$E$94,2),";",B33,";",TEXT(C33,"00%"),";",TEXT(D33,"00%"),";",TEXT(E33,"00%"),";",TEXT(F33,"00%")) -> CMD;RARE;00%;00%;00%;00%
B34: UNCOMMON | C34: =settings!$D$6 -> -9.992007222e-16 | D34: =settings!$D$13 -> -9.992007222e-16 | E34: =settings!$I$6 -> -9.992007222e-16 | F34: =settings!$I$13 -> -9.992007222e-16 | H34: =CONCATENATE(VLOOKUP($A$32,support!$D$2:$E$94,2),";",B34,";",TEXT(C34,"00%"),";",TEXT(D34,"00%"),";",TEXT(E34,"00%"),";",TEXT(F34,"00%")) -> CMD;UNCOMMON;00%;00%;00%;00%
B35: COMMON | C35: =settings!$D$7 -> -9.992007222e-16 | D35: =settings!$D$14 -> -9.992007222e-16 | E35: =settings!$I$7 -> -9.992007222e-16 | F35: =settings!$I$14 -> -9.992007222e-16 | H35: =CONCATENATE(VLOOKUP($A$32,support!$D$2:$E$94,2),";",B35,";",TEXT(C35,"00%"),";",TEXT(D35,"00%"),";",TEXT(E35,"00%"),";",TEXT(F35,"00%")) -> CMD;COMMON;00%;00%;00%;00%
A36: New Phyrexia | B36: MYTHIC | C36: =settings!$D$4 -> -9.992007222e-16 | D36: =settings!$D$11 -> -9.992007222e-16 | E36: =settings!$I$4 -> -9.992007222e-16 | F36: =settings!$I$11 -> -9.992007222e-16 | H36: =CONCATENATE(VLOOKUP($A$36,support!$D$2:$E$94,2),";",B36,";",TEXT(C36,"00%"),";",TEXT(D36,"00%"),";",TEXT(E36,"00%"),";",TEXT(F36,"00%")) -> NPH;MYTHIC;00%;00%;00%;00%
B37: RARE | C37: =settings!$D$5 -> -9.992007222e-16 | D37: =settings!$D$12 -> -9.992007222e-16 | E37: =settings!$I$5 -> -9.992007222e-16 | F37: =settings!$I$12 -> -9.992007222e-16 | H37: =CONCATENATE(VLOOKUP($A$36,support!$D$2:$E$94,2),";",B37,";",TEXT(C37,"00%"),";",TEXT(D37,"00%"),";",TEXT(E37,"00%"),";",TEXT(F37,"00%")) -> NPH;RARE;00%;00%;00%;00%
B38: UNCOMMON | C38: =settings!$D$6 -> -9.992007222e-16 | D38: =settings!$D$13 -> -9.992007222e-16 | E38: =settings!$I$6 -> -9.992007222e-16 | F38: =settings!$I$13 -> -9.992007222e-16 | H38: =CONCATENATE(VLOOKUP($A$36,support!$D$2:$E$94,2),";",B38,";",TEXT(C38,"00%"),";",TEXT(D38,"00%"),";",TEXT(E38,"00%"),";",TEXT(F38,"00%")) -> NPH;UNCOMMON;00%;00%;00%;00%
B39: COMMON | C39: =settings!$D$7 -> -9.992007222e-16 | D39: =settings!$D$14 -> -9.992007222e-16 | E39: =settings!$I$7 -> -9.992007222e-16 | F39: =settings!$I$14 -> -9.992007222e-16 | H39: =CONCATENATE(VLOOKUP($A$36,support!$D$2:$E$94,2),";",B39,";",TEXT(C39,"00%"),";",TEXT(D39,"00%"),";",TEXT(E39,"00%"),";",TEXT(F39,"00%")) -> NPH;COMMON;00%;00%;00%;00%
A40: Mirrodin Besieged | B40: MYTHIC | C40: =settings!$D$4 -> -9.992007222e-16 | D40: =settings!$D$11 -> -9.992007222e-16 | E40: =settings!$I$4 -> -9.992007222e-16 | F40: =settings!$I$11 -> -9.992007222e-16 | H40: =CONCATENATE(VLOOKUP($A$40,support!$D$2:$E$94,2),";",B40,";",TEXT(C40,"00%"),";",TEXT(D40,"00%"),";",TEXT(E40,"00%"),";",TEXT(F40,"00%")) -> MBS;MYTHIC;00%;00%;00%;00%
B41: RARE | C41: =settings!$D$5 -> -9.992007222e-16 | D41: =settings!$D$12 -> -9.992007222e-16 | E41: =settings!$I$5 -> -9.992007222e-16 | F41: =settings!$I$12 -> -9.992007222e-16 | H41: =CONCATENATE(VLOOKUP($A$40,support!$D$2:$E$94,2),";",B41,";",TEXT(C41,"00%"),";",TEXT(D41,"00%"),";",TEXT(E41,"00%"),";",TEXT(F41,"00%")) -> MBS;RARE;00%;00%;00%;00%
B42: UNCOMMON | C42: =settings!$D$6 -> -9.992007222e-16 | D42: =settings!$D$13 -> -9.992007222e-16 | E42: =settings!$I$6 -> -9.992007222e-16 | F42: =settings!$I$13 -> -9.992007222e-16 | H42: =CONCATENATE(VLOOKUP($A$40,support!$D$2:$E$94,2),";",B42,";",TEXT(C42,"00%"),";",TEXT(D42,"00%"),";",TEXT(E42,"00%"),";",TEXT(F42,"00%")) -> MBS;UNCOMMON;00%;00%;00%;00%
B43: COMMON | C43: =settings!$D$7 -> -9.992007222e-16 | D43: =settings!$D$14 -> -9.992007222e-16 | E43: =settings!$I$7 -> -9.992007222e-16 | F43: =settings!$I$14 -> -9.992007222e-16 | H43: =CONCATENATE(VLOOKUP($A$40,support!$D$2:$E$94,2),";",B43,";",TEXT(C43,"00%"),";",TEXT(D43,"00%"),";",TEXT(E43,"00%"),";",TEXT(F43,"00%")) -> MBS;COMMON;00%;00%;00%;00%
A44: Scars of Mirrodin | B44: MYTHIC | C44: =settings!$D$4 -> -9.992007222e-16 | D44: =settings!$D$11 -> -9.992007222e-16 | E44: =settings!$I$4 -> -9.992007222e-16 | F44: =settings!$I$11 -> -9.992007222e-16 | H44: =CONCATENATE(VLOOKUP($A$44,support!$D$2:$E$94,2),";",B44,";",TEXT(C44,"00%"),";",TEXT(D44,"00%"),";",TEXT(E44,"00%"),";",TEXT(F44,"00%")) -> SOM;MYTHIC;00%;00%;00%;00%
B45: RARE | C45: =settings!$D$5 -> -9.992007222e-16 | D45: =settings!$D$12 -> -9.992007222e-16 | E45: =settings!$I$5 -> -9.992007222e-16 | F45: =settings!$I$12 -> -9.992007222e-16 | H45: =CONCATENATE(VLOOKUP($A$44,support!$D$2:$E$94,2),";",B45,";",TEXT(C45,"00%"),";",TEXT(D45,"00%"),";",TEXT(E45,"00%"),";",TEXT(F45,"00%")) -> SOM;RARE;00%;00%;00%;00%
B46: UNCOMMON | C46: =settings!$D$6 -> -9.992007222e-16 | D46: =settings!$D$13 -> -9.992007222e-16 | E46: =settings!$I$6 -> -9.992007222e-16 | F46: =settings!$I$13 -> -9.992007222e-16 | H46: =CONCATENATE(VLOOKUP($A$44,support!$D$2:$E$94,2),";",B46,";",TEXT(C46,"00%"),";",TEXT(D46,"00%"),";",TEXT(E46,"00%"),";",TEXT(F46,"00%")) -> SOM;UNCOMMON;00%;00%;00%;00%
B47: COMMON | C47: =settings!$D$7 -> -9.992007222e-16 | D47: =settings!$D$14 -> -9.992007222e-16 | E47: =settings!$I$7 -> -9.992007222e-16 | F47: =settings!$I$14 -> -9.992007222e-16 | H47: =CONCATENATE(VLOOKUP($A$44,support!$D$2:$E$94,2),";",B47,";",TEXT(C47,"00%"),";",TEXT(D47,"00%"),";",TEXT(E47,"00%"),";",TEXT(F47,"00%")) -> SOM;COMMON;00%;00%;00%;00%
A48: Magic 2011 | B48: MYTHIC | C48: =settings!$D$4 -> -9.992007222e-16 | D48: =settings!$D$11 -> -9.992007222e-16 | E48: =settings!$I$4 -> -9.992007222e-16 | F48: =settings!$I$11 -> -9.992007222e-16 | H48: =CONCATENATE(VLOOKUP($A$48,support!$D$2:$E$94,2),";",B48,";",TEXT(C48,"00%"),";",TEXT(D48,"00%"),";",TEXT(E48,"00%"),";",TEXT(F48,"00%")) -> M11;MYTHIC;00%;00%;00%;00%
B49: RARE | C49: =settings!$D$5 -> -9.992007222e-16 | D49: =settings!$D$12 -> -9.992007222e-16 | E49: =settings!$I$5 -> -9.992007222e-16 | F49: =settings!$I$12 -> -9.992007222e-16 | H49: =CONCATENATE(VLOOKUP($A$48,support!$D$2:$E$94,2),";",B49,";",TEXT(C49,"00%"),";",TEXT(D49,"00%"),";",TEXT(E49,"00%"),";",TEXT(F49,"00%")) -> M11;RARE;00%;00%;00%;00%
B50: UNCOMMON | C50: =settings!$D$6 -> -9.992007222e-16 | D50: =settings!$D$13 -> -9.992007222e-16 | E50: =settings!$I$6 -> -9.992007222e-16 | F50: =settings!$I$13 -> -9.992007222e-16 | H50: =CONCATENATE(VLOOKUP($A$48,support!$D$2:$E$94,2),";",B50,";",TEXT(C50,"00%"),";",TEXT(D50,"00%"),";",TEXT(E50,"00%"),";",TEXT(F50,"00%")) -> M11;UNCOMMON;00%;00%;00%;00%
B51: COMMON | C51: =settings!$D$7 -> -9.992007222e-16 | D51: =settings!$D$14 -> -9.992007222e-16 | E51: =settings!$I$7 -> -9.992007222e-16 | F51: =settings!$I$14 -> -9.992007222e-16 | H51: =CONCATENATE(VLOOKUP($A$48,support!$D$2:$E$94,2),";",B51,";",TEXT(C51,"00%"),";",TEXT(D51,"00%"),";",TEXT(E51,"00%"),";",TEXT(F51,"00%")) -> M11;COMMON;00%;00%;00%;00%
A52: Rise of the Eldrazi | B52: MYTHIC | C52: =settings!$D$4 -> -9.992007222e-16 | D52: =settings!$D$11 -> -9.992007222e-16 | E52: =settings!$I$4 -> -9.992007222e-16 | F52: =settings!$I$11 -> -9.992007222e-16 | H52: =CONCATENATE(VLOOKUP($A$52,support!$D$2:$E$94,2),";",B52,";",TEXT(C52,"00%"),";",TEXT(D52,"00%"),";",TEXT(E52,"00%"),";",TEXT(F52,"00%")) -> ROE;MYTHIC;00%;00%;00%;00%
B53: RARE | C53: =settings!$D$5 -> -9.992007222e-16 | D53: =settings!$D$12 -> -9.992007222e-16 | E53: =settings!$I$5 -> -9.992007222e-16 | F53: =settings!$I$12 -> -9.992007222e-16 | H53: =CONCATENATE(VLOOKUP($A$52,support!$D$2:$E$94,2),";",B53,";",TEXT(C53,"00%"),";",TEXT(D53,"00%"),";",TEXT(E53,"00%"),";",TEXT(F53,"00%")) -> ROE;RARE;00%;00%;00%;00%
B54: UNCOMMON | C54: =settings!$D$6 -> -9.992007222e-16 | D54: =settings!$D$13 -> -9.992007222e-16 | E54: =settings!$I$6 -> -9.992007222e-16 | F54: =settings!$I$13 -> -9.992007222e-16 | H54: =CONCATENATE(VLOOKUP($A$52,support!$D$2:$E$94,2),";",B54,";",TEXT(C54,"00%"),";",TEXT(D54,"00%"),";",TEXT(E54,"00%"),";",TEXT(F54,"00%")) -> ROE;UNCOMMON;00%;00%;00%;00%
B55: COMMON | C55: =settings!$D$7 -> -9.992007222e-16 | D55: =settings!$D$14 -> -9.992007222e-16 | E55: =settings!$I$7 -> -9.992007222e-16 | F55: =settings!$I$14 -> -9.992007222e-16 | H55: =CONCATENATE(VLOOKUP($A$52,support!$D$2:$E$94,2),";",B55,";",TEXT(C55,"00%"),";",TEXT(D55,"00%"),";",TEXT(E55,"00%"),";",TEXT(F55,"00%")) -> ROE;COMMON;00%;00%;00%;00%
A56: Worldwake | B56: MYTHIC | C56: =settings!$D$4 -> -9.992007222e-16 | D56: =settings!$D$11 -> -9.992007222e-16 | E56: =settings!$I$4 -> -9.992007222e-16 | F56: =settings!$I$11 -> -9.992007222e-16 | H56: =CONCATENATE(VLOOKUP($A$56,support!$D$2:$E$94,2),";",B56,";",TEXT(C56,"00%"),";",TEXT(D56,"00%"),";",TEXT(E56,"00%"),";",TEXT(F56,"00%")) -> WWK;MYTHIC;00%;00%;00%;00%
B57: RARE | C57: =settings!$D$5 -> -9.992007222e-16 | D57: =settings!$D$12 -> -9.992007222e-16 | E57: =settings!$I$5 -> -9.992007222e-16 | F57: =settings!$I$12 -> -9.992007222e-16 | H57: =CONCATENATE(VLOOKUP($A$56,support!$D$2:$E$94,2),";",B57,";",TEXT(C57,"00%"),";",TEXT(D57,"00%"),";",TEXT(E57,"00%"),";",TEXT(F57,"00%")) -> WWK;RARE;00%;00%;00%;00%
B58: UNCOMMON | C58: =settings!$D$6 -> -9.992007222e-16 | D58: =settings!$D$13 -> -9.992007222e-16 | E58: =settings!$I$6 -> -9.992007222e-16 | F58: =settings!$I$13 -> -9.992007222e-16 | H58: =CONCATENATE(VLOOKUP($A$56,support!$D$2:$E$94,2),";",B58,";",TEXT(C58,"00%"),";",TEXT(D58,"00%"),";",TEXT(E58,"00%"),";",TEXT(F58,"00%")) -> WWK;UNCOMMON;00%;00%;00%;00%
B59: COMMON | C59: =settings!$D$7 -> -9.992007222e-16 | D59: =settings!$D$14 -> -9.992007222e-16 | E59: =settings!$I$7 -> -9.992007222e-16 | F59: =settings!$I$14 -> -9.992007222e-16 | H59: =CONCATENATE(VLOOKUP($A$56,support!$D$2:$E$94,2),";",B59,";",TEXT(C59,"00%"),";",TEXT(D59,"00%"),";",TEXT(E59,"00%"),";",TEXT(F59,"00%")) -> WWK;COMMON;00%;00%;00%;00%
A60: Zendikar | B60: MYTHIC | C60: =settings!$D$4 -> -9.992007222e-16 | D60: =settings!$D$11 -> -9.992007222e-16 | E60: =settings!$I$4 -> -9.992007222e-16 | F60: =settings!$I$11 -> -9.992007222e-16 | H60: =CONCATENATE(VLOOKUP($A$60,support!$D$2:$E$94,2),";",B60,";",TEXT(C60,"00%"),";",TEXT(D60,"00%"),";",TEXT(E60,"00%"),";",TEXT(F60,"00%")) -> ZEN;MYTHIC;00%;00%;00%;00%
B61: RARE | C61: =settings!$D$5 -> -9.992007222e-16 | D61: =settings!$D$12 -> -9.992007222e-16 | E61: =settings!$I$5 -> -9.992007222e-16 | F61: =settings!$I$12 -> -9.992007222e-16 | H61: =CONCATENATE(VLOOKUP($A$60,support!$D$2:$E$94,2),";",B61,";",TEXT(C61,"00%"),";",TEXT(D61,"00%"),";",TEXT(E61,"00%"),";",TEXT(F61,"00%")) -> ZEN;RARE;00%;00%;00%;00%
B62: UNCOMMON | C62: =settings!$D$6 -> -9.992007222e-16 | D62: =settings!$D$13 -> -9.992007222e-16 | E62: =settings!$I$6 -> -9.992007222e-16 | F62: =settings!$I$13 -> -9.992007222e-16 | H62: =CONCATENATE(VLOOKUP($A$60,support!$D$2:$E$94,2),";",B62,";",TEXT(C62,"00%"),";",TEXT(D62,"00%"),";",TEXT(E62,"00%"),";",TEXT(F62,"00%")) -> ZEN;UNCOMMON;00%;00%;00%;00%
B63: COMMON | C63: =settings!$D$7 -> -9.992007222e-16 | D63: =settings!$D$14 -> -9.992007222e-16 | E63: =settings!$I$7 -> -9.992007222e-16 | F63: =settings!$I$14 -> -9.992007222e-16 | H63: =CONCATENATE(VLOOKUP($A$60,support!$D$2:$E$94,2),";",B63,";",TEXT(C63,"00%"),";",TEXT(D63,"00%"),";",TEXT(E63,"00%"),";",TEXT(F63,"00%")) -> ZEN;COMMON;00%;00%;00%;00%
A64: Magic 2010 | B64: MYTHIC | C64: =settings!$D$4 -> -9.992007222e-16 | D64: =settings!$D$11 -> -9.992007222e-16 | E64: =settings!$I$4 -> -9.992007222e-16 | F64: =settings!$I$11 -> -9.992007222e-16 | H64: =CONCATENATE(VLOOKUP($A$64,support!$D$2:$E$94,2),";",B64,";",TEXT(C64,"00%"),";",TEXT(D64,"00%"),";",TEXT(E64,"00%"),";",TEXT(F64,"00%")) -> M10;MYTHIC;00%;00%;00%;00%
B65: RARE | C65: =settings!$D$5 -> -9.992007222e-16 | D65: =settings!$D$12 -> -9.992007222e-16 | E65: =settings!$I$5 -> -9.992007222e-16 | F65: =settings!$I$12 -> -9.992007222e-16 | H65: =CONCATENATE(VLOOKUP($A$64,support!$D$2:$E$94,2),";",B65,";",TEXT(C65,"00%"),";",TEXT(D65,"00%"),";",TEXT(E65,"00%"),";",TEXT(F65,"00%")) -> M10;RARE;00%;00%;00%;00%
B66: UNCOMMON | C66: =settings!$D$6 -> -9.992007222e-16 | D66: =settings!$D$13 -> -9.992007222e-16 | E66: =settings!$I$6 -> -9.992007222e-16 | F66: =settings!$I$13 -> -9.992007222e-16 | H66: =CONCATENATE(VLOOKUP($A$64,support!$D$2:$E$94,2),";",B66,";",TEXT(C66,"00%"),";",TEXT(D66,"00%"),";",TEXT(E66,"00%"),";",TEXT(F66,"00%")) -> M10;UNCOMMON;00%;00%;00%;00%
B67: COMMON | C67: =settings!$D$7 -> -9.992007222e-16 | D67: =settings!$D$14 -> -9.992007222e-16 | E67: =settings!$I$7 -> -9.992007222e-16 | F67: =settings!$I$14 -> -9.992007222e-16 | H67: =CONCATENATE(VLOOKUP($A$64,support!$D$2:$E$94,2),";",B67,";",TEXT(C67,"00%"),";",TEXT(D67,"00%"),";",TEXT(E67,"00%"),";",TEXT(F67,"00%")) -> M10;COMMON;00%;00%;00%;00%
A68: Alara Reborn | B68: MYTHIC | C68: =settings!$D$4 -> -9.992007222e-16 | D68: =settings!$D$11 -> -9.992007222e-16 | E68: =settings!$I$4 -> -9.992007222e-16 | F68: =settings!$I$11 -> -9.992007222e-16 | H68: =CONCATENATE(VLOOKUP($A$68,support!$D$2:$E$94,2),";",B68,";",TEXT(C68,"00%"),";",TEXT(D68,"00%"),";",TEXT(E68,"00%"),";",TEXT(F68,"00%")) -> ARB;MYTHIC;00%;00%;00%;00%
B69: RARE | C69: =settings!$D$5 -> -9.992007222e-16 | D69: =settings!$D$12 -> -9.992007222e-16 | E69: =settings!$I$5 -> -9.992007222e-16 | F69: =settings!$I$12 -> -9.992007222e-16 | H69: =CONCATENATE(VLOOKUP($A$68,support!$D$2:$E$94,2),";",B69,";",TEXT(C69,"00%"),";",TEXT(D69,"00%"),";",TEXT(E69,"00%"),";",TEXT(F69,"00%")) -> ARB;RARE;00%;00%;00%;00%
B70: UNCOMMON | C70: =settings!$D$6 -> -9.992007222e-16 | D70: =settings!$D$13 -> -9.992007222e-16 | E70: =settings!$I$6 -> -9.992007222e-16 | F70: =settings!$I$13 -> -9.992007222e-16 | H70: =CONCATENATE(VLOOKUP($A$68,support!$D$2:$E$94,2),";",B70,";",TEXT(C70,"00%"),";",TEXT(D70,"00%"),";",TEXT(E70,"00%"),";",TEXT(F70,"00%")) -> ARB;UNCOMMON;00%;00%;00%;00%
B71: COMMON | C71: =settings!$D$7 -> -9.992007222e-16 | D71: =settings!$D$14 -> -9.992007222e-16 | E71: =settings!$I$7 -> -9.992007222e-16 | F71: =settings!$I$14 -> -9.992007222e-16 | H71: =CONCATENATE(VLOOKUP($A$68,support!$D$2:$E$94,2),";",B71,";",TEXT(C71,"00%"),";",TEXT(D71,"00%"),";",TEXT(E71,"00%"),";",TEXT(F71,"00%")) -> ARB;COMMON;00%;00%;00%;00%
A72: Conflux | B72: MYTHIC | C72: =settings!$D$4 -> -9.992007222e-16 | D72: =settings!$D$11 -> -9.992007222e-16 | E72: =settings!$I$4 -> -9.992007222e-16 | F72: =settings!$I$11 -> -9.992007222e-16 | H72: =CONCATENATE(VLOOKUP($A$72,support!$D$2:$E$94,2),";",B72,";",TEXT(C72,"00%"),";",TEXT(D72,"00%"),";",TEXT(E72,"00%"),";",TEXT(F72,"00%")) -> CON;MYTHIC;00%;00%;00%;00%
B73: RARE | C73: =settings!$D$5 -> -9.992007222e-16 | D73: =settings!$D$12 -> -9.992007222e-16 | E73: =settings!$I$5 -> -9.992007222e-16 | F73: =settings!$I$12 -> -9.992007222e-16 | H73: =CONCATENATE(VLOOKUP($A$72,support!$D$2:$E$94,2),";",B73,";",TEXT(C73,"00%"),";",TEXT(D73,"00%"),";",TEXT(E73,"00%"),";",TEXT(F73,"00%")) -> CON;RARE;00%;00%;00%;00%
B74: UNCOMMON | C74: =settings!$D$6 -> -9.992007222e-16 | D74: =settings!$D$13 -> -9.992007222e-16 | E74: =settings!$I$6 -> -9.992007222e-16 | F74: =settings!$I$13 -> -9.992007222e-16 | H74: =CONCATENATE(VLOOKUP($A$72,support!$D$2:$E$94,2),";",B74,";",TEXT(C74,"00%"),";",TEXT(D74,"00%"),";",TEXT(E74,"00%"),";",TEXT(F74,"00%")) -> CON;UNCOMMON;00%;00%;00%;00%
B75: COMMON | C75: =settings!$D$7 -> -9.992007222e-16 | D75: =settings!$D$14 -> -9.992007222e-16 | E75: =settings!$I$7 -> -9.992007222e-16 | F75: =settings!$I$14 -> -9.992007222e-16 | H75: =CONCATENATE(VLOOKUP($A$72,support!$D$2:$E$94,2),";",B75,";",TEXT(C75,"00%"),";",TEXT(D75,"00%"),";",TEXT(E75,"00%"),";",TEXT(F75,"00%")) -> CON;COMMON;00%;00%;00%;00%
A76: Shards of Alara | B76: MYTHIC | C76: =settings!$D$4 -> -9.992007222e-16 | D76: =settings!$D$11 -> -9.992007222e-16 | E76: =settings!$I$4 -> -9.992007222e-16 | F76: =settings!$I$11 -> -9.992007222e-16 | H76: =CONCATENATE(VLOOKUP($A$76,support!$D$2:$E$94,2),";",B76,";",TEXT(C76,"00%"),";",TEXT(D76,"00%"),";",TEXT(E76,"00%"),";",TEXT(F76,"00%")) -> ALA;MYTHIC;00%;00%;00%;00%
B77: RARE | C77: =settings!$D$5 -> -9.992007222e-16 | D77: =settings!$D$12 -> -9.992007222e-16 | E77: =settings!$I$5 -> -9.992007222e-16 | F77: =settings!$I$12 -> -9.992007222e-16 | H77: =CONCATENATE(VLOOKUP($A$76,support!$D$2:$E$94,2),";",B77,";",TEXT(C77,"00%"),";",TEXT(D77,"00%"),";",TEXT(E77,"00%"),";",TEXT(F77,"00%")) -> ALA;RARE;00%;00%;00%;00%
B78: UNCOMMON | C78: =settings!$D$6 -> -9.992007222e-16 | D78: =settings!$D$13 -> -9.992007222e-16 | E78: =settings!$I$6 -> -9.992007222e-16 | F78: =settings!$I$13 -> -9.992007222e-16 | H78: =CONCATENATE(VLOOKUP($A$76,support!$D$2:$E$94,2),";",B78,";",TEXT(C78,"00%"),";",TEXT(D78,"00%"),";",TEXT(E78,"00%"),";",TEXT(F78,"00%")) -> ALA;UNCOMMON;00%;00%;00%;00%
B79: COMMON | C79: =settings!$D$7 -> -9.992007222e-16 | D79: =settings!$D$14 -> -9.992007222e-16 | E79: =settings!$I$7 -> -9.992007222e-16 | F79: =settings!$I$14 -> -9.992007222e-16 | H79: =CONCATENATE(VLOOKUP($A$76,support!$D$2:$E$94,2),";",B79,";",TEXT(C79,"00%"),";",TEXT(D79,"00%"),";",TEXT(E79,"00%"),";",TEXT(F79,"00%")) -> ALA;COMMON;00%;00%;00%;00%

Sheet corrections (hidden)
C1: PersonalPercentages.txt Corrections
B2: % | C2: 0.4 | D2: 0.35 | E2: 0.3 | F2: 0.25 | G2: 0.2 | H2: 0.15 | I2: 0.1 | J2: 0.09 | K2: 0.08 | L2: 0.07 | M2: 0.06 | N2: 0.05 | O2: 0.04 | P2: 0.03 | Q2: 0.02 | R2: 0.01 | S2: -9.992007222e-16 | T2: -0.01 | U2: -0.02 | V2: -0.03 | W2: -0.04 | X2: -0.05 | Y2: -0.06 | Z2: -0.07 | AA2: -0.08 | AB2: -0.09 | AC2: -0.1 | AD2: -0.15 | AE2: -0.2 | AF2: -0.25 | AG2: -0.3 | AH2: -0.35 | AI2: -0.4
A3: MTGO Bot Corrections | B3: 0.4 | C3: =((1+B3)*(1+$C$2)-1) -> 0.96 | D3: =((1+B3)*(1+$D$2)-1) -> 0.89 | E3: =((1+B3)*(1+$E$2)-1) -> 0.82 | F3: =((1+B3)*(1+$F$2)-1) -> 0.75 | G3: =((1+B3)*(1+$G$2)-1) -> 0.68 | H3: =((1+B3)*(1+$H$2)-1) -> 0.61 | I3: =((1+B3)*(1+$I$2)-1) -> 0.54 | J3: =((1+B3)*(1+$J$2)-1) -> 0.526 | K3: =((1+B3)*(1+$K$2)-1) -> 0.512 | L3: =((1+B3)*(1+$L$2)-1) -> 0.498 | M3: =((1+B3)*(1+$M$2)-1) -> 0.484 | N3: =((1+B3)*(1+$N$2)-1) -> 0.47 | O3: =((1+B3)*(1+$O$2)-1) -> 0.456 | P3: =((1+B3)*(1+$P$2)-1) -> 0.442 | Q3: =((1+B3)*(1+$Q$2)-1) -> 0.428 | R3: =((1+B3)*(1+$R$2)-1) -> 0.414 | S3: =((1+B3)*(1+$S$2)-1) -> 0.4 | T3: =((1+B3)*(1+$T$2)-1) -> 0.386 | U3: =((1+B3)*(1+$U$2)-1) -> 0.372 | V3: =((1+B3)*(1+$V$2)-1) -> 0.358 | W3: =((1+B3)*(1+$W$2)-1) -> 0.344 | X3: =((1+B3)*(1+$X$2)-1) -> 0.33 | Y3: =((1+B3)*(1+$Y$2)-1) -> 0.316 | Z3: =((1+B3)*(1+$Z$2)-1) -> 0.302 | AA3: =((1+B3)*(1+$AA$2)-1) -> 0.288 | AB3: =((1+B3)*(1+$AB$2)-1) -> 0.274 | AC3: =((1+B3)*(1+$AC$2)-1) -> 0.26 | AD3: =((1+B3)*(1+$AD$2)-1) -> 0.19 | AE3: =((1+B3)*(1+$AE$2)-1) -> 0.12 | AF3: =((1+B3)*(1+$AF$2)-1) -> 0.05 | AG3: =((1+B3)*(1+$AG$2)-1) -> -0.02 | AH3: =((1+B3)*(1+$AH$2)-1) -> -0.09 | AI3: =((1+B3)*(1+$AI$2)-1) -> -0.16
B4: 0.35 | C4: =((1+B4)*(1+$C$2)-1) -> 0.89 | D4: =((1+B4)*(1+$D$2)-1) -> 0.8225 | E4: =((1+B4)*(1+$E$2)-1) -> 0.755 | F4: =((1+B4)*(1+$F$2)-1) -> 0.6875 | G4: =((1+B4)*(1+$G$2)-1) -> 0.62 | H4: =((1+B4)*(1+$H$2)-1) -> 0.5525 | I4: =((1+B4)*(1+$I$2)-1) -> 0.485 | J4: =((1+B4)*(1+$J$2)-1) -> 0.4715 | K4: =((1+B4)*(1+$K$2)-1) -> 0.458 | L4: =((1+B4)*(1+$L$2)-1) -> 0.4445 | M4: =((1+B4)*(1+$M$2)-1) -> 0.431 | N4: =((1+B4)*(1+$N$2)-1) -> 0.4175 | O4: =((1+B4)*(1+$O$2)-1) -> 0.404 | P4: =((1+B4)*(1+$P$2)-1) -> 0.3905 | Q4: =((1+B4)*(1+$Q$2)-1) -> 0.377 | R4: =((1+B4)*(1+$R$2)-1) -> 0.3635 | S4: =((1+B4)*(1+$S$2)-1) -> 0.35 | T4: =((1+B4)*(1+$T$2)-1) -> 0.3365 | U4: =((1+B4)*(1+$U$2)-1) -> 0.323 | V4: =((1+B4)*(1+$V$2)-1) -> 0.3095 | W4: =((1+B4)*(1+$W$2)-1) -> 0.296 | X4: =((1+B4)*(1+$X$2)-1) -> 0.2825 | Y4: =((1+B4)*(1+$Y$2)-1) -> 0.269 | Z4: =((1+B4)*(1+$Z$2)-1) -> 0.2555 | AA4: =((1+B4)*(1+$AA$2)-1) -> 0.242 | AB4: =((1+B4)*(1+$AB$2)-1) -> 0.2285 | AC4: =((1+B4)*(1+$AC$2)-1) -> 0.215 | AD4: =((1+B4)*(1+$AD$2)-1) -> 0.1475 | AE4: =((1+B4)*(1+$AE$2)-1) -> 0.08 | AF4: =((1+B4)*(1+$AF$2)-1) -> 0.0125 | AG4: =((1+B4)*(1+$AG$2)-1) -> -0.055 | AH4: =((1+B4)*(1+$AH$2)-1) -> -0.1225 | AI4: =((1+B4)*(1+$AI$2)-1) -> -0.19
B5: 0.3 | C5: 0.82 | D5: 0.755 | E5: 0.69 | F5: 0.625 | G5: 0.56 | H5: 0.495 | I5: 0.43 | J5: 0.417 | K5: 0.404 | L5: 0.391 | M5: 0.378 | N5: 0.365 | O5: 0.352 | P5: 0.339 | Q5: 0.326 | R5: 0.313 | S5: 0.3 | T5: 0.287 | U5: 0.274 | V5: 0.261 | W5: 0.248 | X5: 0.235 | Y5: 0.222 | Z5: 0.209 | AA5: 0.196 | AB5: 0.183 | AC5: 0.17 | AD5: 0.105 | AE5: 0.04 | AF5: -0.025 | AG5: -0.09 | AH5: -0.155 | AI5: -0.22
B6: 0.25 | C6: 0.75 | D6: 0.6875 | E6: 0.625 | F6: 0.5625 | G6: 0.5 | H6: 0.4375 | I6: 0.375 | J6: 0.3625 | K6: 0.35 | L6: 0.3375 | M6: 0.325 | N6: 0.3125 | O6: 0.3 | P6: 0.2875 | Q6: 0.275 | R6: 0.2625 | S6: 0.25 | T6: 0.2375 | U6: 0.225 | V6: 0.2125 | W6: 0.2 | X6: 0.1875 | Y6: 0.175 | Z6: 0.1625 | AA6: 0.15 | AB6: 0.1375 | AC6: 0.125 | AD6: 0.0625 | AE6: 0 | AF6: -0.0625 | AG6: -0.125 | AH6: -0.1875 | AI6: -0.25
B7: 0.2 | C7: 0.68 | D7: 0.62 | E7: 0.56 | F7: 0.5 | G7: 0.44 | H7: 0.38 | I7: 0.32 | J7: 0.308 | K7: 0.296 | L7: 0.284 | M7: 0.272 | N7: 0.26 | O7: 0.248 | P7: 0.236 | Q7: 0.224 | R7: 0.212 | S7: 0.2 | T7: 0.188 | U7: 0.176 | V7: 0.164 | W7: 0.152 | X7: 0.14 | Y7: 0.128 | Z7: 0.116 | AA7: 0.104 | AB7: 0.092 | AC7: 0.08 | AD7: 0.02 | AE7: -0.04 | AF7: -0.1 | AG7: -0.16 | AH7: -0.22 | AI7: -0.28
B8: 0.15 | C8: 0.61 | D8: 0.5525 | E8: 0.495 | F8: 0.4375 | G8: 0.38 | H8: 0.3225 | I8: 0.265 | J8: 0.2535 | K8: 0.242 | L8: 0.2305 | M8: 0.219 | N8: 0.2075 | O8: 0.196 | P8: 0.1845 | Q8: 0.173 | R8: 0.1615 | S8: 0.15 | T8: 0.1385 | U8: 0.127 | V8: 0.1155 | W8: 0.104 | X8: 0.0925 | Y8: 0.081 | Z8: 0.0695 | AA8: 0.058 | AB8: 0.0465 | AC8: 0.035 | AD8: -0.0225 | AE8: -0.08 | AF8: -0.1375 | AG8: -0.195 | AH8: -0.2525 | AI8: -0.31
B9: 0.1 | C9: 0.54 | D9: 0.485 | E9: 0.43 | F9: 0.375 | G9: 0.32 | H9: 0.265 | I9: 0.21 | J9: 0.199 | K9: 0.188 | L9: 0.177 | M9: 0.166 | N9: 0.155 | O9: 0.144 | P9: 0.133 | Q9: 0.122 | R9: 0.111 | S9: 0.1 | T9: 0.089 | U9: 0.078 | V9: 0.067 | W9: 0.056 | X9: 0.045 | Y9: 0.034 | Z9: 0.023 | AA9: 0.012 | AB9: 0.001 | AC9: -0.01 | AD9: -0.065 | AE9: -0.12 | AF9: -0.175 | AG9: -0.23 | AH9: -0.285 | AI9: -0.34
B10: 0.09 | C10: 0.526 | D10: 0.4715 | E10: 0.417 | F10: 0.3625 | G10: 0.308 | H10: 0.2535 | I10: 0.199 | J10: 0.1881 | K10: 0.1772 | L10: 0.1663 | M10: 0.1554 | N10: 0.1445 | O10: 0.1336 | P10: 0.1227 | Q10: 0.1118 | R10: 0.1009 | S10: 0.09 | T10: 0.0791 | U10: 0.0682 | V10: 0.0573 | W10: 0.0464 | X10: 0.0355 | Y10: 0.0246 | Z10: 0.0137 | AA10: 0.0028 | AB10: -0.0081 | AC10: -0.019 | AD10: -0.0735 | AE10: -0.128 | AF10: -0.1825 | AG10: -0.237 | AH10: -0.2915 | AI10: -0.346
B11: 0.08 | C11: 0.512 | D11: 0.458 | E11: 0.404 | F11: 0.35 | G11: 0.296 | H11: 0.242 | I11: 0.188 | J11: 0.1772 | K11: 0.1664 | L11: 0.1556 | M11: 0.1448 | N11: 0.134 | O11: 0.1232 | P11: 0.1124 | Q11: 0.1016 | R11: 0.0908 | S11: 0.08 | T11: 0.0692 | U11: 0.0584 | V11: 0.0476 | W11: 0.0368 | X11: 0.026 | Y11: 0.0152 | Z11: 0.0044 | AA11: -0.0064 | AB11: -0.0172 | AC11: -0.028 | AD11: -0.082 | AE11: -0.136 | AF11: -0.19 | AG11: -0.244 | AH11: -0.298 | AI11: -0.352
B12: 0.07 | C12: 0.498 | D12: 0.4445 | E12: 0.391 | F12: 0.3375 | G12: 0.284 | H12: 0.2305 | I12: 0.177 | J12: 0.1663 | K12: 0.1556 | L12: 0.1449 | M12: 0.1342 | N12: 0.1235 | O12: 0.1128 | P12: 0.1021 | Q12: 0.0914 | R12: 0.0807 | S12: 0.07 | T12: 0.0593 | U12: 0.0486 | V12: 0.0379 | W12: 0.0272 | X12: 0.0165 | Y12: 0.0058 | Z12: -0.0049 | AA12: -0.0156 | AB12: -0.0263 | AC12: -0.037 | AD12: -0.0905 | AE12: -0.144 | AF12: -0.1975 | AG12: -0.251 | AH12: -0.3045 | AI12: -0.358
B13: 0.06 | C13: 0.484 | D13: 0.431 | E13: 0.378 | F13: 0.325 | G13: 0.272 | H13: 0.219 | I13: 0.166 | J13: 0.1554 | K13: 0.1448 | L13: 0.1342 | M13: 0.1236 | N13: 0.113 | O13: 0.1024 | P13: 0.0918 | Q13: 0.0812 | R13: 0.0706 | S13: 0.06 | T13: 0.0494 | U13: 0.0388 | V13: 0.0282 | W13: 0.0176 | X13: 0.007 | Y13: -0.0036 | Z13: -0.0142 | AA13: -0.0248 | AB13: -0.0354 | AC13: -0.046 | AD13: -0.099 | AE13: -0.152 | AF13: -0.205 | AG13: -0.258 | AH13: -0.311 | AI13: -0.364
B14: 0.05 | C14: 0.47 | D14: 0.4175 | E14: 0.365 | F14: 0.3125 | G14: 0.26 | H14: 0.2075 | I14: 0.155 | J14: 0.1445 | K14: 0.134 | L14: 0.1235 | M14: 0.113 | N14: 0.1025 | O14: 0.092 | P14: 0.0815 | Q14: 0.071 | R14: 0.0605 | S14: 0.05 | T14: 0.0395 | U14: 0.029 | V14: 0.0185 | W14: 0.008 | X14: -0.0025 | Y14: -0.013 | Z14: -0.0235 | AA14: -0.034 | AB14: -0.0445 | AC14: -0.055 | AD14: -0.1075 | AE14: -0.16 | AF14: -0.2125 | AG14: -0.265 | AH14: -0.3175 | AI14: -0.37
B15: 0.04 | C15: 0.456 | D15: 0.404 | E15: 0.352 | F15: 0.3 | G15: 0.248 | H15: 0.196 | I15: 0.144 | J15: 0.1336 | K15: 0.1232 | L15: 0.1128 | M15: 0.1024 | N15: 0.092 | O15: 0.0816 | P15: 0.0712 | Q15: 0.0608 | R15: 0.0504 | S15: 0.04 | T15: 0.0296 | U15: 0.0192 | V15: 0.0088 | W15: -0.0016 | X15: -0.012 | Y15: -0.0224 | Z15: -0.0328 | AA15: -0.0432 | AB15: -0.0536 | AC15: -0.064 | AD15: -0.116 | AE15: -0.168 | AF15: -0.22 | AG15: -0.272 | AH15: -0.324 | AI15: -0.376
B16: 0.03 | C16: 0.442 | D16: 0.3905 | E16: 0.339 | F16: 0.2875 | G16: 0.236 | H16: 0.1845 | I16: 0.133 | J16: 0.1227 | K16: 0.1124 | L16: 0.1021 | M16: 0.0918 | N16: 0.0815 | O16: 0.0712 | P16: 0.0609 | Q16: 0.0506 | R16: 0.0403 | S16: 0.03 | T16: 0.0197 | U16: 0.0094 | V16: -0.0009 | W16: -0.0112 | X16: -0.0215 | Y16: -0.0318 | Z16: -0.0421 | AA16: -0.0524 | AB16: -0.0627 | AC16: -0.073 | AD16: -0.1245 | AE16: -0.176 | AF16: -0.2275 | AG16: -0.279 | AH16: -0.3305 | AI16: -0.382
B17: 0.02 | C17: 0.428 | D17: 0.377 | E17: 0.326 | F17: 0.275 | G17: 0.224 | H17: 0.173 | I17: 0.122 | J17: 0.1118 | K17: 0.1016 | L17: 0.0914 | M17: 0.0812 | N17: 0.071 | O17: 0.0608 | P17: 0.0506 | Q17: 0.0404 | R17: 0.0302 | S17: 0.02 | T17: 0.0098 | U17: -0.0004 | V17: -0.0106 | W17: -0.0208 | X17: -0.031 | Y17: -0.0412 | Z17: -0.0514 | AA17: -0.0616 | AB17: -0.0718 | AC17: -0.082 | AD17: -0.133 | AE17: -0.184 | AF17: -0.235 | AG17: -0.286 | AH17: -0.337 | AI17: -0.388
B18: 0.01 | C18: 0.414 | D18: 0.3635 | E18: 0.313 | F18: 0.2625 | G18: 0.212 | H18: 0.1615 | I18: 0.111 | J18: 0.1009 | K18: 0.0908 | L18: 0.0807 | M18: 0.0706 | N18: 0.0605 | O18: 0.0504 | P18: 0.0403 | Q18: 0.0302 | R18: 0.0201 | S18: 0.01 | T18: -0.0001 | U18: -0.0102 | V18: -0.0203 | W18: -0.0304 | X18: -0.0405 | Y18: -0.0506 | Z18: -0.0607 | AA18: -0.0708 | AB18: -0.0809 | AC18: -0.091 | AD18: -0.1415 | AE18: -0.192 | AF18: -0.2425 | AG18: -0.293 | AH18: -0.3435 | AI18: -0.394
B19: -9.992007222e-16 | C19: 0.4 | D19: 0.35 | E19: 0.3 | F19: 0.25 | G19: 0.2 | H19: 0.15 | I19: 0.1 | J19: 0.09 | K19: 0.08 | L19: 0.07 | M19: 0.06 | N19: 0.05 | O19: 0.04 | P19: 0.03 | Q19: 0.02 | R19: 0.01 | S19: -1.998401444e-15 | T19: -0.01 | U19: -0.02 | V19: -0.03 | W19: -0.04 | X19: -0.05 | Y19: -0.06 | Z19: -0.07 | AA19: -0.08 | AB19: -0.09 | AC19: -0.1 | AD19: -0.15 | AE19: -0.2 | AF19: -0.25 | AG19: -0.3 | AH19: -0.35 | AI19: -0.4
B20: -0.01 | C20: 0.386 | D20: 0.3365 | E20: 0.287 | F20: 0.2375 | G20: 0.188 | H20: 0.1385 | I20: 0.089 | J20: 0.0791 | K20: 0.0692 | L20: 0.0593 | M20: 0.0494 | N20: 0.0395 | O20: 0.0296 | P20: 0.0197 | Q20: 0.0098 | R20: -0.0001 | S20: -0.01 | T20: -0.0199 | U20: -0.0298 | V20: -0.0397 | W20: -0.0496 | X20: -0.0595 | Y20: -0.0694 | Z20: -0.0793 | AA20: -0.0892 | AB20: -0.0991 | AC20: -0.109 | AD20: -0.1585 | AE20: -0.208 | AF20: -0.2575 | AG20: -0.307 | AH20: -0.3565 | AI20: -0.406
B21: -0.02 | C21: 0.372 | D21: 0.323 | E21: 0.274 | F21: 0.225 | G21: 0.176 | H21: 0.127 | I21: 0.078 | J21: 0.0682 | K21: 0.0584 | L21: 0.0486 | M21: 0.0388 | N21: 0.029 | O21: 0.0192 | P21: 0.0094 | Q21: -0.0004 | R21: -0.0102 | S21: -0.02 | T21: -0.0298 | U21: -0.0396 | V21: -0.0494 | W21: -0.0592 | X21: -0.069 | Y21: -0.0788 | Z21: -0.0886 | AA21: -0.0984 | AB21: -0.1082 | AC21: -0.118 | AD21: -0.167 | AE21: -0.216 | AF21: -0.265 | AG21: -0.314 | AH21: -0.363 | AI21: -0.412
B22: -0.03 | C22: 0.358 | D22: 0.3095 | E22: 0.261 | F22: 0.2125 | G22: 0.164 | H22: 0.1155 | I22: 0.067 | J22: 0.0573 | K22: 0.0476 | L22: 0.0379 | M22: 0.0282 | N22: 0.0185 | O22: 0.0088 | P22: -0.0009 | Q22: -0.0106 | R22: -0.0203 | S22: -0.03 | T22: -0.0397 | U22: -0.0494 | V22: -0.0591 | W22: -0.0688 | X22: -0.0785 | Y22: -0.0882 | Z22: -0.0979 | AA22: -0.1076 | AB22: -0.1173 | AC22: -0.127 | AD22: -0.1755 | AE22: -0.224 | AF22: -0.2725 | AG22: -0.321 | AH22: -0.3695 | AI22: -0.418
B23: -0.04 | C23: 0.344 | D23: 0.296 | E23: 0.248 | F23: 0.2 | G23: 0.152 | H23: 0.104 | I23: 0.056 | J23: 0.0464 | K23: 0.0368 | L23: 0.0272 | M23: 0.0176 | N23: 0.008 | O23: -0.0016 | P23: -0.0112 | Q23: -0.0208 | R23: -0.0304 | S23: -0.04 | T23: -0.0496 | U23: -0.0592 | V23: -0.0688 | W23: -0.0784 | X23: -0.088 | Y23: -0.0976 | Z23: -0.1072 | AA23: -0.1168 | AB23: -0.1264 | AC23: -0.136 | AD23: -0.184 | AE23: -0.232 | AF23: -0.28 | AG23: -0.328 | AH23: -0.376 | AI23: -0.424
B24: -0.05 | C24: 0.33 | D24: 0.2825 | E24: 0.235 | F24: 0.1875 | G24: 0.14 | H24: 0.0925 | I24: 0.045 | J24: 0.0355 | K24: 0.026 | L24: 0.0165 | M24: 0.007 | N24: -0.0025 | O24: -0.012 | P24: -0.0215 | Q24: -0.031 | R24: -0.0405 | S24: -0.05 | T24: -0.0595 | U24: -0.069 | V24: -0.0785 | W24: -0.088 | X24: -0.0975 | Y24: -0.107 | Z24: -0.1165 | AA24: -0.126 | AB24: -0.1355 | AC24: -0.145 | AD24: -0.1925 | AE24: -0.24 | AF24: -0.2875 | AG24: -0.335 | AH24: -0.3825 | AI24: -0.43
B25: -0.06 | C25: 0.316 | D25: 0.269 | E25: 0.222 | F25: 0.175 | G25: 0.128 | H25: 0.081 | I25: 0.034 | J25: 0.0246 | K25: 0.0152 | L25: 0.0058 | M25: -0.0036 | N25: -0.013 | O25: -0.0224 | P25: -0.0318 | Q25: -0.0412 | R25: -0.0506 | S25: -0.06 | T25: -0.0694 | U25: -0.0788 | V25: -0.0882 | W25: -0.0976 | X25: -0.107 | Y25: -0.1164 | Z25: -0.1258 | AA25: -0.1352 | AB25: -0.1446 | AC25: -0.154 | AD25: -0.201 | AE25: -0.248 | AF25: -0.295 | AG25: -0.342 | AH25: -0.389 | AI25: -0.436
B26: -0.07 | C26: 0.302 | D26: 0.2555 | E26: 0.209 | F26: 0.1625 | G26: 0.116 | H26: 0.0695 | I26: 0.023 | J26: 0.0137 | K26: 0.0044 | L26: -0.0049 | M26: -0.0142 | N26: -0.0235 | O26: -0.0328 | P26: -0.0421 | Q26: -0.0514 | R26: -0.0607 | S26: -0.07 | T26: -0.0793 | U26: -0.0886 | V26: -0.0979 | W26: -0.1072 | X26: -0.1165 | Y26: -0.1258 | Z26: -0.1351 | AA26: -0.1444 | AB26: -0.1537 | AC26: -0.163 | AD26: -0.2095 | AE26: -0.256 | AF26: -0.3025 | AG26: -0.349 | AH26: -0.3955 | AI26: -0.442
B27: -0.08 | C27: 0.288 | D27: 0.242 | E27: 0.196 | F27: 0.15 | G27: 0.104 | H27: 0.058 | I27: 0.012 | J27: 0.0028 | K27: -0.0064 | L27: -0.0156 | M27: -0.0248 | N27: -0.034 | O27: -0.0432 | P27: -0.0524 | Q27: -0.0616 | R27: -0.0708 | S27: -0.08 | T27: -0.0892 | U27: -0.0984 | V27: -0.1076 | W27: -0.1168 | X27: -0.126 | Y27: -0.1352 | Z27: -0.1444 | AA27: -0.1536 | AB27: -0.1628 | AC27: -0.172 | AD27: -0.218 | AE27: -0.264 | AF27: -0.31 | AG27: -0.356 | AH27: -0.402 | AI27: -0.448
B28: -0.09 | C28: 0.274 | D28: 0.2285 | E28: 0.183 | F28: 0.1375 | G28: 0.092 | H28: 0.0465 | I28: 0.001 | J28: -0.0081 | K28: -0.0172 | L28: -0.0263 | M28: -0.0354 | N28: -0.0445 | O28: -0.0536 | P28: -0.0627 | Q28: -0.0718 | R28: -0.0809 | S28: -0.09 | T28: -0.0991 | U28: -0.1082 | V28: -0.1173 | W28: -0.1264 | X28: -0.1355 | Y28: -0.1446 | Z28: -0.1537 | AA28: -0.1628 | AB28: -0.1719 | AC28: -0.181 | AD28: -0.2265 | AE28: -0.272 | AF28: -0.3175 | AG28: -0.363 | AH28: -0.4085 | AI28: -0.454
B29: -0.1 | C29: 0.26 | D29: 0.215 | E29: 0.17 | F29: 0.125 | G29: 0.08 | H29: 0.035 | I29: -0.01 | J29: -0.019 | K29: -0.028 | L29: -0.037 | M29: -0.046 | N29: -0.055 | O29: -0.064 | P29: -0.073 | Q29: -0.082 | R29: -0.091 | S29: -0.1 | T29: -0.109 | U29: -0.118 | V29: -0.127 | W29: -0.136 | X29: -0.145 | Y29: -0.154 | Z29: -0.163 | AA29: -0.172 | AB29: -0.181 | AC29: -0.19 | AD29: -0.235 | AE29: -0.28 | AF29: -0.325 | AG29: -0.37 | AH29: -0.415 | AI29: -0.46
B30: -0.15 | C30: 0.19 | D30: 0.1475 | E30: 0.105 | F30: 0.0625 | G30: 0.02 | H30: -0.0225 | I30: -0.065 | J30: -0.0735 | K30: -0.082 | L30: -0.0905 | M30: -0.099 | N30: -0.1075 | O30: -0.116 | P30: -0.1245 | Q30: -0.133 | R30: -0.1415 | S30: -0.15 | T30: -0.1585 | U30: -0.167 | V30: -0.1755 | W30: -0.184 | X30: -0.1925 | Y30: -0.201 | Z30: -0.2095 | AA30: -0.218 | AB30: -0.2265 | AC30: -0.235 | AD30: -0.2775 | AE30: -0.32 | AF30: -0.3625 | AG30: -0.405 | AH30: -0.4475 | AI30: -0.49
B31: -0.2 | C31: 0.12 | D31: 0.08 | E31: 0.04 | F31: 0 | G31: -0.04 | H31: -0.08 | I31: -0.12 | J31: -0.128 | K31: -0.136 | L31: -0.144 | M31: -0.152 | N31: -0.16 | O31: -0.168 | P31: -0.176 | Q31: -0.184 | R31: -0.192 | S31: -0.2 | T31: -0.208 | U31: -0.216 | V31: -0.224 | W31: -0.232 | X31: -0.24 | Y31: -0.248 | Z31: -0.256 | AA31: -0.264 | AB31: -0.272 | AC31: -0.28 | AD31: -0.32 | AE31: -0.36 | AF31: -0.4 | AG31: -0.44 | AH31: -0.48 | AI31: -0.52
B32: -0.25 | C32: 0.05 | D32: 0.0125 | E32: -0.025 | F32: -0.0625 | G32: -0.1 | H32: -0.1375 | I32: -0.175 | J32: -0.1825 | K32: -0.19 | L32: -0.1975 | M32: -0.205 | N32: -0.2125 | O32: -0.22 | P32: -0.2275 | Q32: -0.235 | R32: -0.2425 | S32: -0.25 | T32: -0.2575 | U32: -0.265 | V32: -0.2725 | W32: -0.28 | X32: -0.2875 | Y32: -0.295 | Z32: -0.3025 | AA32: -0.31 | AB32: -0.3175 | AC32: -0.325 | AD32: -0.3625 | AE32: -0.4 | AF32: -0.4375 | AG32: -0.475 | AH32: -0.5125 | AI32: -0.55
B33: -0.3 | C33: -0.02 | D33: -0.055 | E33: -0.09 | F33: -0.125 | G33: -0.16 | H33: -0.195 | I33: -0.23 | J33: -0.237 | K33: -0.244 | L33: -0.251 | M33: -0.258 | N33: -0.265 | O33: -0.272 | P33: -0.279 | Q33: -0.286 | R33: -0.293 | S33: -0.3 | T33: -0.307 | U33: -0.314 | V33: -0.321 | W33: -0.328 | X33: -0.335 | Y33: -0.342 | Z33: -0.349 | AA33: -0.356 | AB33: -0.363 | AC33: -0.37 | AD33: -0.405 | AE33: -0.44 | AF33: -0.475 | AG33: -0.51 | AH33: -0.545 | AI33: -0.58
B34: -0.35 | C34: -0.09 | D34: -0.1225 | E34: -0.155 | F34: -0.1875 | G34: -0.22 | H34: -0.2525 | I34: -0.285 | J34: -0.2915 | K34: -0.298 | L34: -0.3045 | M34: -0.311 | N34: -0.3175 | O34: -0.324 | P34: -0.3305 | Q34: -0.337 | R34: -0.3435 | S34: -0.35 | T34: -0.3565 | U34: -0.363 | V34: -0.3695 | W34: -0.376 | X34: -0.3825 | Y34: -0.389 | Z34: -0.3955 | AA34: -0.402 | AB34: -0.4085 | AC34: -0.415 | AD34: -0.4475 | AE34: -0.48 | AF34: -0.5125 | AG34: -0.545 | AH34: -0.5775 | AI34: -0.61
B35: -0.4 | C35: -0.16 | D35: -0.19 | E35: -0.22 | F35: -0.25 | G35: -0.28 | H35: -0.31 | I35: -0.34 | J35: -0.346 | K35: -0.352 | L35: -0.358 | M35: -0.364 | N35: -0.37 | O35: -0.376 | P35: -0.382 | Q35: -0.388 | R35: -0.394 | S35: -0.4 | T35: -0.406 | U35: -0.412 | V35: -0.418 | W35: -0.424 | X35: -0.43 | Y35: -0.436 | Z35: -0.442 | AA35: -0.448 | AB35: -0.454 | AC35: -0.46 | AD35: -0.49 | AE35: -0.52 | AF35: -0.55 | AG35: -0.58 | AH35: -0.61 | AI35: -0.64

Sheet support (hidden)
A1: TYPE_TITLE | B1: TYPE_ABBV | D1: SET_TITLE | E1: SET_ABBV | G1: NAME | I1: SET | J1: TYPE | K1: NAME | L1: SELL_REG | M1: SELL_FOIL | N1: BUY_REG | O1: BUY_FOIL
A2: Mythic | B2: M | D2: 5th Dawn | E2: 5DN | G2: Abandon Hope | I2: ISD | J2: C | K2: Abbey Griffin | L2: 0.019 | M2: 0.03 | N2: 0.004 | O2: 0.007
A3: Rare | B3: R | D3: 7th Edition | E3: 7E | G3: Abandoned Outpost | I3: ISD | J3: R | K3: Angel of Flight Alabaster | L3: 0.049 | M3: 0.343 | N3: 0.034 | O3: 0.17
A4: Uncommon | B4: U | D4: 8th Edition | E4: 8ED | G4: Abattoir Ghoul | I4: ISD | J4: M | K4: Angelic Overseer | L4: 2.09 | M4: 13.91 | N4: 1.46 | O4: 7.3
A5: Common | B5: C | D5: 9th Edition | E5: 9ED | G5: Abbey Gargoyles | I5: ISD | J5: C | K5: Avacynian Priest | L5: 0.019 | M5: 0.03 | N5: 0.004 | O5: 0.007
D6: Ajani vs N.Bolas | E6: DDH | G6: Abbey Griffin | I6: ISD | J6: C | K6: Bonds of Faith | L6: 0.04 | M6: 0.087 | N6: 0.01 | O6: 0.021
D7: Alara Reborn | E7: ARB | G7: Abduction | I7: ISD | J7: R | K7: Champion of the Parish | L7: 3.83 | M7: 5.57 | N7: 2.68 | O7: 3.9
D8: Alliance | E8: ALL | G8: Abeyance | I8: ISD | J8: C | K8: Chapel Geist | L8: 0.02 | M8: 0.029 | N8: 0.005 | O8: 0.007
D9: Apocalypse | E9: AP | G9: Abjure | I9: ISD | J9: U | K9: Cloistered Youth | L9: 0.03 | M9: 0.049 | N9: 0.016 | O9: 0.026
D10: Avacyn Restored | E10: AVR | G10: Abolish | I10: ISD | J10: R | K10: Dearly Departed | L10: 0.049 | M10: 0.343 | N10: 0.034 | O10: 0.17
D11: Betrayers of Kamigawa | E11: BOK | G11: Aboroth | I11: ISD | J11: R | K11: Divine Reckoning | L11: 0.049 | M11: 0.343 | N11: 0.034 | O11: 0.17
D12: Boosters | E12: BOO | G12: Aboshan, Cephalid Emperor | I12: ISD | J12: C | K12: Doomed Traveler | L12: 0.098 | M12: 0.245 | N12: 0.024 | O12: 0.061
D13: Champions of Kamigawa | E13: CHK | G13: Aboshan's Desire | I13: ISD | J13: C | K13: Elder Cathar | L13: 0.02 | M13: 0.03 | N13: 0.005 | O13: 0.007
D14: Coldsnap | E14: CSP | G14: About Face | I14: ISD | J14: R | K14: Elite Inquisitor | L14: 0.05 | M14: 0.35 | N14: 0.035 | O14: 0.175
D15: Commander | E15: CMD | G15: Abrupt Decay | I15: ISD | J15: C | K15: Feeling of Dread | L15: 0.029 | M15: 0.048 | N15: 0.007 | O15: 0.012
D16: Conflux | E16: CON | G16: Absolute Grace | I16: ISD | J16: U | K16: Fiend Hunter | L16: 0.159 | M16: 0.391 | N16: 0.087 | O16: 0.215
D17: Dark Ascension | E17: DKA | G17: Absolute Law | I17: ISD | J17: U | K17: Gallows Warden | L17: 0.029 | M17: 0.049 | N17: 0.016 | O17: 0.026
D18: Darksteel | E18: DST | G18: Absolver Thrull | I18: ISD | J18: R | K18: Geist-Honored Monk | L18: 0.059 | M18: 0.392 | N18: 0.041 | O18: 0.205
D19: Dissension | E19: DIS | G19: Absorb | I19: ISD | J19: C | K19: Ghostly Possession | L19: 0.019 | M19: 0.03 | N19: 0.004 | O19: 0.007
D20: Divine vs Demonic | E20: DDC | G20: Absorb Vis | I20: ISD | J20: U | K20: Intangible Virtue | L20: 0.109 | M20: 0.299 | N20: 0.06 | O20: 0.164
D21: Elspeth vs Tezzeret | E21: DDF | G21: Abuna Acolyte | I21: ISD | J21: U | K21: Mausoleum Guard | L21: 0.029 | M21: 0.05 | N21: 0.016 | O21: 0.027
D22: Elves vs Goblins | E22: EVG | G22: Abuna's Chant | I22: ISD | J22: R | K22: Mentor of the Meek | L22: 0.069 | M22: 0.402 | N22: 0.048 | O22: 0.24
D23: Eventide | E23: EVE | G23: Abundance | I23: ISD | J23: U | K23: Midnight Haunting | L23: 0.099 | M23: 0.246 | N23: 0.054 | O23: 0.135
D24: Exodus | E24: EX | G24: Abundant Growth | I24: ISD | J24: M | K24: Mikaeus, the Lunarch | L24: 2.79 | M24: 13.73 | N24: 1.95 | O24: 9.75
D25: From the Vault: Dragons | E25: DRB | G25: Abyssal Gatekeeper | I25: ISD | J25: C | K25: Moment of Heroism | L25: 0.02 | M25: 0.029 | N25: 0.005 | O25: 0.007
D26: From the Vault: Exiled | E26: V09 | G26: Abyssal Horror | I26: ISD | J26: R | K26: Nevermore | L26: 0.079 | M26: 0.391 | N26: 0.055 | O26: 0.275
D27: From the Vault: Legends | E27: V11 | G27: Abyssal Hunter | I27: ISD | J27: U | K27: Paraselene | L27: 0.029 | M27: 0.049 | N27: 0.016 | O27: 0.027
D28: From the Vault: Realms | E28: V12 | G28: Abyssal Nocturnus | I28: ISD | J28: U | K28: Purify the Grave | L28: 0.039 | M28: 0.049 | N28: 0.021 | O28: 0.027
D29: From the Vault: Relics | E29: V10 | G29: Abyssal Persecutor | I29: ISD | J29: U | K29: Rally the Peasants | L29: 0.029 | M29: 0.049 | N29: 0.016 | O29: 0.027
D30: Future Sight | E30: FUT | G30: Abyssal Specter | I30: ISD | J30: C | K30: Rebuke | L30: 0.019 | M30: 0.03 | N30: 0.004 | O30: 0.007
D31: Garruk vs Liliana | E31: DDD | G31: Academy at Tolaria West | I31: ISD | J31: C | K31: Selfless Cathar | L31: 0.019 | M31: 0.029 | N31: 0.004 | O31: 0.007
D32: Gatecrash | E32: GTC | G32: Academy Rector | I32: ISD | J32: C | K32: Silverchase Fox | L32: 0.019 | M32: 0.029 | N32: 0.004 | O32: 0.007
D33: Guildpact | E33: GPT | G33: Academy Researchers | I33: ISD | J33: U | K33: Slayer of the Wicked | L33: 0.029 | M33: 0.049 | N33: 0.016 | O33: 0.027
D34: Ice Age | E34: ICE | G34: Academy Ruins | I34: ISD | J34: C | K34: Smite the Monstrous | L34: 0.019 | M34: 0.03 | N34: 0.004 | O34: 0.007
D35: Innistrad | E35: ISD | G35: Accelerate | I35: ISD | J35: C | K35: Spare from Evil | L35: 0.02 | M35: 0.029 | N35: 0.005 | O35: 0.007
D36: Invasion | E36: IN | G36: Accelerated Mutation | I36: ISD | J36: U | K36: Spectral Rider | L36: 0.029 | M36: 0.049 | N36: 0.016 | O36: 0.026
D37: Izzet vs Golgari | E37: DDJ | G37: Acceptable Losses | I37: ISD | J37: R | K37: Stony Silence | L37: 0.148 | M37: 0.391 | N37: 0.103 | O37: 0.273
D38: Jace vs Chandra | E38: DD2 | G38: Accorder Paladin | I38: ISD | J38: C | K38: Thraben Purebloods | L38: 0.019 | M38: 0.03 | N38: 0.004 | O38: 0.007
D39: Judgment | E39: JUD | G39: Accorder's Shield | I39: ISD | J39: C | K39: Thraben Sentry | L39: 0.019 | M39: 0.03 | N39: 0.004 | O39: 0.007
D40: Knights vs Dragons | E40: DDG | G40: Accumulated Knowledge | I40: ISD | J40: C | K40: Unruly Mob | L40: 0.019 | M40: 0.029 | N40: 0.004 | O40: 0.007
D41: Legions | E41: LGN | G41: Accursed Centaur | I41: ISD | J41: C | K41: Urgent Exorcism | L41: 0.02 | M41: 0.03 | N41: 0.005 | O41: 0.007
D42: Lorwyn | E42: LRW | G42: Acid Rain | I42: ISD | J42: C | K42: Village Bell-Ringer | L42: 0.019 | M42: 0.029 | N42: 0.004 | O42: 0.007
D43: Magic 2010 | E43: M10 | G43: Acid Web Spider | I43: ISD | J43: C | K43: Voiceless Spirit | L43: 0.019 | M43: 0.029 | N43: 0.004 | O43: 0.007
D44: Magic 2011 | E44: M11 | G44: Acidic Dagger | I44: ISD | J44: C | K44: Armored Skaab | L44: 0.019 | M44: 0.03 | N44: 0.004 | O44: 0.007
D45: Magic 2012 | E45: M12 | G45: Acidic Slime | I45: ISD | J45: R | K45: Back from the Brink | L45: 0.049 | M45: 0.343 | N45: 0.034 | O45: 0.17
D46: Magic 2013 | E46: M13 | G46: Acidic Sliver | I46: ISD | J46: U | K46: Battleground Geist | L46: 0.029 | M46: 0.048 | N46: 0.016 | O46: 0.026
D47: Masters Edition | E47: MED | G47: Acidic Soil | I47: ISD | J47: R | K47: Cackling Counterpart | L47: 0.149 | M47: 0.395 | N47: 0.104 | O47: 0.277
D48: Masters Edition II | E48: ME2 | G48: Acolyte of Xathrid | I48: ISD | J48: U | K48: Civilized Scholar | L48: 0.029 | M48: 0.05 | N48: 0.016 | O48: 0.027
D49: Masters Edition III | E49: ME3 | G49: Acorn Catapult | I49: ISD | J49: C | K49: Claustrophobia | L49: 0.019 | M49: 0.029 | N49: 0.004 | O49: 0.007
D50: Masters Edition IV | E50: ME4 | G50: Acorn Harvest | I50: ISD | J50: U | K50: Curiosity | L50: 0.059 | M50: 0.146 | N50: 0.032 | O50: 0.08
D51: Mercadian Masques | E51: MM | G51: Acquire | I51: ISD | J51: C | K51: Curse of the Bloody Tome | L51: 0.019 | M51: 0.03 | N51: 0.004 | O51: 0.007
D52: Mirage | E52: MI | G52: Acridian | I52: ISD | J52: C | K52: Delver of Secrets | L52: 0.098 | M52: 0.399 | N52: 0.024 | O52: 0.12
D53: Mirrodin | E53: MRD | G53: Act of Aggression | I53: ISD | J53: C | K53: Deranged Assistant | L53: 0.02 | M53: 0.029 | N53: 0.005 | O53: 0.007
D54: Mirrodin Besieged | E54: MBS | G54: Act of Treason | I54: ISD | J54: U | K54: Dissipate | L54: 0.108 | M54: 0.301 | N54: 0.059 | O54: 0.165
D55: Mirrodin Pure vs New Phyrexia | E55: TD2 | G55: Active Volcano | I55: ISD | J55: C | K55: Dream Twist | L55: 0.029 | M55: 0.048 | N55: 0.007 | O55: 0.012
D56: Morningtide | E56: MOR | G56: Ad Nauseam | I56: ISD | J56: C | K56: Forbidden Alchemy | L56: 0.029 | M56: 0.049 | N56: 0.007 | O56: 0.012
D57: Nemisis | E57: NE | G57: Adamaro, First to Desire | I57: ISD | J57: C | K57: Fortress Crab | L57: 0.02 | M57: 0.029 | N57: 0.005 | O57: 0.007
D58: New Phyrexia | E58: NPH | G58: Adaptive Automaton | I58: ISD | J58: C | K58: Frightful Delusion | L58: 0.019 | M58: 0.029 | N58: 0.004 | O58: 0.007
D59: Odyssey | E59: OD | G59: Adaptive Snapjaw | I59: ISD | J59: U | K59: Grasp of Phantoms | L59: 0.029 | M59: 0.049 | N59: 0.016 | O59: 0.027
D60: Onslaught | E60: ONS | G60: Adarkar Sentinel | I60: ISD | J60: C | K60: Hysterical Blindness | L60: 0.02 | M60: 0.03 | N60: 0.005 | O60: 0.007
D61: Phrophecy | E61: PR | G61: Adarkar Valkyrie | I61: ISD | J61: U | K61: Invisible Stalker | L61: 0.127 | M61: 0.353 | N61: 0.07 | O61: 0.194
D62: Phyrexia vs Coalition | E62: DDE | G62: Adarkar Wastes | I62: ISD | J62: R | K62: Laboratory Maniac | L62: 0.05 | M62: 0.35 | N62: 0.035 | O62: 0.175
D63: Planar Chaos | E63: PLC | G63: Adarkar Windform | I63: ISD | J63: U | K63: Lantern Spirit | L63: 0.029 | M63: 0.049 | N63: 0.016 | O63: 0.027
D64: Planechase | E64: PC1 | G64: Adder-Staff Boggart | I64: ISD | J64: C | K64: Lost in the Mist | L64: 0.019 | M64: 0.03 | N64: 0.004 | O64: 0.007
D65: Planeshift | E65: PS | G65: Addle | I65: ISD | J65: R | K65: Ludevic's Test Subject | L65: 0.05 | M65: 0.35 | N65: 0.035 | O65: 0.175
D66: Plannechase 2012 | E66: PC2 | G66: Admonition Angel | I66: ISD | J66: C | K66: Makeshift Mauler | L66: 0.02 | M66: 0.029 | N66: 0.005 | O66: 0.007
D67: Premium Deck: Fire & Lightning | E67: PD2 | G67: Adun Oakenshield | I67: ISD | J67: U | K67: Memory's Journey | L67: 0.03 | M67: 0.048 | N67: 0.016 | O67: 0.026
D68: Premium Deck: Graveborn | E68: PD3 | G68: Advance Scout | I68: ISD | J68: R | K68: Mindshrieker | L68: 0.049 | M68: 0.343 | N68: 0.034 | O68: 0.17
D69: Premium Deck: Slivers | E69: H09 | G69: Advanced Hoverguard | I69: ISD | J69: M | K69: Mirror-Mad Phantasm | L69: 0.7 | M69: 4.9 | N69: 0.495 | O69: 2.475
D70: Promo | E70: PRM | G70: Adventuring Gear | I70: ISD | J70: C | K70: Moon Heron | L70: 0.02 | M70: 0.029 | N70: 0.005 | O70: 0.007
D71: Ravnica | E71: RAV | G71: Advice from the Fae | I71: ISD | J71: U | K71: Murder of Crows | L71: 0.03 | M71: 0.048 | N71: 0.016 | O71: 0.026
D72: Return to Ravnica | E72: RTR | G72: Aegis Angel | I72: ISD | J72: R | K72: Rooftop Storm | L72: 0.049 | M72: 0.343 | N72: 0.034 | O72: 0.17
D73: Rise of the Eldrazi | E73: ROE | G73: Aegis of Honor | I73: ISD | J73: U | K73: Runic Repetition | L73: 0.03 | M73: 0.05 | N73: 0.016 | O73: 0.027
D74: Saviors of Kamigawa | E74: SOK | G74: Aeolipile | I74: ISD | J74: C | K74: Selhoff Occultist | L74: 0.019 | M74: 0.029 | N74: 0.004 | O74: 0.007
D75: Scars of Mirrodin | E75: SOM | G75: Aeon Chronicler | I75: ISD | J75: C | K75: Sensory Deprivation | L75: 0.019 | M75: 0.03 | N75: 0.004 | O75: 0.007
D76: Scourge | E76: SCG | G76: Aerial Caravan | I76: ISD | J76: C | K76: Silent Departure | L76: 0.019 | M76: 0.029 | N76: 0.004 | O76: 0.007
D77: Shadowmoor | E77: SHM | G77: Aerial Maneuver | I77: ISD | J77: U | K77: Skaab Goliath | L77: 0.03 | M77: 0.05 | N77: 0.016 | O77: 0.027
D78: Shards of Alara | E78: ALA | G78: Aerial Predation | I78: ISD | J78: M | K78: Skaab Ruinator | L78: 1.72 | M78: 11.95 | N78: 1.2 | O78: 6
D79: Stronghold | E79: ST | G79: Aerie Mystics | I79: ISD | J79: R | K79: Snapcaster Mage | L79: 6.66 | M79: 13.19 | N79: 4.66 | O79: 9.23
D80: Tempest | E80: TE | G80: Aerie Ouphes | I80: ISD | J80: C | K80: Spectral Flight | L80: 0.029 | M80: 0.049 | N80: 0.007 | O80: 0.012
D81: Tenth Edition | E81: 10E | G81: Aesthir Glider | I81: ISD | J81: C | K81: Stitched Drake | L81: 0.019 | M81: 0.029 | N81: 0.004 | O81: 0.007
D82: Theme Deck | E82: TD0 | G82: Affa Guard Hound | I82: ISD | J82: C | K82: Stitcher's Apprentice | L82: 0.02 | M82: 0.029 | N82: 0.005 | O82: 0.007
D83: Time Spiral | E83: TSP | G83: Afflict | I83: ISD | J83: R | K83: Sturmgeist | L83: 0.049 | M83: 0.343 | N83: 0.034 | O83: 0.17
D84: TimeShifted | E84: TSB | G84: Afflicted Deserter | I84: ISD | J84: C | K84: Think Twice | L84: 0.078 | M84: 0.181 | N84: 0.019 | O84: 0.045
D85: Torment | E85: TOR | G85: Afiya Grove | I85: ISD | J85: R | K85: Undead Alchemist | L85: 0.049 | M85: 0.343 | N85: 0.034 | O85: 0.17
D86: Urza's Destiny | E86: UD | G86: Afterlife | I86: ISD | J86: U | K86: Abattoir Ghoul | L86: 0.029 | M86: 0.048 | N86: 0.016 | O86: 0.026
D87: Urza's Legacy | E87: UL | G87: Aftershock | I87: ISD | J87: C | K87: Altar's Reap | L87: 0.029 | M87: 0.049 | N87: 0.007 | O87: 0.012
D88: Urza's Saga | E88: UZ | G88: Agadeem Occultist | I88: ISD | J88: M | K88: Army of the Damned | L88: 2.55 | M88: 14.12 | N88: 1.78 | O88: 8.9
D89: Vanguard | E89: VAN | G89: Ageless Entity | I89: ISD | J89: U | K89: Bitterheart Witch | L89: 0.03 | M89: 0.048 | N89: 0.016 | O89: 0.026
D90: Venser vs Koth | E90: DDI | G90: Ageless Sentinels | I90: ISD | J90: R | K90: Bloodgift Demon | L90: 0.079 | M90: 0.396 | N90: 0.055 | O90: 0.275
D91: Visions | E91: VI | G91: Agent of Masks | I91: ISD | J91: R | K91: Bloodline Keeper | L91: 0.324 | M91: 0.65 | N91: 0.227 | O91: 0.458
D92: Weatherlight | E92: WL | G92: Agent of Shauku | I92: ISD | J92: C | K92: Brain Weevil | L92: 0.019 | M92: 0.03 | N92: 0.004 | O92: 0.007
D93: Worldwake | E93: WWK | G93: Aggravate | I93: ISD | J93: C | K93: Bump in the Night | L93: 0.029 | M93: 0.05 | N93: 0.007 | O93: 0.012
D94: Zendikar | E94: ZEN | G94: Aggravated Assault | I94: ISD | J94: C | K94: Corpse Lunge | L94: 0.019 | M94: 0.029 | N94: 0.004 | O94: 0.007
G95: Aggressive Urge | I95: ISD | J95: R | K95: Curse of Death's Hold | L95: 0.068 | M95: 0.397 | N95: 0.048 | O95: 0.24
G96: Agility | I96: ISD | J96: C | K96: Curse of Oblivion | L96: 0.02 | M96: 0.029 | N96: 0.005 | O96: 0.007
G97: Agonizing Demise | I97: ISD | J97: C | K97: Dead Weight | L97: 0.048 | M97: 0.108 | N97: 0.012 | O97: 0.027
G98: Agonizing Memories | I98: ISD | J98: U | K98: Diregraf Ghoul | L98: 0.08 | M98: 0.197 | N98: 0.044 | O98: 0.108
G99: Agony Warp | I99: ISD | J99: U | K99: Disciple of Griselbrand | L99: 0.029 | M99: 0.05 | N99: 0.016 | O99: 0.027
G100: Agoraphobia | I100: ISD | J100: R | K100: Endless Ranks of the Dead | L100: 0.05 | M100: 0.35 | N100: 0.035 | O100: 0.175
G101: Agrus Kos, Wojek Veteran | I101: ISD | J101: U | K101: Falkenrath Noble | L101: 0.029 | M101: 0.049 | N101: 0.016 | O101: 0.027
G102: Agyrem | I102: ISD | J102: C | K102: Ghoulcaller's Chant | L102: 0.019 | M102: 0.029 | N102: 0.004 | O102: 0.007
G103: Air Bladder | I103: ISD | J103: C | K103: Ghoulraiser | L103: 0.019 | M103: 0.03 | N103: 0.004 | O103: 0.007
G104: Air Elemental | I104: ISD | J104: C | K104: Gruesome Deformity | L104: 0.019 | M104: 0.029 | N104: 0.004 | O104: 0.007
G105: Air Servant | I105: ISD | J105: R | K105: Heartless Summoning | L105: 0.087 | M105: 0.393 | N105: 0.061 | O105: 0.305
G106: Airborne Aid | I106: ISD | J106: M | K106: Liliana of the Veil | L106: 43.7 | M106: 65.98 | N106: 30.59 | O106: 46.19
G107: Airdrop Condor | I107: ISD | J107: C | K107: Manor Skeleton | L107: 0.02 | M107: 0.029 | N107: 0.005 | O107: 0.007
G108: Aisling Leprechaun | I108: ISD | J108: C | K108: Markov Patrician | L108: 0.019 | M108: 0.029 | N108: 0.004 | O108: 0.007
G109: Ajani Goldmane | I109: ISD | J109: C | K109: Maw of the Mire | L109: 0.019 | M109: 0.03 | N109: 0.004 | O109: 0.007
G110: Ajani Vengeant | I110: ISD | J110: U | K110: Moan of the Unhallowed | L110: 0.029 | M110: 0.049 | N110: 0.016 | O110: 0.027
G111: Ajani, Caller of the Pride | I111: ISD | J111: U | K111: Morkrut Banshee | L111: 0.029 | M111: 0.05 | N111: 0.016 | O111: 0.027
G112: Ajani's Mantra | I112: ISD | J112: C | K112: Night Terrors | L112: 0.019 | M112: 0.03 | N112: 0.004 | O112: 0.007
G113: Ajani's Pridemate | I113: ISD | J113: M | K113: Reaper from the Abyss | L113: 1.59 | M113: 11.13 | N113: 1.11 | O113: 5.55
G114: Ajani's Sunstriker | I114: ISD | J114: C | K114: Rotting Fensnake | L114: 0.019 | M114: 0.029 | N114: 0.004 | O114: 0.007
G115: Akki Avalanchers | I115: ISD | J115: U | K115: Screeching Bat | L115: 0.029 | M115: 0.048 | N115: 0.016 | O115: 0.026
G116: Akki Blizzard-Herder | I116: ISD | J116: R | K116: Sever the Bloodline | L116: 0.435 | M116: 0.83 | N116: 0.304 | O116: 0.58
G117: Akki Coalflinger | I117: ISD | J117: C | K117: Skeletal Grimace | L117: 0.019 | M117: 0.03 | N117: 0.004 | O117: 0.007
G118: Akki Drillmaster | I118: ISD | J118: R | K118: Skirsdag High Priest | L118: 0.238 | M118: 0.65 | N118: 0.166 | O118: 0.455
G119: Akki Lavarunner | I119: ISD | J119: C | K119: Stromkirk Patrol | L119: 0.019 | M119: 0.029 | N119: 0.004 | O119: 0.007
G120: Akki Raider | I120: ISD | J120: U | K120: Tribute to Hunger | L120: 0.09 | M120: 0.247 | N120: 0.049 | O120: 0.136
G121: Akki Rockspeaker | I121: ISD | J121: C | K121: Typhoid Rats | L121: 0.049 | M121: 0.107 | N121: 0.012 | O121: 0.026
G122: Akki Underling | I122: ISD | J122: R | K122: Unbreathing Horde | L122: 0.049 | M122: 0.343 | N122: 0.034 | O122: 0.17
G123: Akki Underminer | I123: ISD | J123: U | K123: Unburial Rites | L123: 0.177 | M123: 0.438 | N123: 0.097 | O123: 0.241
G124: Akoum Battlesinger | I124: ISD | J124: C | K124: Vampire Interloper | L124: 0.019 | M124: 0.029 | N124: 0.004 | O124: 0.007
G125: Akoum Boulderfoot | I125: ISD | J125: C | K125: Victim of Night | L125: 0.078 | M125: 0.175 | N125: 0.019 | O125: 0.043
G126: Akoum Refuge | I126: ISD | J126: U | K126: Village Cannibals | L126: 0.029 | M126: 0.05 | N126: 0.016 | O126: 0.027
G127: Akrasan Squire | I127: ISD | J127: C | K127: Walking Corpse | L127: 0.02 | M127: 0.029 | N127: 0.005 | O127: 0.007
G128: Akroma, Angel of Fury | I128: ISD | J128: C | K128: Ancient Grudge | L128: 0.029 | M128: 0.049 | N128: 0.007 | O128: 0.012
G129: Akroma, Angel of Wrath | I129: ISD | J129: C | K129: Ashmouth Hound | L129: 0.019 | M129: 0.03 | N129: 0.004 | O129: 0.007
G130: Akroma's Blessing | I130: ISD | J130: M | K130: Balefire Dragon | L130: 1.3 | M130: 9.1 | N130: 0.91 | O130: 4.55
G131: Akroma's Devoted | I131: ISD | J131: R | K131: Blasphemous Act | L131: 0.401 | M131: 0.79 | N131: 0.281 | O131: 0.55
G132: Akroma's Memorial | I132: ISD | J132: C | K132: Bloodcrazed Neonate | L132: 0.02 | M132: 0.029 | N132: 0.005 | O132: 0.007
G133: Akroma's Vengeance | I133: ISD | J133: C | K133: Brimstone Volley | L133: 0.07 | M133: 0.146 | N133: 0.017 | O133: 0.036
G134: Akron Legionnaire | I134: ISD | J134: U | K134: Burning Vengeance | L134: 0.029 | M134: 0.05 | N134: 0.016 | O134: 0.027
G135: Aku Djinn | I135: ISD | J135: R | K135: Charmbreaker Devils | L135: 0.05 | M135: 0.35 | N135: 0.035 | O135: 0.175
G136: Akuta, Born of Ash | I136: ISD | J136: C | K136: Crossway Vampire | L136: 0.019 | M136: 0.029 | N136: 0.004 | O136: 0.007
G137: Al-abara's Carpet | I137: ISD | J137: R | K137: Curse of Stalked Prey | L137: 0.049 | M137: 0.343 | N137: 0.034 | O137: 0.17
G138: Alabaster Dragon | I138: ISD | J138: U | K138: Curse of the Nightly Hunt | L138: 0.029 | M138: 0.049 | N138: 0.016 | O138: 0.027
G139: Alabaster Leech | I139: ISD | J139: C | K139: Curse of the Pierced Heart | L139: 0.019 | M139: 0.029 | N139: 0.004 | O139: 0.007
G140: Alabaster Mage | I140: ISD | J140: U | K140: Desperate Ravings | L140: 0.049 | M140: 0.05 | N140: 0.027 | O140: 0.027
G141: Alabaster Potion | I141: ISD | J141: R | K141: Devil's Play | L141: 0.079 | M141: 0.402 | N141: 0.055 | O141: 0.275
G142: Alabaster Wall | I142: ISD | J142: R | K142: Falkenrath Marauders | L142: 0.049 | M142: 0.343 | N142: 0.034 | O142: 0.17
G143: Alaborn Cavalier | I143: ISD | J143: C | K143: Feral Ridgewolf | L143: 0.019 | M143: 0.03 | N143: 0.004 | O143: 0.007
G144: Alaborn Musketeer | I144: ISD | J144: C | K144: Furor of the Bitten | L144: 0.019 | M144: 0.029 | N144: 0.004 | O144: 0.007
G145: Alaborn Trooper | I145: ISD | J145: C | K145: Geistflame | L145: 0.019 | M145: 0.029 | N145: 0.004 | O145: 0.007
G146: Aladdin | I146: ISD | J146: U | K146: Hanweir Watchkeep | L146: 0.029 | M146: 0.049 | N146: 0.016 | O146: 0.027
G147: Aladdin's Ring | I147: ISD | J147: C | K147: Harvest Pyre | L147: 0.039 | M147: 0.089 | N147: 0.009 | O147: 0.022
G148: Alara Reborn Booster | I148: ISD | J148: R | K148: Heretic's Punishment | L148: 0.049 | M148: 0.343 | N148: 0.034 | O148: 0.17
G149: Alara Reborn Intro Pack: Dead Ahead | I149: ISD | J149: C | K149: Infernal Plunge | L149: 0.019 | M149: 0.029 | N149: 0.004 | O149: 0.007
G150: Alara Reborn Intro Pack: Eternal Siege | I150: ISD | J150: R | K150: Instigator Gang | L150: 0.049 | M150: 0.343 | N150: 0.034 | O150: 0.17
G151: Alara Reborn Intro Pack: Legion Aloft | I151: ISD | J151: U | K151: Into the Maw of Hell | L151: 0.03 | M151: 0.049 | N151: 0.016 | O151: 0.027
G152: Alara Reborn Intro Pack: Rumbler | I152: ISD | J152: C | K152: Kessig Wolf | L152: 0.019 | M152: 0.029 | N152: 0.004 | O152: 0.007
G153: Alara Reborn Intro Pack: Unnatural Schemes | I153: ISD | J153: R | K153: Kruin Outlaw | L153: 0.049 | M153: 0.343 | N153: 0.034 | O153: 0.17
G154: Alarum | I154: ISD | J154: C | K154: Night Revelers | L154: 0.019 | M154: 0.029 | N154: 0.004 | O154: 0.007
G155: Albino Troll | I155: ISD | J155: C | K155: Nightbird's Clutches | L155: 0.019 | M155: 0.03 | N155: 0.004 | O155: 0.007
G156: Alchemist's Apprentice | I156: ISD | J156: M | K156: Past in Flames | L156: 2.8 | M156: 13.86 | N156: 1.96 | O156: 9.8
G157: Alchemist's Refuge | I157: ISD | J157: C | K157: Pitchburn Devils | L157: 0.019 | M157: 0.03 | N157: 0.004 | O157: 0.007
G158: Alchor's Tomb | I158: ISD | J158: U | K158: Rage Thrower | L158: 0.029 | M158: 0.049 | N158: 0.016 | O158: 0.026
G159: Aleatory | I159: ISD | J159: U | K159: Rakish Heir | L159: 0.029 | M159: 0.049 | N159: 0.016 | O159: 0.027
G160: Alexi, Zephyr Mage | I160: ISD | J160: U | K160: Reckless Waif | L160: 0.11 | M160: 0.295 | N160: 0.06 | O160: 0.162
G161: Alexi's Cloak | I161: ISD | J161: C | K161: Riot Devils | L161: 0.02 | M161: 0.029 | N161: 0.005 | O161: 0.007
G162: Algae Gharial | I162: ISD | J162: U | K162: Rolling Temblor | L162: 0.097 | M162: 0.247 | N162: 0.053 | O162: 0.136
G163: Ali from Cairo | I163: ISD | J163: U | K163: Scourge of Geier Reach | L163: 0.03 | M163: 0.048 | N163: 0.016 | O163: 0.026
G164: All Hallow's Eve | I164: ISD | J164: U | K164: Skirsdag Cultist | L164: 0.029 | M164: 0.049 | N164: 0.016 | O164: 0.027
G165: All Is Dust | I165: ISD | J165: R | K165: Stromkirk Noble | L165: 2.21 | M165: 3.35 | N165: 1.55 | O165: 2.34
G166: All Suns' Dawn | I166: ISD | J166: C | K166: Tormented Pariah | L166: 0.02 | M166: 0.029 | N166: 0.005 | O166: 0.007
G167: Allay | I167: ISD | J167: C | K167: Traitorous Blood | L167: 0.029 | M167: 0.049 | N167: 0.007 | O167: 0.012
G168: Alley Grifters | I168: ISD | J168: C | K168: Vampiric Fury | L168: 0.019 | M168: 0.029 | N168: 0.004 | O168: 0.007
G169: Alliance of Arms | I169: ISD | J169: C | K169: Village Ironsmith | L169: 0.02 | M169: 0.029 | N169: 0.005 | O169: 0.007
G170: Allied Strategies | I170: ISD | J170: C | K170: Ambush Viper | L170: 0.02 | M170: 0.029 | N170: 0.005 | O170: 0.007
G171: Allosaurus Rider | I171: ISD | J171: C | K171: Avacyn's Pilgrim | L171: 0.079 | M171: 0.178 | N171: 0.019 | O171: 0.044
G172: Alloy Golem | I172: ISD | J172: U | K172: Boneyard Wurm | L172: 0.029 | M172: 0.049 | N172: 0.016 | O172: 0.027
G173: Alloy Myr | I173: ISD | J173: U | K173: Bramblecrush | L173: 0.029 | M173: 0.05 | N173: 0.016 | O173: 0.027
G174: Alluring Scent | I174: ISD | J174: C | K174: Caravan Vigil | L174: 0.019 | M174: 0.03 | N174: 0.004 | O174: 0.007
G175: Alluring Siren | I175: ISD | J175: R | K175: Creeping Renaissance | L175: 0.049 | M175: 0.343 | N175: 0.034 | O175: 0.17
G176: Alms | I176: ISD | J176: C | K176: Darkthicket Wolf | L176: 0.019 | M176: 0.03 | N176: 0.004 | O176: 0.007
G177: Alms Beast | I177: ISD | J177: R | K177: Daybreak Ranger | L177: 0.049 | M177: 0.343 | N177: 0.034 | O177: 0.17
G178: Alpha Authority | I178: ISD | J178: R | K178: Elder of Laurels | L178: 0.049 | M178: 0.343 | N178: 0.034 | O178: 0.17
G179: Alpha Brawl | I179: ISD | J179: M | K179: Essence of the Wild | L179: 0.96 | M179: 6.72 | N179: 0.67 | O179: 3.35
G180: Alpha Kavu | I180: ISD | J180: C | K180: Festerhide Boar | L180: 0.019 | M180: 0.029 | N180: 0.004 | O180: 0.007
G181: Alpha Myr | I181: ISD | J181: U | K181: Full Moon's Rise | L181: 0.029 | M181: 0.049 | N181: 0.016 | O181: 0.027
G182: Alpha Status | I182: ISD | J182: M | K182: Garruk Relentless | L182: 18.4 | M182: 27.8 | N182: 12.88 | O182: 19.46
G183: Alpha Tyrranax | I183: ISD | J183: U | K183: Gatstaf Shepherd | L183: 0.029 | M183: 0.049 | N183: 0.016 | O183: 0.027
G184: Altar Golem | I184: ISD | J184: C | K184: Gnaw to the Bone | L184: 0.02 | M184: 0.029 | N184: 0.005 | O184: 0.007
G185: Altar of Dementia | I185: ISD | J185: C | K185: Grave Bramble | L185: 0.019 | M185: 0.029 | N185: 0.004 | O185: 0.007
G186: Altar of Shadows | I186: ISD | J186: C | K186: Grizzled Outcasts | L186: 0.019 | M186: 0.03 | N186: 0.004 | O186: 0.007
G187: Altar of the Lost | I187: ISD | J187: R | K187: Gutter Grime | L187: 0.049 | M187: 0.343 | N187: 0.034 | O187: 0.17
G188: Altar's Light | I188: ISD | J188: U | K188: Hamlet Captain | L188: 0.05 | M188: 0.05 | N188: 0.027 | O188: 0.027
G189: Altar's Reap | I189: ISD | J189: U | K189: Hollowhenge Scavenger | L189: 0.029 | M189: 0.048 | N189: 0.016 | O189: 0.026
G190: Alter Reality | I190: ISD | J190: R | K190: Kessig Cagebreakers | L190: 0.048 | M190: 0.336 | N190: 0.034 | O190: 0.17
G191: Aluren | I191: ISD | J191: C | K191: Kindercatch | L191: 0.019 | M191: 0.029 | N191: 0.004 | O191: 0.007
G192: Amass the Components | I192: ISD | J192: U | K192: Lumberknot | L192: 0.029 | M192: 0.049 | N192: 0.016 | O192: 0.027
G193: Ambassador Laquatus | I193: ISD | J193: U | K193: Make a Wish | L193: 0.029 | M193: 0.049 | N193: 0.016 | O193: 0.027
G194: Ambassador Oak | I194: ISD | J194: R | K194: Mayor of Avabruck | L194: 0.91 | M194: 2.01 | N194: 0.64 | O194: 1.41
G195: Amber Prison | I195: ISD | J195: R | K195: Moldgraf Monstrosity | L195: 0.049 | M195: 0.343 | N195: 0.034 | O195: 0.17
G196: Ambition's Cost | I196: ISD | J196: C | K196: Moonmist | L196: 0.02 | M196: 0.03 | N196: 0.005 | O196: 0.007
G197: Ambush Commander | I197: ISD | J197: C | K197: Mulch | L197: 0.049 | M197: 0.109 | N197: 0.012 | O197: 0.027
G198: Ambush Party | I198: ISD | J198: C | K198: Naturalize | L198: 0.019 | M198: 0.03 | N198: 0.004 | O198: 0.007
G199: Ambush Viper | I199: ISD | J199: C | K199: Orchard Spirit | L199: 0.02 | M199: 0.029 | N199: 0.005 | O199: 0.007
G200: Amnesia | I200: ISD | J200: R | K200: Parallel Lives | L200: 0.21 | M200: 0.65 | N200: 0.147 | O200: 0.459
... 4300 more rows

Sheet CardsMTGO3 (hidden)
A1: SET | B1: TYPE | C1: NAME | D1: SELL_REG | E1: SELL_FOIL | F1: BUY_REG | G1: BUY_FOIL
A2: 5DN | B2: C | C2: Abuna's Chant | D2: 0.02 | E2: 0.03 | F2: 0.005 | G2: 0.007
A3: 5DN | B3: C | C3: Armed Response | D3: 0.019 | E3: 0.029 | F3: 0.004 | G3: 0.007
A4: 5DN | B4: R | C4: Auriok Champion | D4: 12.25 | E4: 17.07 | F4: 8.57 | G4: 11.95
A5: 5DN | B5: U | C5: Auriok Salvagers | D5: 0.029 | E5: 0.039 | F5: 0.016 | G5: 0.021
A6: 5DN | B6: R | C6: Auriok Windwalker | D6: 0.048 | E6: 0.244 | F6: 0.034 | G6: 0.17
A7: 5DN | B7: R | C7: Beacon of Immortality | D7: 0.9 | E7: 1.36 | F7: 0.63 | G7: 0.95
A8: 5DN | B8: R | C8: Bringer of the White Dawn | D8: 0.415 | E8: 0.84 | F8: 0.291 | G8: 0.59
A9: 5DN | B9: U | C9: Circle of Protection: Artifacts | D9: 0.029 | E9: 0.039 | F9: 0.016 | G9: 0.021
A10: 5DN | B10: C | C10: Leonin Squire | D10: 0.019 | E10: 0.029 | F10: 0.004 | G10: 0.007
A11: 5DN | B11: C | C11: Loxodon Anchorite | D11: 0.019 | E11: 0.029 | F11: 0.004 | G11: 0.007
A12: 5DN | B12: U | C12: Loxodon Stalwart | D12: 0.03 | E12: 0.039 | F12: 0.016 | G12: 0.021
A13: 5DN | B13: R | C13: Raksha Golden Cub | D13: 0.275 | E13: 0.59 | F13: 0.193 | G13: 0.417
A14: 5DN | B14: R | C14: Retaliate | D14: 0.1 | E14: 0.251 | F14: 0.07 | G14: 0.176
A15: 5DN | B15: R | C15: Roar of Reclamation | D15: 0.05 | E15: 0.244 | F15: 0.035 | G15: 0.175
A16: 5DN | B16: C | C16: Skyhunter Prowler | D16: 0.019 | E16: 0.03 | F16: 0.004 | G16: 0.007
A17: 5DN | B17: U | C17: Skyhunter Skirmisher | D17: 0.059 | E17: 0.146 | F17: 0.032 | G17: 0.08
A18: 5DN | B18: C | C18: Stand Firm | D18: 0.02 | E18: 0.029 | F18: 0.005 | G18: 0.007
A19: 5DN | B19: C | C19: Stasis Cocoon | D19: 0.019 | E19: 0.03 | F19: 0.004 | G19: 0.007
A20: 5DN | B20: U | C20: Steelshaper's Gift | D20: 0.76 | E20: 2.15 | F20: 0.418 | G20: 1.18
A21: 5DN | B21: U | C21: Vanquish | D21: 0.029 | E21: 0.04 | F21: 0.016 | G21: 0.022
A22: 5DN | B22: R | C22: Acquire | D22: 0.98 | E22: 1.48 | F22: 0.68 | G22: 1.04
A23: 5DN | B23: C | C23: Advanced Hoverguard | D23: 0.02 | E23: 0.029 | F23: 0.005 | G23: 0.007
A24: 5DN | B24: R | C24: Artificer's Intuition | D24: 0.05 | E24: 0.247 | F24: 0.035 | G24: 0.175
A25: 5DN | B25: R | C25: Beacon of Tomorrows | D25: 0.63 | E25: 1.3 | F25: 0.445 | G25: 0.91
A26: 5DN | B26: R | C26: Blinkmoth Infusion | D26: 0.049 | E26: 0.25 | F26: 0.034 | G26: 0.17
A27: 5DN | B27: R | C27: Bringer of the Blue Dawn | D27: 1.38 | E27: 5.9 | F27: 0.97 | G27: 4.85
A28: 5DN | B28: C | C28: Condescend | D28: 0.451 | E28: 1.4 | F28: 0.112 | G28: 0.351
A29: 5DN | B29: U | C29: Disruption Aura | D29: 0.029 | E29: 0.04 | F29: 0.016 | G29: 0.022
A30: 5DN | B30: C | C30: Early Frost | D30: 0.059 | E30: 0.178 | F30: 0.014 | G30: 0.044
A31: 5DN | B31: U | C31: Eyes of the Watcher | D31: 0.029 | E31: 0.04 | F31: 0.016 | G31: 0.022
A32: 5DN | B32: U | C32: Fold into ﾆther | D32: 0.029 | E32: 0.039 | F32: 0.016 | G32: 0.021
A33: 5DN | B33: R | C33: Hoverguard Sweepers | D33: 0.049 | E33: 0.245 | F33: 0.034 | G33: 0.17
A34: 5DN | B34: C | C34: Into Thin Air | D34: 0.019 | E34: 0.029 | F34: 0.004 | G34: 0.007
A35: 5DN | B35: U | C35: Plasma Elemental | D35: 0.029 | E35: 0.039 | F35: 0.016 | G35: 0.021
A36: 5DN | B36: U | C36: Qumulox | D36: 0.029 | E36: 0.039 | F36: 0.016 | G36: 0.021
A37: 5DN | B37: C | C37: Serum Visions | D37: 0.89 | E37: 3.62 | F37: 0.224 | G37: 1.12
A38: 5DN | B38: R | C38: Spectral Shift | D38: 0.048 | E38: 0.252 | F38: 0.034 | G38: 0.17
A39: 5DN | B39: C | C39: Thought Courier | D39: 0.019 | E39: 0.029 | F39: 0.004 | G39: 0.007
A40: 5DN | B40: C | C40: Trinket Mage | D40: 0.119 | E40: 0.5 | F40: 0.029 | G40: 0.145
A41: 5DN | B41: U | C41: Vedalken Mastermind | D41: 0.029 | E41: 0.04 | F41: 0.016 | G41: 0.022
A42: 5DN | B42: R | C42: Beacon of Unrest | D42: 0.99 | E42: 1.5 | F42: 0.69 | G42: 1.05
A43: 5DN | B43: C | C43: Blind Creeper | D43: 0.019 | E43: 0.029 | F43: 0.004 | G43: 0.007
A44: 5DN | B44: R | C44: Bringer of the Black Dawn | D44: 0.91 | E44: 1.37 | F44: 0.64 | G44: 0.96
A45: 5DN | B45: C | C45: Cackling Imp | D45: 0.02 | E45: 0.029 | F45: 0.005 | G45: 0.007
A46: 5DN | B46: R | C46: Desecration Elemental | D46: 0.05 | E46: 0.248 | F46: 0.035 | G46: 0.175
A47: 5DN | B47: U | C47: Devour in Shadow | D47: 0.029 | E47: 0.039 | F47: 0.016 | G47: 0.021
A48: 5DN | B48: C | C48: Dross Crocodile | D48: 0.02 | E48: 0.03 | F48: 0.005 | G48: 0.007
A49: 5DN | B49: U | C49: Ebon Drake | D49: 0.029 | E49: 0.039 | F49: 0.016 | G49: 0.021
A50: 5DN | B50: R | C50: Endless Whispers | D50: 0.161 | E50: 0.342 | F50: 0.112 | G50: 0.239
A51: 5DN | B51: C | C51: Fill with Fright | D51: 0.019 | E51: 0.029 | F51: 0.004 | G51: 0.007
A52: 5DN | B52: C | C52: Fleshgrafter | D52: 0.019 | E52: 0.029 | F52: 0.004 | G52: 0.007
A53: 5DN | B53: C | C53: Lose Hope | D53: 0.019 | E53: 0.029 | F53: 0.004 | G53: 0.007
A54: 5DN | B54: R | C54: Mephidross Vampire | D54: 1.09 | E54: 1.63 | F54: 0.76 | G54: 1.14
A55: 5DN | B55: R | C55: Moriok Rigger | D55: 0.049 | E55: 0.252 | F55: 0.034 | G55: 0.17
A56: 5DN | B56: U | C56: Night's Whisper | D56: 0.87 | E56: 2.39 | F56: 0.48 | G56: 1.31
A57: 5DN | B57: U | C57: Nim Grotesque | D57: 0.03 | E57: 0.039 | F57: 0.016 | G57: 0.021
A58: 5DN | B58: R | C58: Plunge into Darkness | D58: 0.429 | E58: 0.89 | F58: 0.3 | G58: 0.62
A59: 5DN | B59: U | C59: Relentless Rats | D59: 0.157 | E59: 0.401 | F59: 0.086 | G59: 0.221
A60: 5DN | B60: U | C60: Shattered Dreams | D60: 0.03 | E60: 0.039 | F60: 0.016 | G60: 0.021
A61: 5DN | B61: C | C61: Vicious Betrayal | D61: 0.019 | E61: 0.029 | F61: 0.004 | G61: 0.007
A62: 5DN | B62: R | C62: Beacon of Destruction | D62: 0.078 | E62: 0.248 | F62: 0.054 | G62: 0.173
A63: 5DN | B63: R | C63: Bringer of the Red Dawn | D63: 0.59 | E63: 1.22 | F63: 0.417 | G63: 0.85
A64: 5DN | B64: R | C64: Cosmic Larva | D64: 0.049 | E64: 0.251 | F64: 0.034 | G64: 0.17
A65: 5DN | B65: U | C65: Feedback Bolt | D65: 0.03 | E65: 0.039 | F65: 0.016 | G65: 0.021
A66: 5DN | B66: U | C66: Furnace Whelp | D66: 0.029 | E66: 0.04 | F66: 0.016 | G66: 0.022
A67: 5DN | B67: C | C67: Goblin Brawler | D67: 0.019 | E67: 0.03 | F67: 0.004 | G67: 0.007
A68: 5DN | B68: R | C68: Granulate | D68: 0.048 | E68: 0.245 | F68: 0.034 | G68: 0.17
A69: 5DN | B69: R | C69: Ion Storm | D69: 0.049 | E69: 0.25 | F69: 0.034 | G69: 0.17
A70: 5DN | B70: U | C70: Iron-Barb Hellion | D70: 0.029 | E70: 0.039 | F70: 0.016 | G70: 0.021
A71: 5DN | B71: U | C71: Krark-Clan Engineers | D71: 0.03 | E71: 0.039 | F71: 0.016 | G71: 0.021
A72: 5DN | B72: C | C72: Krark-Clan Ogre | D72: 0.019 | E72: 0.029 | F72: 0.004 | G72: 0.007
A73: 5DN | B73: R | C73: Magma Giant | D73: 0.049 | E73: 0.246 | F73: 0.034 | G73: 0.17
A74: 5DN | B74: U | C74: Magma Jet | D74: 0.92 | E74: 1.64 | F74: 0.5 | G74: 0.9
A75: 5DN | B75: U | C75: Magnetic Theft | D75: 0.029 | E75: 0.039 | F75: 0.016 | G75: 0.021
A76: 5DN | B76: C | C76: Mana Geyser | D76: 0.019 | E76: 0.029 | F76: 0.004 | G76: 0.007
A77: 5DN | B77: C | C77: Rain of Rust | D77: 0.02 | E77: 0.03 | F77: 0.005 | G77: 0.007
A78: 5DN | B78: R | C78: Reversal of Fortune | D78: 0.05 | E78: 0.243 | F78: 0.035 | G78: 0.175
A79: 5DN | B79: C | C79: Screaming Fury | D79: 0.019 | E79: 0.029 | F79: 0.004 | G79: 0.007
A80: 5DN | B80: C | C80: Spark Elemental | D80: 0.15 | E80: 0.447 | F80: 0.037 | G80: 0.111
A81: 5DN | B81: C | C81: Vulshok Sorcerer | D81: 0.039 | E81: 0.089 | F81: 0.009 | G81: 0.022
A82: 5DN | B82: R | C82: All Suns' Dawn | D82: 0.09 | E82: 0.249 | F82: 0.063 | G82: 0.174
A83: 5DN | B83: R | C83: Beacon of Creation | D83: 3.21 | E83: 4.41 | F83: 2.24 | G83: 3.08
A84: 5DN | B84: R | C84: Bringer of the Green Dawn | D84: 0.234 | E84: 0.498 | F84: 0.164 | G84: 0.348
A85: 5DN | B85: U | C85: Channel the Suns | D85: 0.068 | E85: 0.17 | F85: 0.037 | G85: 0.093
A86: 5DN | B86: C | C86: Dawn's Reflection | D86: 0.019 | E86: 0.03 | F86: 0.004 | G86: 0.007
A87: 5DN | B87: U | C87: Eternal Witness | D87: 6.94 | E87: 13.87 | F87: 3.82 | G87: 7.63
A88: 5DN | B88: U | C88: Fangren Pathcutter | D88: 0.03 | E88: 0.04 | F88: 0.016 | G88: 0.022
A89: 5DN | B89: C | C89: Ferocious Charge | D89: 0.02 | E89: 0.03 | F89: 0.005 | G89: 0.007
A90: 5DN | B90: R | C90: Joiner Adept | D90: 0.393 | E90: 0.78 | F90: 0.275 | G90: 0.54
A91: 5DN | B91: U | C91: Ouphe Vandals | D91: 0.03 | E91: 0.04 | F91: 0.016 | G91: 0.022
A92: 5DN | B92: R | C92: Rite of Passage | D92: 0.277 | E92: 0.59 | F92: 0.194 | G92: 0.418
A93: 5DN | B93: R | C93: Rude Awakening | D93: 0.384 | E93: 0.8 | F93: 0.269 | G93: 0.56
A94: 5DN | B94: C | C94: Sylvok Explorer | D94: 0.019 | E94: 0.029 | F94: 0.004 | G94: 0.007
A95: 5DN | B95: C | C95: Tangle Asp | D95: 0.019 | E95: 0.03 | F95: 0.004 | G95: 0.007
A96: 5DN | B96: U | C96: Tel-Jilad Justice | D96: 0.029 | E96: 0.04 | F96: 0.016 | G96: 0.022
A97: 5DN | B97: C | C97: Tel-Jilad Lifebreather | D97: 0.02 | E97: 0.029 | F97: 0.005 | G97: 0.007
A98: 5DN | B98: R | C98: Tornado Elemental | D98: 0.227 | E98: 0.5 | F98: 0.159 | G98: 0.35
A99: 5DN | B99: C | C99: Tyrranax | D99: 0.019 | E99: 0.029 | F99: 0.004 | G99: 0.007
A100: 5DN | B100: U | C100: Viridian Lorebearers | D100: 0.029 | E100: 0.04 | F100: 0.016 | G100: 0.022
A101: 5DN | B101: C | C101: Viridian Scout | D101: 0.019 | E101: 0.03 | F101: 0.004 | G101: 0.007
A102: 5DN | B102: C | C102: Anodet Lurker | D102: 0.019 | E102: 0.03 | F102: 0.004 | G102: 0.007
A103: 5DN | B103: U | C103: Arachnoid | D103: 0.029 | E103: 0.039 | F103: 0.016 | G103: 0.021
A104: 5DN | B104: U | C104: Arcbound Wanderer | D104: 0.029 | E104: 0.039 | F104: 0.016 | G104: 0.021
A105: 5DN | B105: U | C105: Avarice Totem | D105: 0.029 | E105: 0.039 | F105: 0.016 | G105: 0.021
A106: 5DN | B106: C | C106: Baton of Courage | D106: 0.019 | E106: 0.029 | F106: 0.004 | G106: 0.007
A107: 5DN | B107: C | C107: Battered Golem | D107: 0.019 | E107: 0.029 | F107: 0.004 | G107: 0.007
A108: 5DN | B108: U | C108: Blasting Station | D108: 0.334 | E108: 0.95 | F108: 0.184 | G108: 0.52
A109: 5DN | B109: U | C109: Chimeric Coils | D109: 0.03 | E109: 0.039 | F109: 0.016 | G109: 0.021
A110: 5DN | B110: R | C110: Clearwater Goblet | D110: 0.271 | E110: 0.54 | F110: 0.189 | G110: 0.382
A111: 5DN | B111: U | C111: Clock of Omens | D111: 0.08 | E111: 0.197 | F111: 0.044 | G111: 0.108
A112: 5DN | B112: U | C112: Composite Golem | D112: 0.03 | E112: 0.039 | F112: 0.016 | G112: 0.021
A113: 5DN | B113: C | C113: Conjurer's Bauble | D113: 0.078 | E113: 0.244 | F113: 0.019 | G113: 0.061
A114: 5DN | B114: C | C114: Cranial Plating | D114: 0.146 | E114: 0.443 | F114: 0.036 | G114: 0.11
A115: 5DN | B115: R | C115: Crucible of Worlds | D115: 7.7 | E115: 10.89 | F115: 5.39 | G115: 7.62
A116: 5DN | B116: R | C116: Door to Nothingness | D116: 0.57 | E116: 1.17 | F116: 0.4 | G116: 0.82
A117: 5DN | B117: R | C117: Doubling Cube | D117: 0.95 | E117: 1.43 | F117: 0.66 | G117: 1
A118: 5DN | B118: U | C118: Energy Chamber | D118: 0.168 | E118: 0.444 | F118: 0.092 | G118: 0.244
A119: 5DN | B119: R | C119: Engineered Explosives | D119: 25.72 | E119: 35.8 | F119: 18 | G119: 25.06
A120: 5DN | B120: U | C120: Ensouled Scimitar | D120: 0.03 | E120: 0.039 | F120: 0.016 | G120: 0.021
A121: 5DN | B121: R | C121: Eon Hub | D121: 0.141 | E121: 0.299 | F121: 0.098 | G121: 0.209
A122: 5DN | B122: U | C122: Etched Oracle | D122: 0.09 | E122: 0.63 | F122: 0.049 | G122: 0.245
A123: 5DN | B123: U | C123: Ferropede | D123: 0.029 | E123: 0.039 | F123: 0.016 | G123: 0.021
A124: 5DN | B124: R | C124: Fist of Suns | D124: 1 | E124: 1.5 | F124: 0.7 | G124: 1.05
A125: 5DN | B125: U | C125: Gemstone Array | D125: 0.04 | E125: 0.04 | F125: 0.021 | G125: 0.021
A126: 5DN | B126: U | C126: Goblin Cannon | D126: 0.029 | E126: 0.039 | F126: 0.016 | G126: 0.021
A127: 5DN | B127: U | C127: Grafted Wargear | D127: 0.108 | E127: 0.297 | F127: 0.059 | G127: 0.163
A128: 5DN | B128: U | C128: Grinding Station | D128: 0.059 | E128: 0.146 | F128: 0.032 | G128: 0.08
A129: 5DN | B129: U | C129: Guardian Idol | D129: 0.04 | E129: 0.04 | F129: 0.021 | G129: 0.021
A130: 5DN | B130: C | C130: Healer's Headdress | D130: 0.019 | E130: 0.03 | F130: 0.004 | G130: 0.007
A131: 5DN | B131: C | C131: Heliophial | D131: 0.02 | E131: 0.03 | F131: 0.005 | G131: 0.007
A132: 5DN | B132: R | C132: Helm of Kaldra | D132: 1.13 | E132: 1.75 | F132: 0.79 | G132: 1.22
A133: 5DN | B133: C | C133: Horned Helm | D133: 0.019 | E133: 0.03 | F133: 0.004 | G133: 0.007
A134: 5DN | B134: U | C134: Infused Arrows | D134: 0.029 | E134: 0.039 | F134: 0.016 | G134: 0.021
A135: 5DN | B135: U | C135: Krark-Clan Ironworks | D135: 0.248 | E135: 0.64 | F135: 0.136 | G135: 0.353
A136: 5DN | B136: U | C136: Lantern of Insight | D136: 0.03 | E136: 0.039 | F136: 0.016 | G136: 0.021
A137: 5DN | B137: U | C137: Lunar Avenger | D137: 0.029 | E137: 0.039 | F137: 0.016 | G137: 0.021
A138: 5DN | B138: R | C138: Mycosynth Golem | D138: 3.61 | E138: 5.11 | F138: 2.52 | G138: 3.57
A139: 5DN | B139: C | C139: Myr Quadropod | D139: 0.02 | E139: 0.029 | F139: 0.005 | G139: 0.007
A140: 5DN | B140: C | C140: Myr Servitor | D140: 0.078 | E140: 0.251 | F140: 0.019 | G140: 0.062
A141: 5DN | B141: C | C141: Neurok Stealthsuit | D141: 0.019 | E141: 0.03 | F141: 0.004 | G141: 0.007
A142: 5DN | B142: C | C142: Opaline Bracers | D142: 0.019 | E142: 0.029 | F142: 0.004 | G142: 0.007
A143: 5DN | B143: U | C143: Paradise Mantle | D143: 5.09 | E143: 13.97 | F143: 2.79 | G143: 7.68
A144: 5DN | B144: C | C144: Pentad Prism | D144: 0.079 | E144: 0.251 | F144: 0.019 | G144: 0.062
A145: 5DN | B145: R | C145: Possessed Portal | D145: 0.059 | E145: 0.246 | F145: 0.041 | G145: 0.205
A146: 5DN | B146: C | C146: Razorgrass Screen | D146: 0.019 | E146: 0.029 | F146: 0.004 | G146: 0.007
A147: 5DN | B147: R | C147: Razormane Masticore | D147: 0.06 | E147: 0.247 | F147: 0.042 | G147: 0.21
A148: 5DN | B148: U | C148: Relic Barrier | D148: 0.029 | E148: 0.039 | F148: 0.016 | G148: 0.021
A149: 5DN | B149: R | C149: Salvaging Station | D149: 0.281 | E149: 0.58 | F149: 0.197 | G149: 0.41
A150: 5DN | B150: C | C150: Sawtooth Thresher | D150: 0.019 | E150: 0.03 | F150: 0.004 | G150: 0.007
A151: 5DN | B151: R | C151: Silent Arbiter | D151: 0.64 | E151: 1.27 | F151: 0.452 | G151: 0.89
A152: 5DN | B152: U | C152: Skullcage | D152: 0.029 | E152: 0.039 | F152: 0.016 | G152: 0.021
A153: 5DN | B153: C | C153: Skyreach Manta | D153: 0.019 | E153: 0.029 | F153: 0.004 | G153: 0.007
A154: 5DN | B154: R | C154: Solarion | D154: 0.09 | E154: 0.244 | F154: 0.063 | G154: 0.171
A155: 5DN | B155: C | C155: Sparring Collar | D155: 0.019 | E155: 0.03 | F155: 0.004 | G155: 0.007
A156: 5DN | B156: U | C156: Spinal Parasite | D156: 0.029 | E156: 0.039 | F156: 0.016 | G156: 0.021
A157: 5DN | B157: R | C157: Staff of Domination | D157: 2.09 | E157: 3.05 | F157: 1.46 | G157: 2.14
A158: 5DN | B158: R | C158: Summoner's Egg | D158: 0.138 | E158: 0.302 | F158: 0.096 | G158: 0.211
A159: 5DN | B159: R | C159: Summoning Station | D159: 0.268 | E159: 0.55 | F159: 0.187 | G159: 0.387
A160: 5DN | B160: R | C160: Suncrusher | D160: 0.049 | E160: 0.244 | F160: 0.034 | G160: 0.17
A161: 5DN | B161: C | C161: Suntouched Myr | D161: 0.02 | E161: 0.03 | F161: 0.005 | G161: 0.007
A162: 5DN | B162: U | C162: Synod Centurion | D162: 0.03 | E162: 0.039 | F162: 0.016 | G162: 0.021
A163: 5DN | B163: C | C163: Thermal Navigator | D163: 0.019 | E163: 0.029 | F163: 0.004 | G163: 0.007
A164: 5DN | B164: R | C164: Vedalken Orrery | D164: 0.97 | E164: 1.5 | F164: 0.67 | G164: 1.05
A165: 5DN | B165: R | C165: Vedalken Shackles | D165: 12.54 | E165: 17.77 | F165: 8.78 | G165: 12.44
A166: 5DN | B166: C | C166: Wayfarer's Bauble | D166: 0.119 | E166: 0.833 | F166: 0.029 | G166: 0.145
A167: 7E | B167: C | C167: Angelic Page | D167: 0.02 | E167: 0.059 | F167: 0.005 | G167: 0.014
A168: 7E | B168: U | C168: Ardent Militia | D168: 0.03 | E168: 0.079 | F168: 0.016 | G168: 0.043
A169: 7E | B169: R | C169: Blessed Reversal | D169: 0.05 | E169: 0.35 | F169: 0.035 | G169: 0.175
A170: 7E | B170: U | C170: Breath of Life | D170: 0.059 | E170: 0.244 | F170: 0.032 | G170: 0.16
A171: 7E | B171: U | C171: Castle | D171: 0.029 | E171: 0.079 | F171: 0.016 | G171: 0.043
A172: 7E | B172: C | C172: Circle of Protection: Black | D172: 0.02 | E172: 0.058 | F172: 0.005 | G172: 0.014
A173: 7E | B173: C | C173: Circle of Protection: Blue | D173: 0.019 | E173: 0.059 | F173: 0.004 | G173: 0.014
A174: 7E | B174: C | C174: Circle of Protection: Green | D174: 0.02 | E174: 0.058 | F174: 0.005 | G174: 0.014
A175: 7E | B175: C | C175: Circle of Protection: Red | D175: 0.029 | E175: 0.203 | F175: 0.007 | G175: 0.035
A176: 7E | B176: C | C176: Circle of Protection: White | D176: 0.019 | E176: 0.06 | F176: 0.004 | G176: 0.015
A177: 7E | B177: C | C177: Cloudchaser Eagle | D177: 0.019 | E177: 0.059 | F177: 0.004 | G177: 0.014
A178: 7E | B178: C | C178: Crossbow Infantry | D178: 0.019 | E178: 0.058 | F178: 0.004 | G178: 0.014
A179: 7E | B179: C | C179: Disenchant | D179: 0.029 | E179: 0.06 | F179: 0.007 | G179: 0.015
A180: 7E | B180: C | C180: Eager Cadet | D180: 0.019 | E180: 0.058 | F180: 0.004 | G180: 0.014
A181: 7E | B181: R | C181: Elite Archers | D181: 0.049 | E181: 0.343 | F181: 0.034 | G181: 0.17
A182: 7E | B182: U | C182: Gerrard's Wisdom | D182: 0.029 | E182: 0.078 | F182: 0.016 | G182: 0.043
A183: 7E | B183: R | C183: Glorious Anthem | D183: 0.099 | E183: 0.693 | F183: 0.069 | G183: 0.345
A184: 7E | B184: C | C184: Healing Salve | D184: 0.019 | E184: 0.059 | F184: 0.004 | G184: 0.014
A185: 7E | B185: U | C185: Heavy Ballista | D185: 0.029 | E185: 0.078 | F185: 0.016 | G185: 0.042
A186: 7E | B186: C | C186: Holy Strength | D186: 0.02 | E186: 0.059 | F186: 0.005 | G186: 0.014
A187: 7E | B187: C | C187: Honor Guard | D187: 0.019 | E187: 0.06 | F187: 0.004 | G187: 0.015
A188: 7E | B188: R | C188: Intrepid Hero | D188: 0.464 | E188: 1.17 | F188: 0.325 | G188: 0.81
A189: 7E | B189: R | C189: Kjeldoran Royal Guard | D189: 0.05 | E189: 0.35 | F189: 0.035 | G189: 0.175
A190: 7E | B190: C | C190: Knight Errant | D190: 0.019 | E190: 0.059 | F190: 0.004 | G190: 0.014
A191: 7E | B191: U | C191: Knighthood | D191: 0.03 | E191: 0.08 | F191: 0.016 | G191: 0.044
A192: 7E | B192: U | C192: Longbow Archer | D192: 0.03 | E192: 0.08 | F192: 0.016 | G192: 0.044
A193: 7E | B193: R | C193: Master Healer | D193: 0.049 | E193: 0.343 | F193: 0.034 | G193: 0.17
A194: 7E | B194: R | C194: Northern Paladin | D194: 0.408 | E194: 1.05 | F194: 0.286 | G194: 0.73
A195: 7E | B195: C | C195: Pacifism | D195: 0.019 | E195: 0.059 | F195: 0.004 | G195: 0.014
A196: 7E | B196: R | C196: Pariah | D196: 0.91 | E196: 2.28 | F196: 0.64 | G196: 1.6
A197: 7E | B197: R | C197: Purify | D197: 0.127 | E197: 0.889 | F197: 0.089 | G197: 0.445
A198: 7E | B198: C | C198: Razorfoot Griffin | D198: 0.019 | E198: 0.058 | F198: 0.004 | G198: 0.014
A199: 7E | B199: U | C199: Reprisal | D199: 0.029 | E199: 0.08 | F199: 0.016 | G199: 0.044
A200: 7E | B200: R | C200: Reverse Damage | D200: 0.059 | E200: 0.413 | F200: 0.041 | G200: 0.205
... 4300 more rows

Sheet about
B2: This sheet is the result of boredom, bourbon, mtgo library bot and the feedback of users like yourself. Thank you to anybody who contributed in ways of ideas, feedback, tix and code. ~Cheers, Jimmi
B14: Feedback may be sent to: | E14: jarhed323@gmail.com
B15: MTGO Handle: | E15: b1nary0mega
B16: MTGO Bot(s): | E16: b1naryb0t
E17: b1naryb0t_bulk
E18: b1naryb0t_trade
